Workbook

Sheet General Inputs
A1: General Inputs
A4: WACC calculation
A5: Inflation from 1/1/06 to 30/6/06 | B5: =B6 -> 0.0257
A6: Inflation rate (forecast) | B6: 0.0257
A7: Real pre-tax WACC (average) | B7: 0.0902
A8: Nominal pre-tax WACC (average) | B8: 0.1064
A10: Inflation index
B11: 1999/00 | C11: 2000/01 | D11: 2001/02 | E11: 2002/03 | F11: 2003/04 | G11: 2004/05 | H11: 2005/06 | I11: 2006/07 | J11: 2007/08 | K11: 2008/09 | L11: 2009/10 | M11: 2010/11 | N11: 2011/12 | O11: 2012/13 | P11: 2013/14 | Q11: 2014/15 | R11: 2015/16
A12: March | B12: 125.2 | C12: 132.7 | D12: 136.6 | E12: 141.3 | F12: 144.1 | G12: 147.5 | H12: 151.9 | I12: 155.6 | J12: 162.2 | K12: 166.2 | L12: 171 | M12: =L15*1.025^0.25 -> 175.275
A13: June | B13: 126.2 | C13: 133.8 | D13: 137.6 | E13: 141.3 | F13: 144.8 | G13: 148.4 | H13: 154.3 | I13: 157.5 | J13: 164.6 | K13: 167 | L13: =L12*1.025^0.25 -> 172.0588741 | M13: 176.360346
A14: September | B14: 130.9 | C14: 134.2 | D14: 138.5 | E14: 142.1 | F14: 145.4 | G14: 149.8 | H14: 155.7 | I14: 158.6 | J14: 166.5 | K14: 168.6 | L14: 173.1243051 | M14: 177.4524127
A15: December | B15: 131.3 | C15: 135.4 | D15: 139.5 | E15: 142.8 | F15: 146.5 | G15: 150.6 | H15: 155.5 | I15: 160.1 | J15: 166 | K15: 169.5 | L15: 174.1963334 | M15: 178.5512417
A16: Annual CPI | C16: =C12/B12-1 -> 0.05990415335 | D16: 0.0293896006 | E16: 0.03440702782 | F16: 0.01981599434 | G16: 0.02359472588 | H16: 0.02983050847 | I16: 0.02435813035 | J16: 0.04241645244 | K16: 0.02466091245 | L16: 0.02888086643 | M16: 0.025 | N16: -1
A18: Cost Pools
A19: Tariff class | B19: Short Name | C19: Tariff type | D19: Description of cost centre | E19: Description of tariff
A20: 1 | B20: Tariff V: Brisbane & Riverview | C20: Non-demand | D20: Tariff V - Brisbane & Riverview | E20: Residential tariff - anytime use
A21: 2 | B21: Tariff V: Northern | C21: Non-demand | D21: Tariff V - Northern | E21: Residential tariff - anytime use
A22: 3 | B22: Tariff C: Brisbane & Riverview | C22: Non-demand | D22: Tariff C - Brisbane & Riverview | E22: Commercial tariff - anytime use
A23: 4 | B23: Tariff C: Northern | C23: Non-demand | D23: Tariff C - Northern | E23: Commercial tariff - anytime use
A24: 5 | B24: Tariff D: Brisbane | C24: Demand | D24: Tariff D - MDQ (GJ/d) Tariff D Zone - Brisbane | E24: Demand customers in region 1
A25: 6 | B25: Tariff D: Northern | C25: Demand | D25: Tariff D - MDQ (GJ/d) Tariff D Zone - Northern | E25: Demand customers in region 2
A26: 7 | B26: Tariff D: Riverview | C26: Demand | D26: Tariff D - MDQ (GJ/d) Tariff D Zone - Riverview | E26: Demand customers in region 3

Sheet Inflation - Input (hidden)
B1: ="ENVESTRA - Cost allocation model for "&'General Inputs'!#REF!&" ("&'General Inputs'!#REF!&")" -> 
B2: Inflation - inputs
B3: Back to table of contents
B4: This sheet provide inputs for inflation values based on Envestra financial model
B5: Updating the 2000 to 2004 Depreciation Allowance
B7: Period Ending 30 June | J7: 2005 | K7: =J7+1 -> 2006 | L7: 2007 | M7: 2008 | N7: 2009 | O7: 2010 | P7: 2011
B9: SAIPAR Inflation
B10: Quarterly inflation values up until December 2002 are the assumed values of SAIPAR.
B11: Quartley CPI values at and before September 2002 are baqck calculated from SAIPAR's inflation values.
B13: Quarterly CPI
B15: March | J15: 147.5 | K15: 151.9 | L15: 155.6 | M15: 162.2 | N15: 166.2 | O15: 170.355 | P15: 174.613875
B16: June | J16: 148.4 | K16: 154.3 | L16: 157.5 | M16: 164.6 | N16: 167.2291513 | O16: 171.4098801 | P16: 175.6951271
B17: September | J17: 149.8 | K17: 155.7 | L17: 158.6 | M17: 166.5 | N17: 168.2646754 | O17: 172.4712923 | P17: 176.7830746
B18: December | J18: 150.6 | K18: 155.5 | L18: 160.1 | M18: 166 | N18: 169.3066118 | O18: 173.539277 | P18: 177.877759
B20: Quarterly Inflation
J21: 2005 | K21: 2006 | L21: 2007 | M21: 2008 | N21: 2009 | O21: 2010 | P21: 2011
B22: March | J22: 0.006825938567 | K22: 0.008632138114 | L22: 0.0006430868167 | M22: 0.013116802 | N22: 0.001204819277 | O22: 0.006192246326 | P22: 0.006192246326
B23: June | J23: 0.006101694915 | K23: 0.01579986833 | L23: 0.01221079692 | M23: 0.01479654747 | N23: 0.006192246326 | O23: 0.006192246326 | P23: 0.006192246326
B24: September | J24: 0.009433962264 | K24: 0.00907323396 | L24: 0.006984126984 | M24: 0.01154313487 | N24: 0.006192246326 | O24: 0.006192246326 | P24: 0.006192246326
B25: December | J25: 0.005340453939 | K25: -0.001284521516 | L25: 0.009457755359 | M25: -0.003003003003 | N25: 0.006192246326 | O25: 0.006192246326 | P25: 0.006192246326
B27: Six Month Inflation
J28: 2005 | K28: 2006 | L28: 2007 | M28: 2008 | N28: 2009 | O28: 2010 | P28: 2011
B29: March | J29: 0.01444291609 | K29: 0.01401869159 | L29: -0.0006422607579 | M29: 0.02269861286 | N29: -0.001801801802 | O29: 0.01242283657 | P29: 0.01242283657
B30: June | J30: 0.01296928328 | K30: 0.02456839309 | L30: 0.01286173633 | M30: 0.02810743285 | N30: 0.00740452614 | O30: 0.01242283657 | P30: 0.01242283657
B31: September | J31: 0.01559322034 | K31: 0.0250164582 | L31: 0.01928020566 | M31: 0.02651048089 | N31: 0.01242283657 | O31: 0.01242283657 | P31: 0.01242283657
B32: December | J32: 0.01482479784 | K32: 0.00777705768 | L32: 0.01650793651 | M32: 0.008505467801 | N32: 0.01242283657 | O32: 0.01242283657 | P32: 0.01242283657
B34: Annual Inflation
J35: 2005 | K35: 2006 | L35: 2007 | M35: 2008 | N35: 2009 | O35: 2010 | P35: 2011
B36: March | J36: 0.02359472588 | K36: 0.02983050847 | L36: 0.02435813035 | M36: 0.04241645244 | N36: 0.02466091245 | O36: 0.025 | P36: 0.025
B37: June | J37: 0.02486187845 | K37: 0.0397574124 | L37: 0.02073882048 | M37: 0.04507936508 | N37: 0.0159729729 | O37: 0.025 | P37: 0.025
B38: September | J38: 0.03026134801 | K38: 0.0393858478 | L38: 0.01862556198 | M38: 0.04981084489 | N38: 0.01059865127 | O38: 0.025 | P38: 0.025
B39: December | J39: 0.02798634812 | K39: 0.03253652058 | L39: 0.02958199357 | M39: 0.03685196752 | N39: 0.01991934792 | O39: 0.025 | P39: 0.025
B41: Inflation factor to 31 December 2005
J42: 2005 | K42: 2006 | L42: 2007 | M42: 2008 | N42: 2009 | O42: 2010 | P42: 2011
B43: March | J43: 1 | K43: 1.029830508 | L43: 1.054915254 | M43: 1.099661017 | N43: 1.126779661 | O43: 1.154949153 | P43: 1.183822881
B44: June | J44: 1.006101695 | K44: 1.046101695 | L44: 1.06779661 | M44: 1.115932203 | N44: 1.133756958 | O44: 1.162100882 | P44: 1.191153404
B45: September | J45: 1.01559322 | K45: 1.05559322 | L45: 1.075254237 | M45: 1.128813559 | N45: 1.140777461 | O45: 1.169296897 | P45: 1.19852932
B46: December | J46: 1.021016949 | K46: 1.054237288 | L46: 1.085423729 | M46: 1.125423729 | N46: 1.147841436 | O46: 1.176537472 | P46: 1.205950908
B48: Actual Inlfation
B50: Quarterly CPI
J51: 2005 | K51: 2006 | L51: 2007 | M51: 2008 | N51: 2009 | O51: 2010 | P51: 2011
B52: March | J52: 147.5 | K52: 151.6609409 | L52: 155.4524644 | M52: 159.3387761 | N52: 163.3222455 | O52: 167.4053016 | P52: 171.5904341
B53: June | J53: 148.4 | K53: 152.6000628 | L53: 156.4150644 | M53: 160.325441 | N53: 164.333577 | O53: 168.4419165 | P53: 172.6529644
B54: September | J54: 149.8 | K54: 153.545 | L54: 157.383625 | M54: 161.3182156 | N54: 165.351171 | O54: 169.4849503 | P54: 173.722074
B55: December | J55: 150.7275985 | K55: 154.4957885 | L55: 158.3581832 | M55: 162.3171378 | N55: 166.3750662 | O55: 170.5344429 | P55: 174.7978039
B57: Quarterly Inflation
J58: 2005 | K58: 2006 | L58: 2007 | M58: 2008 | N58: 2009 | O58: 2010 | P58: 2011
B59: March | J59: 0.006825938567 | K59: 0.006192246326 | L59: 0.006192246326 | M59: 0.006192246326 | N59: 0.006192246326 | O59: 0.006192246326 | P59: 0.006192246326
B60: June | J60: 0.006101694915 | K60: 0.006192246326 | L60: 0.006192246326 | M60: 0.006192246326 | N60: 0.006192246326 | O60: 0.006192246326 | P60: 0.006192246326
B61: September | J61: 0.009433962264 | K61: 0.006192246326 | L61: 0.006192246326 | M61: 0.006192246326 | N61: 0.006192246326 | O61: 0.006192246326 | P61: 0.006192246326
B62: December | J62: 0.006192246326 | K62: 0.006192246326 | L62: 0.006192246326 | M62: 0.006192246326 | N62: 0.006192246326 | O62: 0.006192246326 | P62: 0.006192246326
B64: Six Month Inflation
J65: 2005 | K65: 2006 | L65: 2007 | M65: 2008 | N65: 2009 | O65: 2010 | P65: 2011
B66: March | J66: 0.01444291609 | K66: 0.01242283657 | L66: 0.01242283657 | M66: 0.01242283657 | N66: 0.01242283657 | O66: 0.01242283657 | P66: 0.01242283657
B67: June | J67: 0.01296928328 | K67: 0.01242283657 | L67: 0.01242283657 | M67: 0.01242283657 | N67: 0.01242283657 | O67: 0.01242283657 | P67: 0.01242283657
B68: September | J68: 0.01559322034 | K68: 0.01242283657 | L68: 0.01242283657 | M68: 0.01242283657 | N68: 0.01242283657 | O68: 0.01242283657 | P68: 0.01242283657
B69: December | J69: 0.01568462601 | K69: 0.01242283657 | L69: 0.01242283657 | M69: 0.01242283657 | N69: 0.01242283657 | O69: 0.01242283657 | P69: 0.01242283657
B71: Annual Inflation
J72: 2005 | K72: 2006 | L72: 2007 | M72: 2008 | N72: 2009 | O72: 2010 | P72: 2011
B73: March | J73: 0.02359472588 | K73: 0.02820976893 | L73: 0.025 | M73: 0.025 | N73: 0.025 | O73: 0.025 | P73: 0.025
B74: June | J74: 0.02486187845 | K74: 0.02830231012 | L74: 0.025 | M74: 0.025 | N74: 0.025 | O74: 0.025 | P74: 0.025
B75: September | J75: 0.03026134801 | K75: 0.025 | L75: 0.025 | M75: 0.025 | N75: 0.025 | O75: 0.025 | P75: 0.025
B76: December | J76: 0.02885732764 | K76: 0.025 | L76: 0.025 | M76: 0.025 | N76: 0.025 | O76: 0.025 | P76: 0.025
B78: Inflation factor to 31 December 2005
J79: 2005 | K79: 2006 | L79: 2007 | M79: 2008 | N79: 2009 | O79: 2010 | P79: 2011
B80: March | J80: 1 | K80: 1.028209769 | L80: 1.053915013 | M80: 1.080262888 | N80: 1.107269461 | O80: 1.134951197 | P80: 1.163324977
B81: June | J81: 1.006101695 | K81: 1.034576697 | L81: 1.060441115 | M81: 1.086952142 | N81: 1.114125946 | O81: 1.141979095 | P81: 1.170528572
B82: September | J82: 1.01559322 | K82: 1.040983051 | L82: 1.067007627 | M82: 1.093682818 | N82: 1.121024888 | O82: 1.14905051 | P82: 1.177776773
B83: December | J83: 1.021882024 | K83: 1.047429074 | L83: 1.073614801 | M83: 1.100455171 | N83: 1.12796655 | O83: 1.156165714 | P83: 1.185069857
B85: Model Inflation
B87: Quarterly CPI
J88: 2005 | K88: 2006 | L88: 2007 | M88: 2008 | N88: 2009 | O88: 2010 | P88: 2011
B89: March | J89: 147.5 | K89: 151.9 | L89: 155.6 | M89: 162.2 | N89: 166.2 | O89: 170.355 | P89: 174.613875
B90: June | J90: 148.4 | K90: 154.3 | L90: 157.5 | M90: 164.6 | N90: 167.2291513 | O90: 171.4098801 | P90: 175.6951271
B91: September | J91: 149.8 | K91: 155.7 | L91: 158.6 | M91: 166.5 | N91: 168.2646754 | O91: 172.4712923 | P91: 176.7830746
B92: December | J92: 150.6 | K92: 155.5 | L92: 160.1 | M92: 166 | N92: 169.3066118 | O92: 173.539277 | P92: 177.877759
B94: Quarterly Inflation
J95: 2005 | K95: 2006 | L95: 2007 | M95: 2008 | N95: 2009 | O95: 2010 | P95: 2011
B96: March | J96: 0.006825938567 | K96: 0.008632138114 | L96: 0.0006430868167 | M96: 0.013116802 | N96: 0.001204819277 | O96: 0.006192246326 | P96: 0.006192246326
B97: June | J97: 0.006101694915 | K97: 0.01579986833 | L97: 0.01221079692 | M97: 0.01479654747 | N97: 0.006192246326 | O97: 0.006192246326 | P97: 0.006192246326
B98: September | J98: 0.009433962264 | K98: 0.00907323396 | L98: 0.006984126984 | M98: 0.01154313487 | N98: 0.006192246326 | O98: 0.006192246326 | P98: 0.006192246326
B99: December | J99: 0.005340453939 | K99: -0.001284521516 | L99: 0.009457755359 | M99: -0.003003003003 | N99: 0.006192246326 | O99: 0.006192246326 | P99: 0.006192246326
B101: Six Month Inflation
J102: 2005 | K102: 2006 | L102: 2007 | M102: 2008 | N102: 2009 | O102: 2010 | P102: 2011
B103: March | J103: 0.01444291609 | K103: 0.01401869159 | L103: -0.0006422607579 | M103: 0.02269861286 | N103: -0.001801801802 | O103: 0.01242283657 | P103: 0.01242283657
B104: June | J104: 0.01296928328 | K104: 0.02456839309 | L104: 0.01286173633 | M104: 0.02810743285 | N104: 0.00740452614 | O104: 0.01242283657 | P104: 0.01242283657
B105: September | J105: 0.01559322034 | K105: 0.0250164582 | L105: 0.01928020566 | M105: 0.02651048089 | N105: 0.01242283657 | O105: 0.01242283657 | P105: 0.01242283657
B106: December | J106: 0.01482479784 | K106: 0.00777705768 | L106: 0.01650793651 | M106: 0.008505467801 | N106: 0.01242283657 | O106: 0.01242283657 | P106: 0.01242283657
B108: Annual Inflation | J108: 2005 | K108: 2006 | L108: 2007 | M108: 2008 | N108: 2009 | O108: 2010 | P108: 2011
B110: March | J110: 0.02359472588 | K110: 0.02983050847 | L110: 0.02435813035 | M110: 0.04241645244 | N110: 0.02466091245 | O110: 0.025 | P110: 0.025
B111: June | J111: 0.02486187845 | K111: 0.0397574124 | L111: 0.02073882048 | M111: 0.04507936508 | N111: 0.0159729729 | O111: 0.025 | P111: 0.025
B112: September | J112: 0.03026134801 | K112: 0.0393858478 | L112: 0.01862556198 | M112: 0.04981084489 | N112: 0.01059865127 | O112: 0.025 | P112: 0.025
B113: December | J113: 0.02798634812 | K113: 0.03253652058 | L113: 0.02958199357 | M113: 0.03685196752 | N113: 0.01991934792 | O113: 0.025 | P113: 0.025
B115: Inflation factor to 31 December 2005
J116: 2005 | K116: 2006 | L116: 2007 | M116: 2008 | N116: 2009 | O116: 2010 | P116: 2011
B117: March | J117: 1 | K117: 1.029830508 | L117: 1.054915254 | M117: 1.099661017 | N117: 1.126779661 | O117: 1.154949153 | P117: 1.183822881
B118: June | J118: 1.006101695 | K118: 1.046101695 | L118: 1.06779661 | M118: 1.115932203 | N118: 1.133756958 | O118: 1.162100882 | P118: 1.191153404
B119: September | J119: 1.01559322 | K119: 1.05559322 | L119: 1.075254237 | M119: 1.128813559 | N119: 1.140777461 | O119: 1.169296897 | P119: 1.19852932
B120: December | J120: 1.021016949 | K120: 1.054237288 | L120: 1.085423729 | M120: 1.125423729 | N120: 1.147841436 | O120: 1.176537472 | P120: 1.205950908

Sheet Connection Numbers Inputs
A1: Connection Numbers Inputs
A4: Price Band 1 | B4: ='General Inputs'!B20 -> Tariff V: Brisbane & Riverview | C4: ='General Inputs'!B21 -> Tariff V: Northern | D4: ='General Inputs'!B22 -> Tariff C: Brisbane & Riverview | E4: ='General Inputs'!B23 -> Tariff C: Northern | F4: ='General Inputs'!B24 -> Tariff D: Brisbane | G4: ='General Inputs'!B25 -> Tariff D: Northern | H4: ='General Inputs'!B26 -> Tariff D: Riverview | I4: Tariff V+C: Brisbane & Riverview | J4: Tariff V+C: Northern
A5: 2006/07 | B5: 70997 | C5: 2955 | D5: 2257.717681 | E5: 360.370382 | F5: 4 | G5: 0 | H5: 0 | I5: 70997 | J5: 2955
A6: 2007/08 | B6: 73145 | C6: 3032 | D6: 2326.024477 | E6: 369.7607439 | F6: 4 | G6: 0 | H6: 0 | I6: 73145 | J6: 3032
A7: 2008/09 | B7: 75098 | C7: 3165 | D7: 2388.130236 | E7: 385.9804599 | F7: 4 | G7: 0 | H7: 0 | I7: 75098 | J7: 3165
A8: 2009/10 | B8: 77524.4 | C8: 3149.9 | D8: 2445.61 | E8: 385.41 | F8: 4.135928571 | G8: 1 | H8: 0 | I8: 77524.4 | J8: 3149.9
A9: 2010/11 | B9: 79100.2 | C9: 3176.2 | D9: 2482.97 | E9: 392.475 | F9: 4.187071429 | G9: 1 | H9: 0 | I9: 79100.2 | J9: 3176.2
A10: 2011/12 | B10: 81005.6 | C10: 3215.8 | D10: 2559.98 | E10: 404.327 | F10: 4.320214286 | G10: 1 | H10: 0 | I10: 81005.6 | J10: 3215.8
A11: 2012/13 | B11: 83248.4 | C11: 3268.6 | D11: 2599.4 | E11: 411.505 | F11: 4.393928571 | G11: 1 | H11: 0 | I11: 83248.4 | J11: 3268.6
A12: 2013/14 | B12: 85512 | C12: 3320.5 | D12: 2595.43 | E12: 412.786 | F12: 4.368571429 | G12: 1 | H12: 0 | I12: 85512 | J12: 3320.5
A13: 2014/15 | B13: 87620 | C13: 3363.9 | D13: 2599.96 | E13: 414.919 | F13: 4.373214286 | G13: 1 | H13: 0 | I13: 87620 | J13: 3363.9
A14: 2015/16 | B14: 89787.5 | C14: 3408.3 | D14: 2629.48 | E14: 420.615 | F14: 4.444785714 | G14: 1 | H14: 0 | I14: 89787.5 | J14: 3408.3
A16: Price Band 2 | B16: =B4 -> Tariff V: Brisbane & Riverview | C16: Tariff V: Northern | D16: Tariff C: Brisbane & Riverview | E16: Tariff C: Northern | F16: Tariff D: Brisbane | G16: Tariff D: Northern | H16: Tariff D: Riverview | I16: Tariff V+C: Brisbane & Riverview | J16: Tariff V+C: Northern
A17: =A5 -> 2006/07 | B17: 0 | C17: 0 | D17: 0 | E17: 0 | F17: 22 | G17: 4 | H17: 0 | I17: 0 | J17: 0
A18: 2007/08 | B18: 0 | C18: 0 | D18: 0 | E18: 0 | F18: 22 | G18: 4 | H18: 0 | I18: 0 | J18: 0
A19: 2008/09 | B19: 0 | C19: 0 | D19: 0 | E19: 0 | F19: 21 | G19: 4 | H19: 0 | I19: 0 | J19: 0
A20: 2009/10 | B20: 0 | C20: 0 | D20: 0 | E20: 0 | F20: 21.713625 | G20: 4 | H20: 0 | I20: 0 | J20: 0
A21: 2010/11 | B21: 0 | C21: 0 | D21: 0 | E21: 0 | F21: 21.982125 | G21: 4 | H21: 0 | I21: 0 | J21: 0
A22: 2011/12 | B22: 0 | C22: 0 | D22: 0 | E22: 0 | F22: 22.681125 | G22: 4 | H22: 0 | I22: 0 | J22: 0
A23: 2012/13 | B23: 0 | C23: 0 | D23: 0 | E23: 0 | F23: 23.068125 | G23: 4 | H23: 0 | I23: 0 | J23: 0
A24: 2013/14 | B24: 0 | C24: 0 | D24: 0 | E24: 0 | F24: 22.935 | G24: 4 | H24: 0 | I24: 0 | J24: 0
A25: 2014/15 | B25: 0 | C25: 0 | D25: 0 | E25: 0 | F25: 22.959375 | G25: 4 | H25: 0 | I25: 0 | J25: 0
A26: 2015/16 | B26: 0 | C26: 0 | D26: 0 | E26: 0 | F26: 23.335125 | G26: 4 | H26: 0 | I26: 0 | J26: 0
A28: Price Band 3 | B28: =B16 -> Tariff V: Brisbane & Riverview | C28: Tariff V: Northern | D28: Tariff C: Brisbane & Riverview | E28: Tariff C: Northern | F28: Tariff D: Brisbane | G28: Tariff D: Northern | H28: Tariff D: Riverview | I28: Tariff V+C: Brisbane & Riverview | J28: Tariff V+C: Northern
A29: =A5 -> 2006/07 | B29: 0 | C29: 0 | D29: 0 | E29: 0 | F29: 11 | G29: 1 | H29: 0 | I29: 0 | J29: 0
A30: =A6 -> 2007/08 | B30: 0 | C30: 0 | D30: 0 | E30: 0 | F30: 11 | G30: 1 | H30: 0 | I30: 0 | J30: 0
A31: =A7 -> 2008/09 | B31: 0 | C31: 0 | D31: 0 | E31: 0 | F31: 11 | G31: 1 | H31: 0 | I31: 0 | J31: 0
A32: =A8 -> 2009/10 | B32: 0 | C32: 0 | D32: 0 | E32: 0 | F32: 11.37380357 | G32: 0 | H32: 0 | I32: 0 | J32: 0
A33: =A9 -> 2010/11 | B33: 0 | C33: 0 | D33: 0 | E33: 0 | F33: 11.51444643 | G33: 0 | H33: 0 | I33: 0 | J33: 0
A34: =A22 -> 2011/12 | B34: 0 | C34: 0 | D34: 0 | E34: 0 | F34: 11 | G34: 0 | H34: 0 | I34: 0 | J34: 0
A35: =A23 -> 2012/13 | B35: 0 | C35: 0 | D35: 0 | E35: 0 | F35: 11 | G35: 0 | H35: 0 | I35: 0 | J35: 0
A36: =A24 -> 2013/14 | B36: 0 | C36: 0 | D36: 0 | E36: 0 | F36: 11 | G36: 0 | H36: 0 | I36: 0 | J36: 0
A37: =A25 -> 2014/15 | B37: 0 | C37: 0 | D37: 0 | E37: 0 | F37: 11 | G37: 0 | H37: 0 | I37: 0 | J37: 0
A38: =A26 -> 2015/16 | B38: 0 | C38: 0 | D38: 0 | E38: 0 | F38: 11 | G38: 0 | H38: 0 | I38: 0 | J38: 0
A40: Price Band 4 | B40: =B28 -> Tariff V: Brisbane & Riverview | C40: Tariff V: Northern | D40: Tariff C: Brisbane & Riverview | E40: Tariff C: Northern | F40: Tariff D: Brisbane | G40: Tariff D: Northern | H40: Tariff D: Riverview | I40: Tariff V+C: Brisbane & Riverview | J40: Tariff V+C: Northern
A41: =A5 -> 2006/07 | B41: 0 | C41: 0 | D41: 0 | E41: 0 | F41: 12 | G41: 0 | H41: 0 | I41: 0 | J41: 0
A42: =A6 -> 2007/08 | B42: 0 | C42: 0 | D42: 0 | E42: 0 | F42: 12 | G42: 0 | H42: 0 | I42: 0 | J42: 0
A43: =A7 -> 2008/09 | B43: 0 | C43: 0 | D43: 0 | E43: 0 | F43: 12 | G43: 0 | H43: 0 | I43: 0 | J43: 0
A44: =A8 -> 2009/10 | B44: 0 | C44: 0 | D44: 0 | E44: 0 | F44: 12.40778571 | G44: 0 | H44: 0 | I44: 0 | J44: 0
A45: =A9 -> 2010/11 | B45: 0 | C45: 0 | D45: 0 | E45: 0 | F45: 12.56121429 | G45: 0 | H45: 0 | I45: 0 | J45: 0
A46: =A34 -> 2011/12 | B46: 0 | C46: 0 | D46: 0 | E46: 0 | F46: 10 | G46: 0 | H46: 0 | I46: 0 | J46: 0
A47: =A35 -> 2012/13 | B47: 0 | C47: 0 | D47: 0 | E47: 0 | F47: 10 | G47: 0 | H47: 0 | I47: 0 | J47: 0
A48: =A36 -> 2013/14 | B48: 0 | C48: 0 | D48: 0 | E48: 0 | F48: 10 | G48: 0 | H48: 0 | I48: 0 | J48: 0
A49: =A37 -> 2014/15 | B49: 0 | C49: 0 | D49: 0 | E49: 0 | F49: 10 | G49: 0 | H49: 0 | I49: 0 | J49: 0
A50: =A38 -> 2015/16 | B50: 0 | C50: 0 | D50: 0 | E50: 0 | F50: 10 | G50: 0 | H50: 0 | I50: 0 | J50: 0
A52: Price Band 5 | B52: =B40 -> Tariff V: Brisbane & Riverview | C52: Tariff V: Northern | D52: Tariff C: Brisbane & Riverview | E52: Tariff C: Northern | F52: Tariff D: Brisbane | G52: Tariff D: Northern | H52: Tariff D: Riverview | I52: Tariff V+C: Brisbane & Riverview | J52: Tariff V+C: Northern
A53: =A5 -> 2006/07 | B53: 0 | C53: 0 | D53: 0 | E53: 0 | F53: 6 | G53: 0 | H53: 2 | I53: 0 | J53: 0
A54: =A6 -> 2007/08 | B54: 0 | C54: 0 | D54: 0 | E54: 0 | F54: 7 | G54: 0 | H54: 2 | I54: 0 | J54: 0
A55: =A7 -> 2008/09 | B55: 0 | C55: 0 | D55: 0 | E55: 0 | F55: 7 | G55: 0 | H55: 2 | I55: 0 | J55: 0
A56: =A8 -> 2009/10 | B56: 0 | C56: 0 | D56: 0 | E56: 0 | F56: 7.237875 | G56: 0 | H56: 2 | I56: 0 | J56: 0
A57: =A9 -> 2010/11 | B57: 0 | C57: 0 | D57: 0 | E57: 0 | F57: 7.327375 | G57: 0 | H57: 2 | I57: 0 | J57: 0
A58: =A46 -> 2011/12 | B58: 0 | C58: 0 | D58: 0 | E58: 0 | F58: 6 | G58: 0 | H58: 2 | I58: 0 | J58: 0
A59: =A47 -> 2012/13 | B59: 0 | C59: 0 | D59: 0 | E59: 0 | F59: 6 | G59: 0 | H59: 2 | I59: 0 | J59: 0
A60: =A48 -> 2013/14 | B60: 0 | C60: 0 | D60: 0 | E60: 0 | F60: 6 | G60: 0 | H60: 2 | I60: 0 | J60: 0
A61: =A49 -> 2014/15 | B61: 0 | C61: 0 | D61: 0 | E61: 0 | F61: 6 | G61: 0 | H61: 2 | I61: 0 | J61: 0
A62: =A50 -> 2015/16 | B62: 0 | C62: 0 | D62: 0 | E62: 0 | F62: 6 | G62: 0 | H62: 2 | I62: 0 | J62: 0
A64: Price Band 6 | B64: =B52 -> Tariff V: Brisbane & Riverview | C64: Tariff V: Northern | D64: Tariff C: Brisbane & Riverview | E64: Tariff C: Northern | F64: Tariff D: Brisbane | G64: Tariff D: Northern | H64: Tariff D: Riverview | I64: Tariff V+C: Brisbane & Riverview | J64: Tariff V+C: Northern
A65: =A5 -> 2006/07 | B65: 0 | C65: 0 | D65: 0 | E65: 0 | F65: 0 | G65: 0 | H65: 0 | I65: 0 | J65: 0
A66: =A6 -> 2007/08 | B66: 0 | C66: 0 | D66: 0 | E66: 0 | F66: 0 | G66: 0 | H66: 0 | I66: 0 | J66: 0
A67: =A7 -> 2008/09 | B67: 0 | C67: 0 | D67: 0 | E67: 0 | F67: 0 | G67: 0 | H67: 0 | I67: 0 | J67: 0
A68: =A8 -> 2009/10 | B68: 0 | C68: 0 | D68: 0 | E68: 0 | F68: 1.033982143 | G68: 0 | H68: 0 | I68: 0 | J68: 0
A69: =A9 -> 2010/11 | B69: 0 | C69: 0 | D69: 0 | E69: 0 | F69: 1.046767857 | G69: 0 | H69: 0 | I69: 0 | J69: 0
A70: =A58 -> 2011/12 | B70: 0 | C70: 0 | D70: 0 | E70: 0 | F70: 1.080053571 | G70: 0 | H70: 0 | I70: 0 | J70: 0
A71: =A59 -> 2012/13 | B71: 0 | C71: 0 | D71: 0 | E71: 0 | F71: 1.098482143 | G71: 0 | H71: 0 | I71: 0 | J71: 0
A72: =A60 -> 2013/14 | B72: 0 | C72: 0 | D72: 0 | E72: 0 | F72: 1.092142857 | G72: 0 | H72: 0 | I72: 0 | J72: 0
A73: =A61 -> 2014/15 | B73: 0 | C73: 0 | D73: 0 | E73: 0 | F73: 1.093303571 | G73: 0 | H73: 0 | I73: 0 | J73: 0
A74: =A62 -> 2015/16 | B74: 0 | C74: 0 | D74: 0 | E74: 0 | F74: 1.111196429 | G74: 0 | H74: 0 | I74: 0 | J74: 0
A76: Price Band 7 | B76: =B64 -> Tariff V: Brisbane & Riverview | C76: Tariff V: Northern | D76: Tariff C: Brisbane & Riverview | E76: Tariff C: Northern | F76: Tariff D: Brisbane | G76: Tariff D: Northern | H76: Tariff D: Riverview | I76: Tariff V+C: Brisbane & Riverview | J76: Tariff V+C: Northern
A77: =A17 -> 2006/07 | B77: 0 | C77: 0 | D77: 0 | E77: 0 | F77: 1 | G77: 0 | H77: 0 | I77: 0 | J77: 0
A78: =A18 -> 2007/08 | B78: 0 | C78: 0 | D78: 0 | E78: 0 | F78: 1 | G78: 0 | H78: 0 | I78: 0 | J78: 0
A79: =A19 -> 2008/09 | B79: 0 | C79: 0 | D79: 0 | E79: 0 | F79: 1 | G79: 0 | H79: 0 | I79: 0 | J79: 0
A80: =A20 -> 2009/10 | B80: 0 | C80: 0 | D80: 0 | E80: 0 | F80: 0 | G80: 0 | H80: 0 | I80: 0 | J80: 0
A81: =A21 -> 2010/11 | B81: 0 | C81: 0 | D81: 0 | E81: 0 | F81: 0 | G81: 0 | H81: 0 | I81: 0 | J81: 0
A82: =A70 -> 2011/12 | B82: 0 | C82: 0 | D82: 0 | E82: 0 | F82: 0 | G82: 0 | H82: 0 | I82: 0 | J82: 0
A83: =A71 -> 2012/13 | B83: 0 | C83: 0 | D83: 0 | E83: 0 | F83: 0 | G83: 0 | H83: 0 | I83: 0 | J83: 0
A84: =A72 -> 2013/14 | B84: 0 | C84: 0 | D84: 0 | E84: 0 | F84: 0 | G84: 0 | H84: 0 | I84: 0 | J84: 0
A85: =A73 -> 2014/15 | B85: 0 | C85: 0 | D85: 0 | E85: 0 | F85: 0 | G85: 0 | H85: 0 | I85: 0 | J85: 0
A86: =A74 -> 2015/16 | B86: 0 | C86: 0 | D86: 0 | E86: 0 | F86: 0 | G86: 0 | H86: 0 | I86: 0 | J86: 0
A88: Summary | B88: =B76 -> Tariff V: Brisbane & Riverview | C88: =C76 -> Tariff V: Northern | D88: =D76 -> Tariff C: Brisbane & Riverview | E88: =E76 -> Tariff C: Northern | F88: =F64 -> Tariff D: Brisbane | G88: =G64 -> Tariff D: Northern | H88: =H64 -> Tariff D: Riverview
A89: =A65 -> 2006/07 | B89: =B5+B17+B29+B41+B53+B65+B77 -> 70997 | C89: 2955 | F89: 56 | G89: 5 | H89: 2
A90: 2007/08 | B90: 73145 | C90: 3032 | F90: 57 | G90: 5 | H90: 2
A91: 2008/09 | B91: 75098 | C91: 3165 | F91: 56 | G91: 5 | H91: 2
A92: 2009/10 | B92: 77524.4 | C92: 3149.9 | F92: 57.903 | G92: 5 | H92: 2
A93: 2010/11 | B93: 79100.2 | C93: 3176.2 | F93: 58.619 | G93: 5 | H93: 2
A94: 2011/12 | B94: 81005.6 | C94: 3215.8 | F94: 55.08139286 | G94: 5 | H94: 2
A95: 2012/13 | B95: 83248.4 | C95: 3268.6 | F95: 55.56053571 | G95: 5 | H95: 2
A96: 2013/14 | B96: 85512 | C96: 3320.5 | F96: 55.39571429 | G96: 5 | H96: 2
A97: 2014/15 | B97: 87620 | C97: 3363.9 | F97: 55.42589286 | G97: 5 | H97: 2
A98: 2015/16 | B98: 89787.5 | C98: 3408.3 | F98: 55.89110714 | G98: 5 | H98: 2

Sheet No of Connections Summ (hidden)
B1: ="ENVESTRA - Tariff model for "&'General Inputs'!#REF!&" ("&'General Inputs'!#REF!&")" -> 
B2: Number of connections - Summary
B3: Back to table of contents
B4: This page summarises the total number of connections input for each cost pools
B7: Period Ending 30 June | J7: 2005 | K7: =J7+1 -> 2006 | L7: 2007 | M7: 2008 | N7: 2009 | O7: 2010 | P7: 2011
B11: Connections data
C13: Number of connections
C16: Total number of connections
C17: in connections units
F18: Short name | G18: Price bands
C20: ='General Inputs'!#REF! ->  | F20: ='General Inputs'!B20 -> Tariff V: Brisbane & Riverview | G20: Total | L20: =MAX('Connection Numbers Inputs'!B5,SUM('Connection Numbers Inputs'!B17,'Connection Numbers Inputs'!B29,'Connection Numbers Inputs'!B41,'Connection Numbers Inputs'!B53,'Connection Numbers Inputs'!B65)) -> 70997 | M20: =MAX('Connection Numbers Inputs'!B6,SUM('Connection Numbers Inputs'!B18,'Connection Numbers Inputs'!B30,'Connection Numbers Inputs'!B42,'Connection Numbers Inputs'!B54,'Connection Numbers Inputs'!B66)) -> 73145 | N20: =MAX('Connection Numbers Inputs'!B7,SUM('Connection Numbers Inputs'!B19,'Connection Numbers Inputs'!B31,'Connection Numbers Inputs'!B43,'Connection Numbers Inputs'!B55,'Connection Numbers Inputs'!B67)) -> 75098 | O20: =MAX('Connection Numbers Inputs'!B8,SUM('Connection Numbers Inputs'!B20,'Connection Numbers Inputs'!B32,'Connection Numbers Inputs'!B44,'Connection Numbers Inputs'!B56,'Connection Numbers Inputs'!B68)) -> 77524.4 | P20: =MAX('Connection Numbers Inputs'!B9,SUM('Connection Numbers Inputs'!B21,'Connection Numbers Inputs'!B33,'Connection Numbers Inputs'!B45,'Connection Numbers Inputs'!B57,'Connection Numbers Inputs'!B69)) -> 79100.2
C21: ='General Inputs'!#REF! ->  | F21: ='General Inputs'!B21 -> Tariff V: Northern | G21: Total | L21: =MAX('Connection Numbers Inputs'!C5,SUM('Connection Numbers Inputs'!C17,'Connection Numbers Inputs'!C29,'Connection Numbers Inputs'!C41,'Connection Numbers Inputs'!C53,'Connection Numbers Inputs'!C65)) -> 2955 | M21: =MAX('Connection Numbers Inputs'!C6,SUM('Connection Numbers Inputs'!C18,'Connection Numbers Inputs'!C30,'Connection Numbers Inputs'!C42,'Connection Numbers Inputs'!C54,'Connection Numbers Inputs'!C66)) -> 3032 | N21: =MAX('Connection Numbers Inputs'!C7,SUM('Connection Numbers Inputs'!C19,'Connection Numbers Inputs'!C31,'Connection Numbers Inputs'!C43,'Connection Numbers Inputs'!C55,'Connection Numbers Inputs'!C67)) -> 3165 | O21: =MAX('Connection Numbers Inputs'!C8,SUM('Connection Numbers Inputs'!C20,'Connection Numbers Inputs'!C32,'Connection Numbers Inputs'!C44,'Connection Numbers Inputs'!C56,'Connection Numbers Inputs'!C68)) -> 3149.9 | P21: =MAX('Connection Numbers Inputs'!C9,SUM('Connection Numbers Inputs'!C21,'Connection Numbers Inputs'!C33,'Connection Numbers Inputs'!C45,'Connection Numbers Inputs'!C57,'Connection Numbers Inputs'!C69)) -> 3176.2
C22: ='General Inputs'!#REF! ->  | F22: ='General Inputs'!B24 -> Tariff D: Brisbane | G22: Total | L22: =MAX('Connection Numbers Inputs'!F5,SUM('Connection Numbers Inputs'!F17,'Connection Numbers Inputs'!F29,'Connection Numbers Inputs'!F41,'Connection Numbers Inputs'!F53,'Connection Numbers Inputs'!F65)) -> 51 | M22: =MAX('Connection Numbers Inputs'!F6,SUM('Connection Numbers Inputs'!F18,'Connection Numbers Inputs'!F30,'Connection Numbers Inputs'!F42,'Connection Numbers Inputs'!F54,'Connection Numbers Inputs'!F66)) -> 52 | N22: =MAX('Connection Numbers Inputs'!F7,SUM('Connection Numbers Inputs'!F19,'Connection Numbers Inputs'!F31,'Connection Numbers Inputs'!F43,'Connection Numbers Inputs'!F55,'Connection Numbers Inputs'!F67)) -> 51 | O22: =MAX('Connection Numbers Inputs'!F8,SUM('Connection Numbers Inputs'!F20,'Connection Numbers Inputs'!F32,'Connection Numbers Inputs'!F44,'Connection Numbers Inputs'!F56,'Connection Numbers Inputs'!F68)) -> 53.76707143 | P22: =MAX('Connection Numbers Inputs'!F9,SUM('Connection Numbers Inputs'!F21,'Connection Numbers Inputs'!F33,'Connection Numbers Inputs'!F45,'Connection Numbers Inputs'!F57,'Connection Numbers Inputs'!F69)) -> 54.43192857
C23: ='General Inputs'!#REF! ->  | F23: ='General Inputs'!B25 -> Tariff D: Northern | G23: Total | L23: =MAX('Connection Numbers Inputs'!G5,SUM('Connection Numbers Inputs'!G17,'Connection Numbers Inputs'!G29,'Connection Numbers Inputs'!G41,'Connection Numbers Inputs'!G53,'Connection Numbers Inputs'!G65)) -> 5 | M23: =MAX('Connection Numbers Inputs'!G6,SUM('Connection Numbers Inputs'!G18,'Connection Numbers Inputs'!G30,'Connection Numbers Inputs'!G42,'Connection Numbers Inputs'!G54,'Connection Numbers Inputs'!G66)) -> 5 | N23: =MAX('Connection Numbers Inputs'!G7,SUM('Connection Numbers Inputs'!G19,'Connection Numbers Inputs'!G31,'Connection Numbers Inputs'!G43,'Connection Numbers Inputs'!G55,'Connection Numbers Inputs'!G67)) -> 5 | O23: =MAX('Connection Numbers Inputs'!G8,SUM('Connection Numbers Inputs'!G20,'Connection Numbers Inputs'!G32,'Connection Numbers Inputs'!G44,'Connection Numbers Inputs'!G56,'Connection Numbers Inputs'!G68)) -> 4 | P23: =MAX('Connection Numbers Inputs'!G9,SUM('Connection Numbers Inputs'!G21,'Connection Numbers Inputs'!G33,'Connection Numbers Inputs'!G45,'Connection Numbers Inputs'!G57,'Connection Numbers Inputs'!G69)) -> 4
C24: ='General Inputs'!#REF! ->  | F24: ='General Inputs'!B26 -> Tariff D: Riverview | G24: Total | L24: =MAX('Connection Numbers Inputs'!H5,SUM('Connection Numbers Inputs'!H17,'Connection Numbers Inputs'!H29,'Connection Numbers Inputs'!H41,'Connection Numbers Inputs'!H53,'Connection Numbers Inputs'!H65)) -> 2 | M24: =MAX('Connection Numbers Inputs'!H6,SUM('Connection Numbers Inputs'!H18,'Connection Numbers Inputs'!H30,'Connection Numbers Inputs'!H42,'Connection Numbers Inputs'!H54,'Connection Numbers Inputs'!H66)) -> 2 | N24: =MAX('Connection Numbers Inputs'!H7,SUM('Connection Numbers Inputs'!H19,'Connection Numbers Inputs'!H31,'Connection Numbers Inputs'!H43,'Connection Numbers Inputs'!H55,'Connection Numbers Inputs'!H67)) -> 2 | O24: =MAX('Connection Numbers Inputs'!H8,SUM('Connection Numbers Inputs'!H20,'Connection Numbers Inputs'!H32,'Connection Numbers Inputs'!H44,'Connection Numbers Inputs'!H56,'Connection Numbers Inputs'!H68)) -> 2 | P24: =MAX('Connection Numbers Inputs'!H9,SUM('Connection Numbers Inputs'!H21,'Connection Numbers Inputs'!H33,'Connection Numbers Inputs'!H45,'Connection Numbers Inputs'!H57,'Connection Numbers Inputs'!H69)) -> 2
C25: ='General Inputs'!#REF! ->  | F25: ='General Inputs'!B27 -> 0 | G25: Total | L25: =MAX('Connection Numbers Inputs'!J5,SUM('Connection Numbers Inputs'!J17,'Connection Numbers Inputs'!J29,'Connection Numbers Inputs'!J41,'Connection Numbers Inputs'!J53,'Connection Numbers Inputs'!J65)) -> 2955 | M25: =MAX('Connection Numbers Inputs'!J6,SUM('Connection Numbers Inputs'!J18,'Connection Numbers Inputs'!J30,'Connection Numbers Inputs'!J42,'Connection Numbers Inputs'!J54,'Connection Numbers Inputs'!J66)) -> 3032 | N25: =MAX('Connection Numbers Inputs'!J7,SUM('Connection Numbers Inputs'!J19,'Connection Numbers Inputs'!J31,'Connection Numbers Inputs'!J43,'Connection Numbers Inputs'!J55,'Connection Numbers Inputs'!J67)) -> 3165 | O25: =MAX('Connection Numbers Inputs'!J8,SUM('Connection Numbers Inputs'!J20,'Connection Numbers Inputs'!J32,'Connection Numbers Inputs'!J44,'Connection Numbers Inputs'!J56,'Connection Numbers Inputs'!J68)) -> 3149.9 | P25: =MAX('Connection Numbers Inputs'!J9,SUM('Connection Numbers Inputs'!J21,'Connection Numbers Inputs'!J33,'Connection Numbers Inputs'!J45,'Connection Numbers Inputs'!J57,'Connection Numbers Inputs'!J69)) -> 3176.2
C26: ='General Inputs'!#REF! ->  | F26: ='General Inputs'!B28 -> 0 | G26: Total | L26: =MAX('Connection Numbers Inputs'!I5,SUM('Connection Numbers Inputs'!I17,'Connection Numbers Inputs'!I29,'Connection Numbers Inputs'!I41,'Connection Numbers Inputs'!I53,'Connection Numbers Inputs'!I65)) -> 70997 | M26: =MAX('Connection Numbers Inputs'!I6,SUM('Connection Numbers Inputs'!I18,'Connection Numbers Inputs'!I30,'Connection Numbers Inputs'!I42,'Connection Numbers Inputs'!I54,'Connection Numbers Inputs'!I66)) -> 73145 | N26: =MAX('Connection Numbers Inputs'!I7,SUM('Connection Numbers Inputs'!I19,'Connection Numbers Inputs'!I31,'Connection Numbers Inputs'!I43,'Connection Numbers Inputs'!I55,'Connection Numbers Inputs'!I67)) -> 75098 | O26: =MAX('Connection Numbers Inputs'!I8,SUM('Connection Numbers Inputs'!I20,'Connection Numbers Inputs'!I32,'Connection Numbers Inputs'!I44,'Connection Numbers Inputs'!I56,'Connection Numbers Inputs'!I68)) -> 77524.4 | P26: =MAX('Connection Numbers Inputs'!I9,SUM('Connection Numbers Inputs'!I21,'Connection Numbers Inputs'!I33,'Connection Numbers Inputs'!I45,'Connection Numbers Inputs'!I57,'Connection Numbers Inputs'!I69)) -> 79100.2
C27: ='General Inputs'!#REF! ->  | F27: ='General Inputs'!B29 -> 0 | G27: Total | L27: =MAX('Connection Numbers Inputs'!K5,SUM('Connection Numbers Inputs'!K17,'Connection Numbers Inputs'!K29,'Connection Numbers Inputs'!K41,'Connection Numbers Inputs'!K53,'Connection Numbers Inputs'!K65)) -> 0 | M27: =MAX('Connection Numbers Inputs'!K6,SUM('Connection Numbers Inputs'!K18,'Connection Numbers Inputs'!K30,'Connection Numbers Inputs'!K42,'Connection Numbers Inputs'!K54,'Connection Numbers Inputs'!K66)) -> 0 | N27: =MAX('Connection Numbers Inputs'!K7,SUM('Connection Numbers Inputs'!K19,'Connection Numbers Inputs'!K31,'Connection Numbers Inputs'!K43,'Connection Numbers Inputs'!K55,'Connection Numbers Inputs'!K67)) -> 0 | O27: =MAX('Connection Numbers Inputs'!K8,SUM('Connection Numbers Inputs'!K20,'Connection Numbers Inputs'!K32,'Connection Numbers Inputs'!K44,'Connection Numbers Inputs'!K56,'Connection Numbers Inputs'!K68)) -> 0 | P27: =MAX('Connection Numbers Inputs'!K9,SUM('Connection Numbers Inputs'!K21,'Connection Numbers Inputs'!K33,'Connection Numbers Inputs'!K45,'Connection Numbers Inputs'!K57,'Connection Numbers Inputs'!K69)) -> 0
C28: ='General Inputs'!#REF! ->  | F28: ='General Inputs'!B30 -> 0 | G28: Total | L28: =MAX('Connection Numbers Inputs'!M5,SUM('Connection Numbers Inputs'!M17,'Connection Numbers Inputs'!M29,'Connection Numbers Inputs'!M41,'Connection Numbers Inputs'!M53,'Connection Numbers Inputs'!M65)) -> 0 | M28: =MAX('Connection Numbers Inputs'!M6,SUM('Connection Numbers Inputs'!M18,'Connection Numbers Inputs'!M30,'Connection Numbers Inputs'!M42,'Connection Numbers Inputs'!M54,'Connection Numbers Inputs'!M66)) -> 0 | N28: =MAX('Connection Numbers Inputs'!M7,SUM('Connection Numbers Inputs'!M19,'Connection Numbers Inputs'!M31,'Connection Numbers Inputs'!M43,'Connection Numbers Inputs'!M55,'Connection Numbers Inputs'!M67)) -> 0 | O28: =MAX('Connection Numbers Inputs'!M8,SUM('Connection Numbers Inputs'!M20,'Connection Numbers Inputs'!M32,'Connection Numbers Inputs'!M44,'Connection Numbers Inputs'!M56,'Connection Numbers Inputs'!M68)) -> 0 | P28: =MAX('Connection Numbers Inputs'!M9,SUM('Connection Numbers Inputs'!M21,'Connection Numbers Inputs'!M33,'Connection Numbers Inputs'!M45,'Connection Numbers Inputs'!M57,'Connection Numbers Inputs'!M69)) -> 0
C29: ='General Inputs'!#REF! ->  | F29: ='General Inputs'!B31 -> 0 | G29: Total | L29: =MAX('Connection Numbers Inputs'!L5,SUM('Connection Numbers Inputs'!L17,'Connection Numbers Inputs'!L29,'Connection Numbers Inputs'!L41,'Connection Numbers Inputs'!L53,'Connection Numbers Inputs'!L65)) -> 0 | M29: =MAX('Connection Numbers Inputs'!L6,SUM('Connection Numbers Inputs'!L18,'Connection Numbers Inputs'!L30,'Connection Numbers Inputs'!L42,'Connection Numbers Inputs'!L54,'Connection Numbers Inputs'!L66)) -> 0 | N29: =MAX('Connection Numbers Inputs'!L7,SUM('Connection Numbers Inputs'!L19,'Connection Numbers Inputs'!L31,'Connection Numbers Inputs'!L43,'Connection Numbers Inputs'!L55,'Connection Numbers Inputs'!L67)) -> 0 | O29: =MAX('Connection Numbers Inputs'!L8,SUM('Connection Numbers Inputs'!L20,'Connection Numbers Inputs'!L32,'Connection Numbers Inputs'!L44,'Connection Numbers Inputs'!L56,'Connection Numbers Inputs'!L68)) -> 0 | P29: =MAX('Connection Numbers Inputs'!L9,SUM('Connection Numbers Inputs'!L21,'Connection Numbers Inputs'!L33,'Connection Numbers Inputs'!L45,'Connection Numbers Inputs'!L57,'Connection Numbers Inputs'!L69)) -> 0
C30: ='General Inputs'!#REF! ->  | F30: ='General Inputs'!B32 -> 0 | G30: Total | L30: =MAX('Connection Numbers Inputs'!N5,SUM('Connection Numbers Inputs'!N17,'Connection Numbers Inputs'!N29,'Connection Numbers Inputs'!N41,'Connection Numbers Inputs'!N53,'Connection Numbers Inputs'!N65)) -> 0 | M30: =MAX('Connection Numbers Inputs'!N6,SUM('Connection Numbers Inputs'!N18,'Connection Numbers Inputs'!N30,'Connection Numbers Inputs'!N42,'Connection Numbers Inputs'!N54,'Connection Numbers Inputs'!N66)) -> 0 | N30: =MAX('Connection Numbers Inputs'!N7,SUM('Connection Numbers Inputs'!N19,'Connection Numbers Inputs'!N31,'Connection Numbers Inputs'!N43,'Connection Numbers Inputs'!N55,'Connection Numbers Inputs'!N67)) -> 0 | O30: =MAX('Connection Numbers Inputs'!N8,SUM('Connection Numbers Inputs'!N20,'Connection Numbers Inputs'!N32,'Connection Numbers Inputs'!N44,'Connection Numbers Inputs'!N56,'Connection Numbers Inputs'!N68)) -> 0 | P30: =MAX('Connection Numbers Inputs'!N9,SUM('Connection Numbers Inputs'!N21,'Connection Numbers Inputs'!N33,'Connection Numbers Inputs'!N45,'Connection Numbers Inputs'!N57,'Connection Numbers Inputs'!N69)) -> 0
C31: ='General Inputs'!#REF! ->  | F31: ='General Inputs'!B33 -> 0 | G31: Total | L31: =MAX('Connection Numbers Inputs'!O5,SUM('Connection Numbers Inputs'!O17,'Connection Numbers Inputs'!O29,'Connection Numbers Inputs'!O41,'Connection Numbers Inputs'!O53,'Connection Numbers Inputs'!O65)) -> 0 | M31: =MAX('Connection Numbers Inputs'!O6,SUM('Connection Numbers Inputs'!O18,'Connection Numbers Inputs'!O30,'Connection Numbers Inputs'!O42,'Connection Numbers Inputs'!O54,'Connection Numbers Inputs'!O66)) -> 0 | N31: =MAX('Connection Numbers Inputs'!O7,SUM('Connection Numbers Inputs'!O19,'Connection Numbers Inputs'!O31,'Connection Numbers Inputs'!O43,'Connection Numbers Inputs'!O55,'Connection Numbers Inputs'!O67)) -> 0 | O31: =MAX('Connection Numbers Inputs'!O8,SUM('Connection Numbers Inputs'!O20,'Connection Numbers Inputs'!O32,'Connection Numbers Inputs'!O44,'Connection Numbers Inputs'!O56,'Connection Numbers Inputs'!O68)) -> 0 | P31: =MAX('Connection Numbers Inputs'!O9,SUM('Connection Numbers Inputs'!O21,'Connection Numbers Inputs'!O33,'Connection Numbers Inputs'!O45,'Connection Numbers Inputs'!O57,'Connection Numbers Inputs'!O69)) -> 0
C32: ='General Inputs'!#REF! ->  | F32: ='General Inputs'!B34 -> 0 | G32: Total | L32: =MAX('Connection Numbers Inputs'!Q5,SUM('Connection Numbers Inputs'!Q17,'Connection Numbers Inputs'!Q29,'Connection Numbers Inputs'!Q41,'Connection Numbers Inputs'!Q53,'Connection Numbers Inputs'!Q65)) -> 0 | M32: =MAX('Connection Numbers Inputs'!Q6,SUM('Connection Numbers Inputs'!Q18,'Connection Numbers Inputs'!Q30,'Connection Numbers Inputs'!Q42,'Connection Numbers Inputs'!Q54,'Connection Numbers Inputs'!Q66)) -> 0 | N32: =MAX('Connection Numbers Inputs'!Q7,SUM('Connection Numbers Inputs'!Q19,'Connection Numbers Inputs'!Q31,'Connection Numbers Inputs'!Q43,'Connection Numbers Inputs'!Q55,'Connection Numbers Inputs'!Q67)) -> 0 | O32: =MAX('Connection Numbers Inputs'!Q8,SUM('Connection Numbers Inputs'!Q20,'Connection Numbers Inputs'!Q32,'Connection Numbers Inputs'!Q44,'Connection Numbers Inputs'!Q56,'Connection Numbers Inputs'!Q68)) -> 0 | P32: =MAX('Connection Numbers Inputs'!Q9,SUM('Connection Numbers Inputs'!Q21,'Connection Numbers Inputs'!Q33,'Connection Numbers Inputs'!Q45,'Connection Numbers Inputs'!Q57,'Connection Numbers Inputs'!Q69)) -> 0
C33: ='General Inputs'!#REF! ->  | F33: ='General Inputs'!B35 -> 0 | G33: Total | L33: =MAX('Connection Numbers Inputs'!P5,SUM('Connection Numbers Inputs'!P17,'Connection Numbers Inputs'!P29,'Connection Numbers Inputs'!P41,'Connection Numbers Inputs'!P53,'Connection Numbers Inputs'!P65)) -> 0 | M33: =MAX('Connection Numbers Inputs'!P6,SUM('Connection Numbers Inputs'!P18,'Connection Numbers Inputs'!P30,'Connection Numbers Inputs'!P42,'Connection Numbers Inputs'!P54,'Connection Numbers Inputs'!P66)) -> 0 | N33: =MAX('Connection Numbers Inputs'!P7,SUM('Connection Numbers Inputs'!P19,'Connection Numbers Inputs'!P31,'Connection Numbers Inputs'!P43,'Connection Numbers Inputs'!P55,'Connection Numbers Inputs'!P67)) -> 0 | O33: =MAX('Connection Numbers Inputs'!P8,SUM('Connection Numbers Inputs'!P20,'Connection Numbers Inputs'!P32,'Connection Numbers Inputs'!P44,'Connection Numbers Inputs'!P56,'Connection Numbers Inputs'!P68)) -> 0 | P33: =MAX('Connection Numbers Inputs'!P9,SUM('Connection Numbers Inputs'!P21,'Connection Numbers Inputs'!P33,'Connection Numbers Inputs'!P45,'Connection Numbers Inputs'!P57,'Connection Numbers Inputs'!P69)) -> 0
C34: ='General Inputs'!#REF! ->  | F34: ='General Inputs'!#REF! ->  | G34: Total | L34: =MAX('Connection Numbers Inputs'!#REF!,SUM('Connection Numbers Inputs'!#REF!,'Connection Numbers Inputs'!#REF!,'Connection Numbers Inputs'!#REF!,'Connection Numbers Inputs'!#REF!,'Connection Numbers Inputs'!#REF!)) ->  | M34: =MAX('Connection Numbers Inputs'!#REF!,SUM('Connection Numbers Inputs'!#REF!,'Connection Numbers Inputs'!#REF!,'Connection Numbers Inputs'!#REF!,'Connection Numbers Inputs'!#REF!,'Connection Numbers Inputs'!#REF!)) ->  | N34: =MAX('Connection Numbers Inputs'!#REF!,SUM('Connection Numbers Inputs'!#REF!,'Connection Numbers Inputs'!#REF!,'Connection Numbers Inputs'!#REF!,'Connection Numbers Inputs'!#REF!,'Connection Numbers Inputs'!#REF!)) ->  | O34: =MAX('Connection Numbers Inputs'!#REF!,SUM('Connection Numbers Inputs'!#REF!,'Connection Numbers Inputs'!#REF!,'Connection Numbers Inputs'!#REF!,'Connection Numbers Inputs'!#REF!,'Connection Numbers Inputs'!#REF!)) ->  | P34: =MAX('Connection Numbers Inputs'!#REF!,SUM('Connection Numbers Inputs'!#REF!,'Connection Numbers Inputs'!#REF!,'Connection Numbers Inputs'!#REF!,'Connection Numbers Inputs'!#REF!,'Connection Numbers Inputs'!#REF!)) -> 
C35: ='General Inputs'!#REF! ->  | F35: ='General Inputs'!#REF! ->  | G35: Total | L35: =MAX('Connection Numbers Inputs'!#REF!,SUM('Connection Numbers Inputs'!#REF!,'Connection Numbers Inputs'!#REF!,'Connection Numbers Inputs'!#REF!,'Connection Numbers Inputs'!#REF!,'Connection Numbers Inputs'!#REF!)) ->  | M35: =MAX('Connection Numbers Inputs'!#REF!,SUM('Connection Numbers Inputs'!#REF!,'Connection Numbers Inputs'!#REF!,'Connection Numbers Inputs'!#REF!,'Connection Numbers Inputs'!#REF!,'Connection Numbers Inputs'!#REF!)) ->  | N35: =MAX('Connection Numbers Inputs'!#REF!,SUM('Connection Numbers Inputs'!#REF!,'Connection Numbers Inputs'!#REF!,'Connection Numbers Inputs'!#REF!,'Connection Numbers Inputs'!#REF!,'Connection Numbers Inputs'!#REF!)) ->  | O35: =MAX('Connection Numbers Inputs'!#REF!,SUM('Connection Numbers Inputs'!#REF!,'Connection Numbers Inputs'!#REF!,'Connection Numbers Inputs'!#REF!,'Connection Numbers Inputs'!#REF!,'Connection Numbers Inputs'!#REF!)) ->  | P35: =MAX('Connection Numbers Inputs'!#REF!,SUM('Connection Numbers Inputs'!#REF!,'Connection Numbers Inputs'!#REF!,'Connection Numbers Inputs'!#REF!,'Connection Numbers Inputs'!#REF!,'Connection Numbers Inputs'!#REF!)) -> 
C36: ='General Inputs'!#REF! ->  | F36: ='General Inputs'!#REF! ->  | G36: Total | L36: =MAX('Connection Numbers Inputs'!#REF!,SUM('Connection Numbers Inputs'!#REF!,'Connection Numbers Inputs'!#REF!,'Connection Numbers Inputs'!#REF!,'Connection Numbers Inputs'!#REF!,'Connection Numbers Inputs'!#REF!)) ->  | M36: =MAX('Connection Numbers Inputs'!#REF!,SUM('Connection Numbers Inputs'!#REF!,'Connection Numbers Inputs'!#REF!,'Connection Numbers Inputs'!#REF!,'Connection Numbers Inputs'!#REF!,'Connection Numbers Inputs'!#REF!)) ->  | N36: =MAX('Connection Numbers Inputs'!#REF!,SUM('Connection Numbers Inputs'!#REF!,'Connection Numbers Inputs'!#REF!,'Connection Numbers Inputs'!#REF!,'Connection Numbers Inputs'!#REF!,'Connection Numbers Inputs'!#REF!)) ->  | O36: =MAX('Connection Numbers Inputs'!#REF!,SUM('Connection Numbers Inputs'!#REF!,'Connection Numbers Inputs'!#REF!,'Connection Numbers Inputs'!#REF!,'Connection Numbers Inputs'!#REF!,'Connection Numbers Inputs'!#REF!)) ->  | P36: =MAX('Connection Numbers Inputs'!#REF!,SUM('Connection Numbers Inputs'!#REF!,'Connection Numbers Inputs'!#REF!,'Connection Numbers Inputs'!#REF!,'Connection Numbers Inputs'!#REF!,'Connection Numbers Inputs'!#REF!)) -> 
C37: ='General Inputs'!#REF! ->  | F37: ='General Inputs'!#REF! ->  | G37: Total | L37: =MAX('Connection Numbers Inputs'!#REF!,SUM('Connection Numbers Inputs'!#REF!,'Connection Numbers Inputs'!#REF!,'Connection Numbers Inputs'!#REF!,'Connection Numbers Inputs'!#REF!,'Connection Numbers Inputs'!#REF!)) ->  | M37: =MAX('Connection Numbers Inputs'!#REF!,SUM('Connection Numbers Inputs'!#REF!,'Connection Numbers Inputs'!#REF!,'Connection Numbers Inputs'!#REF!,'Connection Numbers Inputs'!#REF!,'Connection Numbers Inputs'!#REF!)) ->  | N37: =MAX('Connection Numbers Inputs'!#REF!,SUM('Connection Numbers Inputs'!#REF!,'Connection Numbers Inputs'!#REF!,'Connection Numbers Inputs'!#REF!,'Connection Numbers Inputs'!#REF!,'Connection Numbers Inputs'!#REF!)) ->  | O37: =MAX('Connection Numbers Inputs'!#REF!,SUM('Connection Numbers Inputs'!#REF!,'Connection Numbers Inputs'!#REF!,'Connection Numbers Inputs'!#REF!,'Connection Numbers Inputs'!#REF!,'Connection Numbers Inputs'!#REF!)) ->  | P37: =MAX('Connection Numbers Inputs'!#REF!,SUM('Connection Numbers Inputs'!#REF!,'Connection Numbers Inputs'!#REF!,'Connection Numbers Inputs'!#REF!,'Connection Numbers Inputs'!#REF!,'Connection Numbers Inputs'!#REF!)) -> 
C38: ='General Inputs'!#REF! ->  | F38: ='General Inputs'!#REF! ->  | G38: Total | L38: =MAX('Connection Numbers Inputs'!#REF!,SUM('Connection Numbers Inputs'!#REF!,'Connection Numbers Inputs'!#REF!,'Connection Numbers Inputs'!#REF!,'Connection Numbers Inputs'!#REF!,'Connection Numbers Inputs'!#REF!)) ->  | M38: =MAX('Connection Numbers Inputs'!#REF!,SUM('Connection Numbers Inputs'!#REF!,'Connection Numbers Inputs'!#REF!,'Connection Numbers Inputs'!#REF!,'Connection Numbers Inputs'!#REF!,'Connection Numbers Inputs'!#REF!)) ->  | N38: =MAX('Connection Numbers Inputs'!#REF!,SUM('Connection Numbers Inputs'!#REF!,'Connection Numbers Inputs'!#REF!,'Connection Numbers Inputs'!#REF!,'Connection Numbers Inputs'!#REF!,'Connection Numbers Inputs'!#REF!)) ->  | O38: =MAX('Connection Numbers Inputs'!#REF!,SUM('Connection Numbers Inputs'!#REF!,'Connection Numbers Inputs'!#REF!,'Connection Numbers Inputs'!#REF!,'Connection Numbers Inputs'!#REF!,'Connection Numbers Inputs'!#REF!)) ->  | P38: =MAX('Connection Numbers Inputs'!#REF!,SUM('Connection Numbers Inputs'!#REF!,'Connection Numbers Inputs'!#REF!,'Connection Numbers Inputs'!#REF!,'Connection Numbers Inputs'!#REF!,'Connection Numbers Inputs'!#REF!)) -> 
C39: ='General Inputs'!#REF! ->  | F39: ='General Inputs'!#REF! ->  | G39: Total | L39: =MAX('Connection Numbers Inputs'!#REF!,SUM('Connection Numbers Inputs'!#REF!,'Connection Numbers Inputs'!#REF!,'Connection Numbers Inputs'!#REF!,'Connection Numbers Inputs'!#REF!,'Connection Numbers Inputs'!#REF!)) ->  | M39: =MAX('Connection Numbers Inputs'!#REF!,SUM('Connection Numbers Inputs'!#REF!,'Connection Numbers Inputs'!#REF!,'Connection Numbers Inputs'!#REF!,'Connection Numbers Inputs'!#REF!,'Connection Numbers Inputs'!#REF!)) ->  | N39: =MAX('Connection Numbers Inputs'!#REF!,SUM('Connection Numbers Inputs'!#REF!,'Connection Numbers Inputs'!#REF!,'Connection Numbers Inputs'!#REF!,'Connection Numbers Inputs'!#REF!,'Connection Numbers Inputs'!#REF!)) ->  | O39: =MAX('Connection Numbers Inputs'!#REF!,SUM('Connection Numbers Inputs'!#REF!,'Connection Numbers Inputs'!#REF!,'Connection Numbers Inputs'!#REF!,'Connection Numbers Inputs'!#REF!,'Connection Numbers Inputs'!#REF!)) ->  | P39: =MAX('Connection Numbers Inputs'!#REF!,SUM('Connection Numbers Inputs'!#REF!,'Connection Numbers Inputs'!#REF!,'Connection Numbers Inputs'!#REF!,'Connection Numbers Inputs'!#REF!,'Connection Numbers Inputs'!#REF!)) -> 
C40: ='General Inputs'!#REF! ->  | F40: ='General Inputs'!#REF! ->  | G40: Total | L40: =MAX('Connection Numbers Inputs'!#REF!,SUM('Connection Numbers Inputs'!#REF!,'Connection Numbers Inputs'!#REF!,'Connection Numbers Inputs'!#REF!,'Connection Numbers Inputs'!#REF!,'Connection Numbers Inputs'!#REF!)) ->  | M40: =MAX('Connection Numbers Inputs'!#REF!,SUM('Connection Numbers Inputs'!#REF!,'Connection Numbers Inputs'!#REF!,'Connection Numbers Inputs'!#REF!,'Connection Numbers Inputs'!#REF!,'Connection Numbers Inputs'!#REF!)) ->  | N40: =MAX('Connection Numbers Inputs'!#REF!,SUM('Connection Numbers Inputs'!#REF!,'Connection Numbers Inputs'!#REF!,'Connection Numbers Inputs'!#REF!,'Connection Numbers Inputs'!#REF!,'Connection Numbers Inputs'!#REF!)) ->  | O40: =MAX('Connection Numbers Inputs'!#REF!,SUM('Connection Numbers Inputs'!#REF!,'Connection Numbers Inputs'!#REF!,'Connection Numbers Inputs'!#REF!,'Connection Numbers Inputs'!#REF!,'Connection Numbers Inputs'!#REF!)) ->  | P40: =MAX('Connection Numbers Inputs'!#REF!,SUM('Connection Numbers Inputs'!#REF!,'Connection Numbers Inputs'!#REF!,'Connection Numbers Inputs'!#REF!,'Connection Numbers Inputs'!#REF!,'Connection Numbers Inputs'!#REF!)) -> 
C41: ='General Inputs'!#REF! ->  | F41: ='General Inputs'!#REF! ->  | G41: Total | L41: =MAX('Connection Numbers Inputs'!#REF!,SUM('Connection Numbers Inputs'!#REF!,'Connection Numbers Inputs'!#REF!,'Connection Numbers Inputs'!#REF!,'Connection Numbers Inputs'!#REF!,'Connection Numbers Inputs'!#REF!)) ->  | M41: =MAX('Connection Numbers Inputs'!#REF!,SUM('Connection Numbers Inputs'!#REF!,'Connection Numbers Inputs'!#REF!,'Connection Numbers Inputs'!#REF!,'Connection Numbers Inputs'!#REF!,'Connection Numbers Inputs'!#REF!)) ->  | N41: =MAX('Connection Numbers Inputs'!#REF!,SUM('Connection Numbers Inputs'!#REF!,'Connection Numbers Inputs'!#REF!,'Connection Numbers Inputs'!#REF!,'Connection Numbers Inputs'!#REF!,'Connection Numbers Inputs'!#REF!)) ->  | O41: =MAX('Connection Numbers Inputs'!#REF!,SUM('Connection Numbers Inputs'!#REF!,'Connection Numbers Inputs'!#REF!,'Connection Numbers Inputs'!#REF!,'Connection Numbers Inputs'!#REF!,'Connection Numbers Inputs'!#REF!)) ->  | P41: =MAX('Connection Numbers Inputs'!#REF!,SUM('Connection Numbers Inputs'!#REF!,'Connection Numbers Inputs'!#REF!,'Connection Numbers Inputs'!#REF!,'Connection Numbers Inputs'!#REF!,'Connection Numbers Inputs'!#REF!)) -> 
C42: ='General Inputs'!#REF! ->  | F42: ='General Inputs'!#REF! ->  | G42: Total | L42: =MAX('Connection Numbers Inputs'!#REF!,SUM('Connection Numbers Inputs'!#REF!,'Connection Numbers Inputs'!#REF!,'Connection Numbers Inputs'!#REF!,'Connection Numbers Inputs'!#REF!,'Connection Numbers Inputs'!#REF!)) ->  | M42: =MAX('Connection Numbers Inputs'!#REF!,SUM('Connection Numbers Inputs'!#REF!,'Connection Numbers Inputs'!#REF!,'Connection Numbers Inputs'!#REF!,'Connection Numbers Inputs'!#REF!,'Connection Numbers Inputs'!#REF!)) ->  | N42: =MAX('Connection Numbers Inputs'!#REF!,SUM('Connection Numbers Inputs'!#REF!,'Connection Numbers Inputs'!#REF!,'Connection Numbers Inputs'!#REF!,'Connection Numbers Inputs'!#REF!,'Connection Numbers Inputs'!#REF!)) ->  | O42: =MAX('Connection Numbers Inputs'!#REF!,SUM('Connection Numbers Inputs'!#REF!,'Connection Numbers Inputs'!#REF!,'Connection Numbers Inputs'!#REF!,'Connection Numbers Inputs'!#REF!,'Connection Numbers Inputs'!#REF!)) ->  | P42: =MAX('Connection Numbers Inputs'!#REF!,SUM('Connection Numbers Inputs'!#REF!,'Connection Numbers Inputs'!#REF!,'Connection Numbers Inputs'!#REF!,'Connection Numbers Inputs'!#REF!,'Connection Numbers Inputs'!#REF!)) -> 
C43: ='General Inputs'!#REF! ->  | F43: ='General Inputs'!#REF! ->  | G43: Total | L43: =MAX('Connection Numbers Inputs'!#REF!,SUM('Connection Numbers Inputs'!#REF!,'Connection Numbers Inputs'!#REF!,'Connection Numbers Inputs'!#REF!,'Connection Numbers Inputs'!#REF!,'Connection Numbers Inputs'!#REF!)) ->  | M43: =MAX('Connection Numbers Inputs'!#REF!,SUM('Connection Numbers Inputs'!#REF!,'Connection Numbers Inputs'!#REF!,'Connection Numbers Inputs'!#REF!,'Connection Numbers Inputs'!#REF!,'Connection Numbers Inputs'!#REF!)) ->  | N43: =MAX('Connection Numbers Inputs'!#REF!,SUM('Connection Numbers Inputs'!#REF!,'Connection Numbers Inputs'!#REF!,'Connection Numbers Inputs'!#REF!,'Connection Numbers Inputs'!#REF!,'Connection Numbers Inputs'!#REF!)) ->  | O43: =MAX('Connection Numbers Inputs'!#REF!,SUM('Connection Numbers Inputs'!#REF!,'Connection Numbers Inputs'!#REF!,'Connection Numbers Inputs'!#REF!,'Connection Numbers Inputs'!#REF!,'Connection Numbers Inputs'!#REF!)) ->  | P43: =MAX('Connection Numbers Inputs'!#REF!,SUM('Connection Numbers Inputs'!#REF!,'Connection Numbers Inputs'!#REF!,'Connection Numbers Inputs'!#REF!,'Connection Numbers Inputs'!#REF!,'Connection Numbers Inputs'!#REF!)) -> 
C44: ='General Inputs'!#REF! ->  | F44: ='General Inputs'!#REF! ->  | G44: Total | L44: =MAX('Connection Numbers Inputs'!#REF!,SUM('Connection Numbers Inputs'!#REF!,'Connection Numbers Inputs'!#REF!,'Connection Numbers Inputs'!#REF!,'Connection Numbers Inputs'!#REF!,'Connection Numbers Inputs'!#REF!)) ->  | M44: =MAX('Connection Numbers Inputs'!#REF!,SUM('Connection Numbers Inputs'!#REF!,'Connection Numbers Inputs'!#REF!,'Connection Numbers Inputs'!#REF!,'Connection Numbers Inputs'!#REF!,'Connection Numbers Inputs'!#REF!)) ->  | N44: =MAX('Connection Numbers Inputs'!#REF!,SUM('Connection Numbers Inputs'!#REF!,'Connection Numbers Inputs'!#REF!,'Connection Numbers Inputs'!#REF!,'Connection Numbers Inputs'!#REF!,'Connection Numbers Inputs'!#REF!)) ->  | O44: =MAX('Connection Numbers Inputs'!#REF!,SUM('Connection Numbers Inputs'!#REF!,'Connection Numbers Inputs'!#REF!,'Connection Numbers Inputs'!#REF!,'Connection Numbers Inputs'!#REF!,'Connection Numbers Inputs'!#REF!)) ->  | P44: =MAX('Connection Numbers Inputs'!#REF!,SUM('Connection Numbers Inputs'!#REF!,'Connection Numbers Inputs'!#REF!,'Connection Numbers Inputs'!#REF!,'Connection Numbers Inputs'!#REF!,'Connection Numbers Inputs'!#REF!)) -> 
C45: ='General Inputs'!#REF! ->  | F45: ='General Inputs'!#REF! ->  | G45: Total | L45: =MAX('Connection Numbers Inputs'!#REF!,SUM('Connection Numbers Inputs'!#REF!,'Connection Numbers Inputs'!#REF!,'Connection Numbers Inputs'!#REF!,'Connection Numbers Inputs'!#REF!,'Connection Numbers Inputs'!#REF!)) ->  | M45: =MAX('Connection Numbers Inputs'!#REF!,SUM('Connection Numbers Inputs'!#REF!,'Connection Numbers Inputs'!#REF!,'Connection Numbers Inputs'!#REF!,'Connection Numbers Inputs'!#REF!,'Connection Numbers Inputs'!#REF!)) ->  | N45: =MAX('Connection Numbers Inputs'!#REF!,SUM('Connection Numbers Inputs'!#REF!,'Connection Numbers Inputs'!#REF!,'Connection Numbers Inputs'!#REF!,'Connection Numbers Inputs'!#REF!,'Connection Numbers Inputs'!#REF!)) ->  | O45: =MAX('Connection Numbers Inputs'!#REF!,SUM('Connection Numbers Inputs'!#REF!,'Connection Numbers Inputs'!#REF!,'Connection Numbers Inputs'!#REF!,'Connection Numbers Inputs'!#REF!,'Connection Numbers Inputs'!#REF!)) ->  | P45: =MAX('Connection Numbers Inputs'!#REF!,SUM('Connection Numbers Inputs'!#REF!,'Connection Numbers Inputs'!#REF!,'Connection Numbers Inputs'!#REF!,'Connection Numbers Inputs'!#REF!,'Connection Numbers Inputs'!#REF!)) -> 
C46: ='General Inputs'!#REF! ->  | F46: ='General Inputs'!#REF! ->  | G46: Total | L46: =MAX('Connection Numbers Inputs'!#REF!,SUM('Connection Numbers Inputs'!#REF!,'Connection Numbers Inputs'!#REF!,'Connection Numbers Inputs'!#REF!,'Connection Numbers Inputs'!#REF!,'Connection Numbers Inputs'!#REF!)) ->  | M46: =MAX('Connection Numbers Inputs'!#REF!,SUM('Connection Numbers Inputs'!#REF!,'Connection Numbers Inputs'!#REF!,'Connection Numbers Inputs'!#REF!,'Connection Numbers Inputs'!#REF!,'Connection Numbers Inputs'!#REF!)) ->  | N46: =MAX('Connection Numbers Inputs'!#REF!,SUM('Connection Numbers Inputs'!#REF!,'Connection Numbers Inputs'!#REF!,'Connection Numbers Inputs'!#REF!,'Connection Numbers Inputs'!#REF!,'Connection Numbers Inputs'!#REF!)) ->  | O46: =MAX('Connection Numbers Inputs'!#REF!,SUM('Connection Numbers Inputs'!#REF!,'Connection Numbers Inputs'!#REF!,'Connection Numbers Inputs'!#REF!,'Connection Numbers Inputs'!#REF!,'Connection Numbers Inputs'!#REF!)) ->  | P46: =MAX('Connection Numbers Inputs'!#REF!,SUM('Connection Numbers Inputs'!#REF!,'Connection Numbers Inputs'!#REF!,'Connection Numbers Inputs'!#REF!,'Connection Numbers Inputs'!#REF!,'Connection Numbers Inputs'!#REF!)) -> 
C47: ='General Inputs'!#REF! ->  | F47: ='General Inputs'!#REF! ->  | G47: Total | L47: =MAX('Connection Numbers Inputs'!#REF!,SUM('Connection Numbers Inputs'!#REF!,'Connection Numbers Inputs'!#REF!,'Connection Numbers Inputs'!#REF!,'Connection Numbers Inputs'!#REF!,'Connection Numbers Inputs'!#REF!)) ->  | M47: =MAX('Connection Numbers Inputs'!#REF!,SUM('Connection Numbers Inputs'!#REF!,'Connection Numbers Inputs'!#REF!,'Connection Numbers Inputs'!#REF!,'Connection Numbers Inputs'!#REF!,'Connection Numbers Inputs'!#REF!)) ->  | N47: =MAX('Connection Numbers Inputs'!#REF!,SUM('Connection Numbers Inputs'!#REF!,'Connection Numbers Inputs'!#REF!,'Connection Numbers Inputs'!#REF!,'Connection Numbers Inputs'!#REF!,'Connection Numbers Inputs'!#REF!)) ->  | O47: =MAX('Connection Numbers Inputs'!#REF!,SUM('Connection Numbers Inputs'!#REF!,'Connection Numbers Inputs'!#REF!,'Connection Numbers Inputs'!#REF!,'Connection Numbers Inputs'!#REF!,'Connection Numbers Inputs'!#REF!)) ->  | P47: =MAX('Connection Numbers Inputs'!#REF!,SUM('Connection Numbers Inputs'!#REF!,'Connection Numbers Inputs'!#REF!,'Connection Numbers Inputs'!#REF!,'Connection Numbers Inputs'!#REF!,'Connection Numbers Inputs'!#REF!)) -> 
C48: ='General Inputs'!#REF! ->  | F48: ='General Inputs'!#REF! ->  | G48: Total | L48: =MAX('Connection Numbers Inputs'!#REF!,SUM('Connection Numbers Inputs'!#REF!,'Connection Numbers Inputs'!#REF!,'Connection Numbers Inputs'!#REF!,'Connection Numbers Inputs'!#REF!,'Connection Numbers Inputs'!#REF!)) ->  | M48: =MAX('Connection Numbers Inputs'!#REF!,SUM('Connection Numbers Inputs'!#REF!,'Connection Numbers Inputs'!#REF!,'Connection Numbers Inputs'!#REF!,'Connection Numbers Inputs'!#REF!,'Connection Numbers Inputs'!#REF!)) ->  | N48: =MAX('Connection Numbers Inputs'!#REF!,SUM('Connection Numbers Inputs'!#REF!,'Connection Numbers Inputs'!#REF!,'Connection Numbers Inputs'!#REF!,'Connection Numbers Inputs'!#REF!,'Connection Numbers Inputs'!#REF!)) ->  | O48: =MAX('Connection Numbers Inputs'!#REF!,SUM('Connection Numbers Inputs'!#REF!,'Connection Numbers Inputs'!#REF!,'Connection Numbers Inputs'!#REF!,'Connection Numbers Inputs'!#REF!,'Connection Numbers Inputs'!#REF!)) ->  | P48: =MAX('Connection Numbers Inputs'!#REF!,SUM('Connection Numbers Inputs'!#REF!,'Connection Numbers Inputs'!#REF!,'Connection Numbers Inputs'!#REF!,'Connection Numbers Inputs'!#REF!,'Connection Numbers Inputs'!#REF!)) -> 
C49: ='General Inputs'!#REF! ->  | F49: ='General Inputs'!#REF! ->  | G49: Total | L49: =MAX('Connection Numbers Inputs'!#REF!,SUM('Connection Numbers Inputs'!#REF!,'Connection Numbers Inputs'!#REF!,'Connection Numbers Inputs'!#REF!,'Connection Numbers Inputs'!#REF!,'Connection Numbers Inputs'!#REF!)) ->  | M49: =MAX('Connection Numbers Inputs'!#REF!,SUM('Connection Numbers Inputs'!#REF!,'Connection Numbers Inputs'!#REF!,'Connection Numbers Inputs'!#REF!,'Connection Numbers Inputs'!#REF!,'Connection Numbers Inputs'!#REF!)) ->  | N49: =MAX('Connection Numbers Inputs'!#REF!,SUM('Connection Numbers Inputs'!#REF!,'Connection Numbers Inputs'!#REF!,'Connection Numbers Inputs'!#REF!,'Connection Numbers Inputs'!#REF!,'Connection Numbers Inputs'!#REF!)) ->  | O49: =MAX('Connection Numbers Inputs'!#REF!,SUM('Connection Numbers Inputs'!#REF!,'Connection Numbers Inputs'!#REF!,'Connection Numbers Inputs'!#REF!,'Connection Numbers Inputs'!#REF!,'Connection Numbers Inputs'!#REF!)) ->  | P49: =MAX('Connection Numbers Inputs'!#REF!,SUM('Connection Numbers Inputs'!#REF!,'Connection Numbers Inputs'!#REF!,'Connection Numbers Inputs'!#REF!,'Connection Numbers Inputs'!#REF!,'Connection Numbers Inputs'!#REF!)) -> 
C50: Total | L50: =SUM(L20:L49) ->  | M50: =SUM(M20:M49) ->  | N50: =SUM(N20:N49) ->  | O50: =SUM(O20:O49) ->  | P50: =SUM(P20:P49) -> 

Sheet Volume Inputs
A1: Volume Inputs
B3: GJ/day | F3: MDQ(GJ)
A4: Price Band 1 | B4: ='General Inputs'!B20 -> Tariff V: Brisbane & Riverview | C4: ='General Inputs'!B21 -> Tariff V: Northern | D4: ='General Inputs'!B22 -> Tariff C: Brisbane & Riverview | E4: ='General Inputs'!B23 -> Tariff C: Northern | F4: ='General Inputs'!B24 -> Tariff D: Brisbane | G4: ='General Inputs'!B25 -> Tariff D: Northern | H4: ='General Inputs'!B26 -> Tariff D: Riverview | I4: ='General Inputs'!B20 -> Tariff V: Brisbane & Riverview | J4: ='General Inputs'!B21 -> Tariff V: Northern
A5: ='Connection Numbers Inputs'!A5 -> 2006/07 | B5: 644898.5849 | C5: 23248.83978 | D5: 185037.3282 | E5: 37939.52445 | F5: 2769 | G5: 250 | H5: 200 | I5: 644898.5849 | J5: 23248.83978
A6: ='Connection Numbers Inputs'!A6 -> 2007/08 | B6: 619077.8642 | C6: 23523.47479 | D6: 187030.0474 | E6: 38651.7884 | F6: 2819 | G6: 250 | H6: 200 | I6: 619077.8642 | J6: 23523.47479
A7: ='Connection Numbers Inputs'!A7 -> 2008/09 | B7: 655467.3696 | C7: 23876.1055 | D7: 216378.2476 | E7: 40309.69394 | F7: 2769 | G7: 250 | H7: 200 | I7: 655467.3696 | J7: 23876.1055
A8: ='Connection Numbers Inputs'!A8 -> 2009/10 | B8: 314627.4978 | C8: 5746.550262 | D8: 498456.779 | E8: 37365.73215 | F8: 2578.853604 | G8: 250 | H8: 200 | I8: 314627.4978 | J8: 5746.550262
A9: ='Connection Numbers Inputs'!A9 -> 2010/11 | B9: 310404.704 | C9: 5666.615255 | D9: 511694.2215 | E9: 38198.40937 | F9: 2604.238546 | G9: 250 | H9: 200 | I9: 310404.704 | J9: 5666.615255
A10: ='Connection Numbers Inputs'!A10 -> 2011/12 | B10: 179553.7627 | C10: 7501.974012 | D10: 537649.7255 | E10: 39633.23023 | F10: 2388.58082 | G10: 250 | H10: 100 | I10: 179553.7627 | J10: 7501.974012
A11: ='Connection Numbers Inputs'!A11 -> 2012/13 | B11: 179488.3038 | C11: 7490.994539 | D11: 551343.3201 | E11: 40433.08147 | F11: 2436.249631 | G11: 250 | H11: 100 | I11: 179488.3038 | J11: 7490.994539
A12: ='Connection Numbers Inputs'!A12 -> 2013/14 | B12: 178899.1737 | C12: 7453.065453 | D12: 550683.932 | E12: 40382.21373 | F12: 2413.120398 | G12: 250 | H12: 100 | I12: 178899.1737 | J12: 7453.065453
A13: ='Connection Numbers Inputs'!A13 -> 2014/15 | B13: 177582.1406 | C13: 7379.203548 | D13: 553009.8559 | E13: 40430.07451 | F13: 2413.301979 | G13: 250 | H13: 100 | I13: 177582.1406 | J13: 7379.203548
A14: ='Connection Numbers Inputs'!A14 -> 2015/16 | B14: 179014.3813 | C14: 7422.456015 | D14: 563668.4585 | E14: 40999.39218 | F14: 2463.06361 | G14: 250 | H14: 100 | I14: 179014.3813 | J14: 7422.456015
A16: Price Band 2 | B16: Tariff V: Brisbane & Riverview | C16: Tariff V: Northern | D16: Tariff C: Brisbane & Riverview | E16: Tariff C: Northern | F16: Tariff D: Brisbane | G16: Tariff D: Northern | H16: Tariff D: Riverview | I16: Tariff V: Brisbane & Riverview | J16: Tariff V: Northern
A17: =A5 -> 2006/07 | B17: 14561.3251 | C17: 0 | D17: 165676.0321 | E17: 31079.4758 | F17: 3041 | G17: 152 | H17: 300 | I17: 14561.3251 | J17: 0
A18: 2007/08 | B18: 14429.87166 | C18: 0 | D18: 157250.8934 | E18: 31405.39535 | F18: 3116 | G18: 152 | H18: 300 | I18: 14429.87166 | J18: 0
A19: 2008/09 | B19: 18157.62905 | C19: 328.725 | D19: 167208.252 | E19: 32461.85106 | F19: 3054 | G19: 152 | H19: 300 | I19: 18157.62905 | J19: 328.725
A20: 2009/10 | B20: 69233.06587 | C20: 2919.424781 | D20: 109684.2814 | E20: 18982.94445 | F20: 2556.550699 | G20: 159 | H20: 300 | I20: 69233.06587 | J20: 2919.424781
A21: 2010/11 | B21: 68303.84969 | C21: 2878.815331 | D21: 112597.1506 | E21: 19405.97016 | F21: 2582.645407 | G21: 164 | H21: 300 | I21: 68303.84969 | J21: 2878.815331
A22: 2011/12 | B22: 271038.458 | C22: 10508.23293 | D22: 118308.6002 | E22: 20134.90341 | F22: 2219.345901 | G22: 172 | H22: 150 | I22: 271038.458 | J22: 10508.23293
A23: 2012/13 | B23: 270939.6471 | C23: 10492.85366 | D23: 121321.8446 | E23: 20541.25251 | F23: 2268.347538 | G23: 177 | H23: 150 | I23: 270939.6471 | J23: 10492.85366
A24: 2013/14 | B24: 270050.3484 | C24: 10439.72529 | D24: 121176.7477 | E24: 20515.41013 | F24: 2244.571608 | G24: 177 | H24: 150 | I24: 270050.3484 | J24: 10439.72529
A25: 2014/15 | B25: 268062.272 | C25: 10336.26477 | D25: 121688.562 | E25: 20539.72488 | F25: 2244.758267 | G25: 178 | H25: 150 | I25: 268062.272 | J25: 10336.26477
A26: 2015/16 | B26: 270224.2557 | C26: 10396.84976 | D26: 124033.9633 | E26: 20828.95582 | F26: 2295.911239 | G26: 181 | H26: 150 | I26: 270224.2557 | J26: 10396.84976
A28: Price Band 3 | B28: Tariff V: Brisbane & Riverview | C28: Tariff V: Northern | D28: Tariff C: Brisbane & Riverview | E28: Tariff C: Northern | F28: Tariff D: Brisbane | G28: Tariff D: Northern | H28: Tariff D: Riverview | I28: Tariff V: Brisbane & Riverview | J28: Tariff V: Northern
A29: =A17 -> 2006/07 | B29: 10868.87853 | C29: 0 | D29: 168988.5484 | E29: 33939.63739 | F29: 3717 | G29: 4 | H29: 600 | I29: 10868.87853 | J29: 0
A30: 2007/08 | B30: 9065.881154 | C30: 0 | D30: 160287.5773 | E30: 34292.68506 | F30: 3882 | G30: 4 | H30: 600 | I30: 9065.881154 | J30: 0
A31: 2008/09 | B31: 12538.89208 | C31: 145.0346411 | D31: 170272.3709 | E31: 35443.00735 | F31: 3882 | G31: 4 | H31: 600 | I31: 12538.89208 | J31: 145.0346411
A32: 2009/10 | B32: 68555.36364 | C32: 3172.739028 | D32: 108610.6141 | E32: 20630.06696 | F32: 3132.530817 | G32: 0 | H32: 600 | I32: 68555.36364 | J32: 3172.739028
A33: 2010/11 | B33: 67635.24328 | C33: 3128.605955 | D33: 111494.97 | E33: 21089.79799 | F33: 3166.627639 | G33: 0 | H33: 600 | I33: 67635.24328 | J33: 3128.605955
A34: 2011/12 | B34: 235158.2141 | C34: 4537.793061 | D34: 117150.512 | E34: 21881.97973 | F34: 2438.915411 | G34: 0 | H34: 300 | I34: 235158.2141 | J34: 4537.793061
A35: 2012/13 | B35: 235072.4838 | C35: 4531.151799 | D35: 120134.2606 | E35: 22323.58715 | F35: 2502.943724 | G35: 0 | H35: 300 | I35: 235072.4838 | J35: 4531.151799
A36: 2013/14 | B36: 234300.9111 | C36: 4508.209259 | D36: 119990.584 | E36: 22295.50246 | F36: 2471.876749 | G36: 0 | H36: 300 | I36: 234300.9111 | J36: 4508.209259
A37: 2014/15 | B37: 232576.0174 | C37: 4463.531679 | D37: 120497.3883 | E37: 22321.92697 | F37: 2472.120647 | G37: 0 | H37: 300 | I37: 232576.0174 | J37: 4463.531679
A38: 2015/16 | B38: 234451.7964 | C38: 4489.694226 | D38: 122819.8311 | E38: 22636.25405 | F38: 2538.960016 | G38: 0 | H38: 300 | I38: 234451.7964 | J38: 4489.694226
A40: Price Band 4 | B40: Tariff V: Brisbane & Riverview | C40: Tariff V: Northern | D40: Tariff C: Brisbane & Riverview | E40: Tariff C: Northern | F40: Tariff D: Brisbane | G40: Tariff D: Northern | H40: Tariff D: Riverview | I40: Tariff V: Brisbane & Riverview | J40: Tariff V: Northern
A41: =A29 -> 2006/07 | B41: 6648.322399 | C41: 0 | D41: 182992.3869 | E41: 33868.79 | F41: 3283 | G41: 0 | H41: 1000 | I41: 6648.322399 | J41: 0
A42: 2007/08 | B42: 7086.497116 | C42: 0 | D42: 173492.7166 | E42: 34219.16225 | F42: 3533 | G42: 0 | H42: 1000 | I42: 7086.497116 | J42: 0
A43: 2008/09 | B43: 9251.698592 | C43: 0 | D43: 184180.7901 | E43: 35364.81281 | F43: 3533 | G43: 0 | H43: 1000 | I43: 9251.698592 | J43: 0
A44: 2009/10 | B44: 72406.00852 | C44: 3127.081504 | D44: 114711.0982 | E44: 20333.18853 | F44: 2537.29346 | G44: 0 | H44: 1000 | I44: 72406.00852 | J44: 3127.081504
A45: 2010/11 | B45: 71434.20647 | C45: 3083.583532 | D45: 117757.4637 | E45: 20786.30378 | F45: 2569.606781 | G45: 0 | H45: 1000 | I45: 71434.20647 | J45: 3083.583532
A46: 2011/12 | B46: 0 | C46: 0 | D46: 123730.6684 | E46: 21567.08556 | F46: 1955.968815 | G46: 0 | H46: 500 | I46: 0 | J46: 0
A47: 2012/13 | B47: 0 | C47: 0 | D47: 126882.0094 | E47: 22002.338 | F47: 2016.648 | G47: 0 | H47: 500 | I47: 0 | J47: 0
A48: 2013/14 | B48: 0 | C48: 0 | D48: 126730.2628 | E48: 21974.65747 | F48: 1987.206045 | G48: 0 | H48: 500 | I48: 0 | J48: 0
A49: 2014/15 | B49: 0 | C49: 0 | D49: 127265.5334 | E49: 22000.70171 | F49: 1987.437185 | G49: 0 | H49: 500 | I49: 0 | J49: 0
A50: 2015/16 | B50: 0 | C50: 0 | D50: 129718.4241 | E50: 22310.50545 | F50: 2050.780389 | G50: 0 | H50: 500 | I50: 0 | J50: 0
A52: Price Band 5 | B52: Tariff V: Brisbane & Riverview | C52: Tariff V: Northern | D52: Tariff C: Brisbane & Riverview | E52: Tariff C: Northern | F52: Tariff D: Brisbane | G52: Tariff D: Northern | H52: Tariff D: Riverview | I52: Tariff V: Brisbane & Riverview | J52: Tariff V: Northern
A53: =A41 -> 2006/07 | B53: 8790.01835 | C53: 0 | D53: 261440.9032 | E53: 41960.80411 | F53: 1534 | G53: 0 | H53: 1260 | I53: 8790.01835 | J53: 0
A54: 2007/08 | B54: 7461.296149 | C54: 0 | D54: 247787.6954 | E54: 42394.88816 | F54: 1549 | G54: 0 | H54: 1260 | I54: 7461.296149 | J54: 0
A55: 2008/09 | B55: 8703.142067 | C55: 0 | D55: 262928.1732 | E55: 43814.26035 | F55: 1549 | G55: 0 | H55: 1260 | I55: 8703.142067 | J55: 0
A56: 2009/10 | B56: 103258.9622 | C56: 3964.077108 | D56: 163590.6907 | E56: 25775.57608 | F56: 4904.248238 | G56: 0 | H56: 1260 | I56: 103258.9622 | J56: 3964.077108
A57: 2010/11 | B57: 101873.0652 | C57: 3908.936455 | D57: 167935.1444 | E57: 26349.97229 | F57: 4960.558898 | G57: 0 | H57: 1260 | I57: 101873.0652 | J57: 3908.936455
A58: 2011/12 | B58: 0 | C58: 0 | D58: 176453.5937 | E58: 27339.73837 | F58: 4987.652853 | G58: 0 | H58: 1000 | I58: 0 | J58: 0
A59: 2012/13 | B59: 0 | C59: 0 | D59: 180947.7539 | E59: 27891.49061 | F59: 5093.395159 | G59: 0 | H59: 1000 | I59: 0 | J59: 0
A60: 2013/14 | B60: 0 | C60: 0 | D60: 180731.3464 | E60: 27856.4011 | F60: 5042.088269 | G60: 0 | H60: 1000 | I60: 0 | J60: 0
A61: 2014/15 | B61: 0 | C61: 0 | D61: 181494.7015 | E61: 27889.41635 | F61: 5042.491065 | G61: 0 | H61: 1000 | I61: 0 | J61: 0
A62: 2015/16 | B62: 0 | C62: 0 | D62: 184992.7945 | E62: 28282.14226 | F62: 5152.875809 | G62: 0 | H62: 1000 | I62: 0 | J62: 0
A64: Price Band 6 | B64: Tariff V: Brisbane & Riverview | C64: Tariff V: Northern | D64: Tariff C: Brisbane & Riverview | E64: Tariff C: Northern | F64: Tariff D: Brisbane | G64: Tariff D: Northern | H64: Tariff D: Riverview | I64: Tariff V: Brisbane & Riverview | J64: Tariff V: Northern
A65: =A53 -> 2006/07 | B65: 0 | C65: 0 | D65: 185314.9269 | E65: 43389.19333 | F65: 755 | G65: 0 | H65: 350 | I65: 0 | J65: 0
A66: 2007/08 | B66: 9.087118 | C66: 0 | D66: 175601.8402 | E66: 43838.05405 | F66: 755 | G66: 0 | H66: 350 | I66: 9.087118 | J66: 0
A67: 2008/09 | B67: 4196.979553 | C67: 0 | D67: 186277.1481 | E67: 45305.74315 | F67: 755 | G67: 0 | H67: 350 | I67: 4196.979553 | J67: 0
A68: 2009/10 | B68: 68559.10194 | C68: 4003.127316 | D68: 108616.5366 | E68: 26029.49182 | F68: 352.8481823 | G68: 0 | H68: 350 | I68: 68559.10194 | J68: 4003.127316
A69: 2010/11 | B69: 67638.93141 | C69: 3947.443471 | D69: 111501.0498 | E69: 26609.54642 | F69: 359.2687293 | G69: 0 | H69: 350 | I69: 67638.93141 | J69: 3947.443471
A70: 2011/12 | B70: 0 | C70: 0 | D70: 117156.9001 | E70: 27609.06271 | F70: 380.6012002 | G70: 0 | H70: 350 | I70: 0 | J70: 0
A71: 2012/13 | B71: 0 | C71: 0 | D71: 120140.8114 | E71: 28166.25027 | F71: 392.6579481 | G71: 0 | H71: 350 | I71: 0 | J71: 0
A72: 2013/14 | B72: 0 | C72: 0 | D72: 119997.1271 | E72: 28130.8151 | F72: 386.8079316 | G72: 0 | H72: 350 | I72: 0 | J72: 0
A73: 2014/15 | B73: 0 | C73: 0 | D73: 120503.959 | E73: 28164.15558 | F73: 386.8538584 | G73: 0 | H73: 350 | I73: 0 | J73: 0
A74: 2015/16 | B74: 0 | C74: 0 | D74: 122826.5284 | E74: 28560.75024 | F74: 399.4399377 | G74: 0 | H74: 350 | I74: 0 | J74: 0
A76: Price Band 7 | B76: Tariff V: Brisbane & Riverview | C76: Tariff V: Northern | D76: Tariff C: Brisbane & Riverview | E76: Tariff C: Northern | F76: Tariff D: Brisbane | G76: Tariff D: Northern | H76: Tariff D: Riverview | I76: Tariff V: Brisbane & Riverview | J76: Tariff V: Northern
A77: =A65 -> 2006/07 | B77: 0 | C77: 0 | D77: 0 | E77: 0 | F77: 0 | G77: 0 | H77: 0 | I77: 0 | J77: 0
A78: 2007/08 | B78: 0 | C78: 0 | D78: 0 | E78: 0 | F78: 0 | G78: 0 | H78: 0 | I78: 0 | J78: 0
A79: 2008/09 | B79: 0 | C79: 0 | D79: 0 | E79: 0 | F79: 0 | G79: 0 | H79: 0 | I79: 0 | J79: 0
A80: 2009/10 | B80: 0 | C80: 0 | D80: 0 | E80: 0 | F80: 0 | G80: 0 | H80: 0 | I80: 0 | J80: 0
A81: 2010/11 | B81: 0 | C81: 0 | D81: 0 | E81: 0 | F81: 0 | G81: 0 | H81: 0 | I81: 0 | J81: 0
A82: 2011/12 | B82: 0 | C82: 0 | D82: 0 | E82: 0 | F82: 0 | G82: 0 | H82: 0 | I82: 0 | J82: 0
A83: 2012/13 | B83: 0 | C83: 0 | D83: 0 | E83: 0 | F83: 0 | G83: 0 | H83: 0 | I83: 0 | J83: 0
A84: 2013/14 | B84: 0 | C84: 0 | D84: 0 | E84: 0 | F84: 0 | G84: 0 | H84: 0 | I84: 0 | J84: 0
A85: 2014/15 | B85: 0 | C85: 0 | D85: 0 | E85: 0 | F85: 0 | G85: 0 | H85: 0 | I85: 0 | J85: 0
A86: 2015/16 | B86: 0 | C86: 0 | D86: 0 | E86: 0 | F86: 0 | G86: 0 | H86: 0 | I86: 0 | J86: 0
A88: Summary | B88: =B76 -> Tariff V: Brisbane & Riverview | C88: =C76 -> Tariff V: Northern | D88: =D76 -> Tariff C: Brisbane & Riverview | E88: =E76 -> Tariff C: Northern | F88: =F52 -> Tariff D: Brisbane | G88: =G52 -> Tariff D: Northern | H88: =H52 -> Tariff D: Riverview
A89: =A53 -> 2006/07 | B89: =B5+B17+B29+B41+B53+B65+B77 -> 685767.1292 | C89: 23248.83978 | F89: 15099 | G89: 406 | H89: 3710
A90: 2007/08 | B90: 657130.4974 | C90: 23523.47479 | F90: 15654 | G90: 406 | H90: 3710
A91: 2008/09 | B91: 708315.711 | C91: 24349.86514 | F91: 15542 | G91: 406 | H91: 3710
A92: 2009/10 | B92: 696640 | C92: 22933 | F92: 16062.325 | G92: 409 | H92: 3710
A93: 2010/11 | B93: 687290 | C93: 22614 | F93: 16242.946 | G93: 414 | H93: 3710
A94: 2011/12 | B94: 685750.4348 | C94: 22548 | F94: 14371.065 | G94: 422 | H94: 2400
A95: 2012/13 | B95: 685500.4346 | C95: 22515 | F95: 14710.242 | G95: 427 | H95: 2400
A96: 2013/14 | B96: 683250.4332 | C96: 22401 | F96: 14545.671 | G96: 427 | H96: 2400
A97: 2014/15 | B97: 678220.43 | C97: 22179 | F97: 14546.963 | G97: 428 | H97: 2400
A98: 2015/16 | B98: 683690.4335 | C98: 22309 | F98: 14901.031 | G98: 431 | H98: 2400

Sheet RAB Calculations (hidden)
B1: ="ENVESTRA - Cost allocation model for "&'General Inputs'!#REF!&" ("&'General Inputs'!#REF!&")" -> 
B2: Regulatory Asset Base Calculations
B7: Period Ending 30 June | J7: 2005 | K7: =J7+1 -> 2006 | L7: 2007 | M7: 2008 | N7: 2009 | O7: 2010 | P7: 2011
B11: Summary of Regulatory Asset Base Calculations (in $million)
C12: Depreciation | I12: 5-year NPV
E13: Mains and Inlets | I13: =NPV(realpretaxwacc,L13:P13) -> 36.50899535 | K13: =K82 ->  | L13: 8.229431322 | M13: 8.78436781 | N13: 9.515194969 | O13: 10.16377271 | P13: 10.82815563
E14: Meters | I14: 15.55512833 | K14: =K183 ->  | L14: 3.243611481 | M14: 3.611067427 | N14: 4.062632668 | O14: 4.501658544 | P14: 4.958169578
E15: Telemetry | I15: 0.3058712703 | K15: =+K278 ->  | L15: 0.0330111862 | M15: 0.06029364986 | N15: 0.08374465191 | O15: 0.1062534621 | P15: 0.1309245159
E16: IT Systems | I16: 9.384241992 | K16: =+K383 ->  | L16: 0.9268954705 | M16: 1.76269944 | N16: 3.015914533 | O16: 3.46894675 | P16: 3.492349319
E17: Other Distribution Equipment | I17: 26.53095638 | K17: =+K483 ->  | L17: 6.367853716 | M17: 6.551339947 | N17: 6.851877563 | O17: 7.128210712 | P17: 7.459560126
E18: Other Assets | I18: 4.072170209 | K18: =+K583 ->  | L18: 0.8634685565 | M18: 0.9572901887 | N18: 1.073771653 | O18: 1.166238008 | P18: 1.263487708
D19: Total | I19: =SUM(I13:I18) -> 92.35736354 | K19: =SUM(K13:K18) ->  | L19: 19.66427173 | M19: 21.72705846 | N19: 24.60313604 | O19: 26.53508018 | P19: 28.13264688
C22: Asset return
E23: =E13 -> Mains and Inlets | I23: =NPV(NompretaxWACC,L23:P23) -> 147.5570551 | K23: =K115 ->  | L23: 34.74441109 | M23: 37.37545493 | N23: 40.33128804 | O23: 42.7832982 | P23: 45.24680553
E24: Meters | I24: 18.75372331 | K24: =K216 ->  | L24: 4.177223692 | M24: 4.642658937 | N24: 5.147506284 | O24: 5.600869307 | P24: 6.046685691
E25: Telemetry | I25: 0.852393578 | K25: =K316 ->  | L25: 0.09569911621 | M25: 0.1788543451 | N25: 0.2475225934 | O25: 0.3113030984 | P25: 0.3801311603
E26: IT Systems | I26: 1.650957158 | K26: =K416 ->  | L26: 0.1789110276 | M26: 0.3561481222 | N26: 0.591988572 | O26: 0.6408343434 | P26: 0.5530043123
E27: Other Distribution Equipment | I27: 49.18860516 | K27: =K516 ->  | L27: 12.83080704 | M27: 13.00539173 | N27: 13.23487476 | O27: 13.39594608 | P27: 13.68721066
E28: Other Assets | I28: 1.028844794 | K28: =K616 ->  | L28: 0.292352449 | M28: 0.2915760343 | N28: 0.2874172275 | O28: 0.2620369925 | P28: 0.2309973587
D29: =D19 -> Total | I29: =SUM(I23:I28) -> 219.031579 | K29: =SUM(K23:K28) ->  | L29: 52.31940442 | M29: 55.8500841 | N29: 59.84059748 | O29: 62.99428802 | P29: 66.14483471
C32: Closing written down value
E33: =E23 -> Mains and Inlets | K33: =K147 -> 
E34: =E24 -> Meters | K34: =K247 -> 
E35: Telemetry | K35: =K347 -> 
E36: IT Systems | K36: =K447 -> 
E37: Other Distribution Equipment | K37: =K547 -> 
E38: Other Assets | K38: =K647 -> 
D39: Total | I39: =SUM(I33:I38) -> 0 | K39: =SUM(K34:K38) ->  | L39: =SUM(L33:L38) ->  | M39: =SUM(M33:M38) ->  | N39: =SUM(N33:N38) ->  | O39: =SUM(O33:O38) ->  | P39: =SUM(P33:P38) -> 
C46: Index
D47: For initial capital base and 2005/06 capex | J47: 1 | K47: =J47*(1+'General Inputs'!$B$6) -> 1.0257 | L47: =K47*(1+'General Inputs'!$B$6) -> 1.05206049 | M47: =L47*(1+'General Inputs'!$B$6) -> 1.079098445 | N47: =M47*(1+'General Inputs'!$B$6) -> 1.106831275 | O47: =N47*(1+'General Inputs'!$B$6) -> 1.135276838 | P47: =O47*(1+'General Inputs'!$B$6) -> 1.164453453
D48: For capex from | G48: 2005/06 | K48: 1 | L48: =K48*(1+'General Inputs'!$B$6) -> 1.0257 | M48: =L48*(1+'General Inputs'!$B$6) -> 1.05206049 | N48: =M48*(1+'General Inputs'!$B$6) -> 1.079098445 | O48: =N48*(1+'General Inputs'!$B$6) -> 1.106831275 | P48: =O48*(1+'General Inputs'!$B$6) -> 1.135276838
G49: 2006/07 | L49: 1 | M49: =L49*(1+'General Inputs'!$B$6) -> 1.0257 | N49: =M49*(1+'General Inputs'!$B$6) -> 1.05206049 | O49: =N49*(1+'General Inputs'!$B$6) -> 1.079098445 | P49: =O49*(1+'General Inputs'!$B$6) -> 1.106831275
G50: 2007/08 | M50: 1 | N50: =M50*(1+'General Inputs'!$B$6) -> 1.0257 | O50: =N50*(1+'General Inputs'!$B$6) -> 1.05206049 | P50: =O50*(1+'General Inputs'!$B$6) -> 1.079098445
G51: 2008/09 | N51: 1 | O51: =N51*(1+'General Inputs'!$B$6) -> 1.0257 | P51: =O51*(1+'General Inputs'!$B$6) -> 1.05206049
G52: 2009/10 | O52: 1 | P52: =O52*(1+'General Inputs'!$B$6) -> 1.0257
G53: 2010/11 | P53: 1
B60: RAB Calculations
C61: ="Asset Class 1 - "&E13 -> Asset Class 1 - Mains and Inlets
C63: Real calculations
D65: Real asset value
E67: Opening balance | K67: =#REF! ->  | L67: =K75 ->  | M67: =L75 ->  | N67: =M75 ->  | O67: =N75 ->  | P67: =O75 -> 
E69: Capex
F70: First 50% | K70: =#REF!/2 ->  | L70: =#REF!/2 ->  | M70: =#REF!/2 ->  | N70: =#REF!/2 ->  | O70: =#REF!/2 ->  | P70: =#REF!/2 -> 
F71: Remainder | K71: =K70 -> 
E73: Depreciation | K73: =K77 -> 
E75: Closing balance | K75: =-K73+K71+K70+K67 -> 
E77: Depreciation | J77: ='General Inputs'!#REF! ->  | K77: ='General Inputs'!#REF! ->  | L77: ='General Inputs'!#REF! ->  | M77: ='General Inputs'!#REF! ->  | N77: ='General Inputs'!#REF! ->  | O77: ='General Inputs'!#REF! ->  | P77: ='General Inputs'!#REF! -> 
C80: Depreciation
D82: Total depreciation | J82: =J77 -> 
C85: Asset Returns
D87: Initial assets
E88: Regulatory value of initial assets | K88: =IF($K82=0,0,$K67*'RAB Calculations'!K$47*('RAB Calculations'!K82/'RAB Calculations'!$K82)) ->  | L88: =IF($K82=0,0,$K67*'RAB Calculations'!L$47*('RAB Calculations'!L82/'RAB Calculations'!$K82)) ->  | M88: =IF($K82=0,0,$K67*'RAB Calculations'!M$47*('RAB Calculations'!M82/'RAB Calculations'!$K82)) ->  | N88: =IF($K82=0,0,$K67*'RAB Calculations'!N$47*('RAB Calculations'!N82/'RAB Calculations'!$K82)) ->  | O88: =IF($K82=0,0,$K67*'RAB Calculations'!O$47*('RAB Calculations'!O82/'RAB Calculations'!$K82)) ->  | P88: =IF($K82=0,0,$K67*'RAB Calculations'!P$47*('RAB Calculations'!P82/'RAB Calculations'!$K82)) -> 
D91: Capex
E92: Regulatory value of remainder of year1 capex | K92: =$K70*'RAB Calculations'!K$47 ->  | L92: =$K70*'RAB Calculations'!L$47 ->  | M92: =$K70*'RAB Calculations'!M$47 ->  | N92: =$K70*'RAB Calculations'!N$47 ->  | O92: =$K70*'RAB Calculations'!O$47 ->  | P92: =$K70*'RAB Calculations'!P$47 -> 
E93: cost base of 50% of capex
F94: Year 1 capex | K94: =$K70*'RAB Calculations'!K$47 ->  | L94: =$K70*'RAB Calculations'!L$47 ->  | M94: =$K70*'RAB Calculations'!M$47 ->  | N94: =$K70*'RAB Calculations'!N$47 ->  | O94: =$K70*'RAB Calculations'!O$47 ->  | P94: =$K70*'RAB Calculations'!P$47 -> 
F95: Year 2 capex | L95: =$L70*'RAB Calculations'!L$48 ->  | M95: =$L70*'RAB Calculations'!M$48 ->  | N95: =$L70*'RAB Calculations'!N$48 ->  | O95: =$L70*'RAB Calculations'!O$48 ->  | P95: =$L70*'RAB Calculations'!P$48 -> 
F96: Year 3 capex | M96: =$M70*'RAB Calculations'!M$49 ->  | N96: =$M70*'RAB Calculations'!N$49 ->  | O96: =$M70*'RAB Calculations'!O$49 ->  | P96: =$M70*'RAB Calculations'!P$49 -> 
F97: Year 4 capex | N97: =$N70*'RAB Calculations'!N$50 ->  | O97: =$N70*'RAB Calculations'!O$50 ->  | P97: =$N70*'RAB Calculations'!P$50 -> 
F98: Year 5 capex | O98: =$O70*'RAB Calculations'!O$51 ->  | P98: =$O70*'RAB Calculations'!P$51 -> 
F99: Year 6 capex | P99: =$P70*'RAB Calculations'!P$52 -> 
D100: Total | K100: =SUM(K94:K99) -> 
D103: Asset returns
E104: Regulatory value of initial assets for return purposes
F105: cost base | K105: =$K67*'RAB Calculations'!K$47 ->  | L105: =$K67*'RAB Calculations'!L$47 ->  | M105: =$K67*'RAB Calculations'!M$47 ->  | N105: =$K67*'RAB Calculations'!N$47 ->  | O105: =$K67*'RAB Calculations'!O$47 ->  | P105: =$K67*'RAB Calculations'!P$47 -> 
E106: Value of Year 1 remainder assets for return purposes
F107: cost base | K107: =$K92/'RAB Calculations'!$K$48*'RAB Calculations'!K$48 ->  | L107: =$K92/'RAB Calculations'!$K$48*'RAB Calculations'!L$48 ->  | M107: =$K92/'RAB Calculations'!$K$48*'RAB Calculations'!M$48 ->  | N107: =$K92/'RAB Calculations'!$K$48*'RAB Calculations'!N$48 ->  | O107: =$K92/'RAB Calculations'!$K$48*'RAB Calculations'!O$48 ->  | P107: =$K92/'RAB Calculations'!$K$48*'RAB Calculations'!P$48 -> 
E108: WDV of 50% of capex
F109: cost base | K109: =K94 ->  | L109: =K109*(1+'General Inputs'!$B$6)+'RAB Calculations'!L95 ->  | M109: =L109*(1+'General Inputs'!$B$6)+'RAB Calculations'!M96 ->  | N109: =M109*(1+'General Inputs'!$B$6)+'RAB Calculations'!N97 ->  | O109: =N109*(1+'General Inputs'!$B$6)+'RAB Calculations'!O98 ->  | P109: =O109*(1+'General Inputs'!$B$6)+'RAB Calculations'!P99 -> 
F111: accumulated depreciation (to start of year) | K111: =J82*'RAB Calculations'!K$47 ->  | L111: =(K111+K82)*(1+'General Inputs'!$B$6) ->  | M111: =(L111+L82)*(1+'General Inputs'!$B$6) ->  | N111: =(M111+M82)*(1+'General Inputs'!$B$6) ->  | O111: =(N111+N82)*(1+'General Inputs'!$B$6) ->  | P111: =(O111+O82)*(1+'General Inputs'!$B$6) -> 
E113: Total WDV of 50% of capex | K113: =K105-K111+K109+(K109+((J109-(J109/'RAB Calculations'!$J$47*'RAB Calculations'!I47)))+K70) ->  | L113: =L105-L111+L109+(L109+((K109-(K109/'RAB Calculations'!$J$47*'RAB Calculations'!J$47)))+L70) ->  | M113: =M105-M111+M109+(M109+((L109-(L109/'RAB Calculations'!$J$47*'RAB Calculations'!K$47)))+M70) ->  | N113: =N105-N111+N109+(N109+((M109-(M109/'RAB Calculations'!$J$47*'RAB Calculations'!L$47)))+N70) ->  | O113: =O105-O111+O109+(O109+((N109-(N109/'RAB Calculations'!$J$47*'RAB Calculations'!M$47)))+O70) ->  | P113: =P105-P111+P109+(P109+((O109-(O109/'RAB Calculations'!$J$47*'RAB Calculations'!N$47)))+P70) -> 
D115: Total asset returns | K115: =(K105+K109-K111)*'General Inputs'!$B$7 ->  | L115: =(L105+L109-L111)*'General Inputs'!$B$7+((K109-($K109/'RAB Calculations'!$K$47*'RAB Calculations'!K$47)))*'General Inputs'!$B$7+L107*'General Inputs'!$B$7 ->  | M115: =(M105+M109-M111)*'General Inputs'!$B$7+((L109-($K109/'RAB Calculations'!$K$47*'RAB Calculations'!L$47)))*'General Inputs'!$B$7+M107*'General Inputs'!$B$7 ->  | N115: =(N105+N109-N111)*'General Inputs'!$B$7+((M109-($K109/'RAB Calculations'!$K$47*'RAB Calculations'!M$47)))*'General Inputs'!$B$7+N107*'General Inputs'!$B$7 ->  | O115: =(O105+O109-O111)*'General Inputs'!$B$7+((N109-($K109/'RAB Calculations'!$K$47*'RAB Calculations'!N$47)))*'General Inputs'!$B$7+O107*'General Inputs'!$B$7 ->  | P115: =(P105+P109-P111)*'General Inputs'!$B$7+((O109-($K109/'RAB Calculations'!$K$47*'RAB Calculations'!O$47)))*'General Inputs'!$B$7+P107*'General Inputs'!$B$7 -> 
C119: Proof of Calculations
D121: Initial assets
E122: Opening balance | L122: =K88-K82-K111 -> 
D124: First 50% of capex
E125: Spend | K125: =K70 -> 
E126: Carried forward balance | L126: =K94 -> 
E127: NPV at nominal WACC of | I127: ='General Inputs'!B8 -> 0.1064 | L127: =L126+L125+NPV(I127,M125:P125) -> 
D129: Remainder of capex
E130: Spend | K130: =K71 -> 
E131: Carried forward balance | L131: =K92 -> 
E132: NPV at nominal WACC of | I132: =I127 -> 0.1064 | L132: =L131+NPV(I132,L130:P130) -> 
L133: =L135-L127-L132 -> 
D135: Total opening balance | L135: =L122+L127+L132 -> 
E136: Revenue stream
F137: depreciation | L137: =L82 ->  | M137: =M82 ->  | N137: =N82 ->  | O137: =O82 ->  | P137: =P82 -> 
F138: Return on assets | L138: =L115 ->  | M138: =M115 ->  | N138: =N115 ->  | O138: =O115 ->  | P138: =P115 -> 
F139: Residual value
F140: residual value of initial assets | P140: =(P105-P111-P137+P109+P107+P130)+(O109-(K109/'RAB Calculations'!K47*'RAB Calculations'!O47)) -> 
F141: residual value of remainder of capex
E142: Total | L142: =L137+L138+L140 ->  | M142: =M137+M138+M140 ->  | N142: =N137+N138+N140 ->  | O142: =O137+O138+O140 ->  | P142: =P137+P138+P140 -> 
E144: NPV at nominal WACC of | I144: =I132 -> 0.1064 | L144: =NPV(I144,L142:P142) ->  | M144: =L135-L144 -> 
F145: Check | L145: =IF(ROUND(L135-L144,5)=0,"ok","problem") -> 
D147: Closing written down value | K147: =K105-K111-K82+K100+K109 -> 
B161: RAB Calculations
C162: ="Asset Class 2 - "&E14 -> Asset Class 2 - Meters
C164: Real calculations
D166: Real asset value
E168: Opening balance | K168: =#REF! ->  | L168: =K176 ->  | M168: =L176 ->  | N168: =M176 ->  | O168: =N176 ->  | P168: =O176 -> 
E170: Capex
F171: First 50% | K171: =#REF!/2 ->  | L171: =#REF!/2 ->  | M171: =#REF!/2 ->  | N171: =#REF!/2 ->  | O171: =#REF!/2 ->  | P171: =#REF!/2 -> 
F172: Remainder | K172: =K171 -> 
E174: Depreciation | K174: =K178 -> 
E176: Closing balance | K176: =-K174+K172+K171+K168 -> 
E178: Depreciation | J178: ='General Inputs'!#REF! ->  | K178: ='General Inputs'!#REF! ->  | L178: ='General Inputs'!#REF! ->  | M178: ='General Inputs'!#REF! ->  | N178: ='General Inputs'!#REF! ->  | O178: ='General Inputs'!#REF! ->  | P178: ='General Inputs'!#REF! -> 
C181: Depreciation
D183: Total depreciation | J183: =J178 -> 
C186: Asset Returns
D188: Initial assets
E189: Regulatory value of initial assets | K189: =IF($K183=0,0,$K168*'RAB Calculations'!K$47*('RAB Calculations'!K183/'RAB Calculations'!$K183)) ->  | L189: =IF($K183=0,0,$K168*'RAB Calculations'!L$47*('RAB Calculations'!L183/'RAB Calculations'!$K183)) ->  | M189: =IF($K183=0,0,$K168*'RAB Calculations'!M$47*('RAB Calculations'!M183/'RAB Calculations'!$K183)) ->  | N189: =IF($K183=0,0,$K168*'RAB Calculations'!N$47*('RAB Calculations'!N183/'RAB Calculations'!$K183)) ->  | O189: =IF($K183=0,0,$K168*'RAB Calculations'!O$47*('RAB Calculations'!O183/'RAB Calculations'!$K183)) ->  | P189: =IF($K183=0,0,$K168*'RAB Calculations'!P$47*('RAB Calculations'!P183/'RAB Calculations'!$K183)) -> 
D192: Capex
E193: Regulatory value of remainder of year1 capex | K193: =$K171*'RAB Calculations'!K$47 ->  | L193: =$K171*'RAB Calculations'!L$47 ->  | M193: =$K171*'RAB Calculations'!M$47 ->  | N193: =$K171*'RAB Calculations'!N$47 ->  | O193: =$K171*'RAB Calculations'!O$47 ->  | P193: =$K171*'RAB Calculations'!P$47 -> 
E194: cost base of 50% of capex
F195: Year 1 capex | K195: =$K171*'RAB Calculations'!K$47 ->  | L195: =$K171*'RAB Calculations'!L$47 ->  | M195: =$K171*'RAB Calculations'!M$47 ->  | N195: =$K171*'RAB Calculations'!N$47 ->  | O195: =$K171*'RAB Calculations'!O$47 ->  | P195: =$K171*'RAB Calculations'!P$47 -> 
F196: Year 2 capex | L196: =$L171*'RAB Calculations'!L$48 ->  | M196: =$L171*'RAB Calculations'!M$48 ->  | N196: =$L171*'RAB Calculations'!N$48 ->  | O196: =$L171*'RAB Calculations'!O$48 ->  | P196: =$L171*'RAB Calculations'!P$48 -> 
F197: Year 3 capex | M197: =$M171*'RAB Calculations'!M$49 ->  | N197: =$M171*'RAB Calculations'!N$49 ->  | O197: =$M171*'RAB Calculations'!O$49 ->  | P197: =$M171*'RAB Calculations'!P$49 -> 
F198: Year 4 capex | N198: =$N171*'RAB Calculations'!N$50 ->  | O198: =$N171*'RAB Calculations'!O$50 ->  | P198: =$N171*'RAB Calculations'!P$50 -> 
F199: Year 5 capex | O199: =$O171*'RAB Calculations'!O$51 ->  | P199: =$O171*'RAB Calculations'!P$51 -> 
F200: Year 6 capex | P200: =$P171*'RAB Calculations'!P$52 -> 
D201: Total | K201: =SUM(K195:K200) -> 
D204: Asset returns
E205: Regulatory value of initial assets for return purposes
F206: cost base | K206: =$K168*'RAB Calculations'!K$47 ->  | L206: =$K168*'RAB Calculations'!L$47 ->  | M206: =$K168*'RAB Calculations'!M$47 ->  | N206: =$K168*'RAB Calculations'!N$47 ->  | O206: =$K168*'RAB Calculations'!O$47 ->  | P206: =$K168*'RAB Calculations'!P$47 -> 
E207: Value of Year 1 remainder assets for return purposes
F208: cost base | K208: =$K193/'RAB Calculations'!$K$48*'RAB Calculations'!K$48 ->  | L208: =$K193/'RAB Calculations'!$K$48*'RAB Calculations'!L$48 ->  | M208: =$K193/'RAB Calculations'!$K$48*'RAB Calculations'!M$48 ->  | N208: =$K193/'RAB Calculations'!$K$48*'RAB Calculations'!N$48 ->  | O208: =$K193/'RAB Calculations'!$K$48*'RAB Calculations'!O$48 ->  | P208: =$K193/'RAB Calculations'!$K$48*'RAB Calculations'!P$48 -> 
E209: WDV of 50% of capex
F210: cost base | K210: =K195 ->  | L210: =K210*(1+'General Inputs'!$B$6)+'RAB Calculations'!L196 ->  | M210: =L210*(1+'General Inputs'!$B$6)+'RAB Calculations'!M197 ->  | N210: =M210*(1+'General Inputs'!$B$6)+'RAB Calculations'!N198 ->  | O210: =N210*(1+'General Inputs'!$B$6)+'RAB Calculations'!O199 ->  | P210: =O210*(1+'General Inputs'!$B$6)+'RAB Calculations'!P200 -> 
F212: accumulated depreciation (to start of year) | K212: =J183*'RAB Calculations'!K$47 ->  | L212: =(K212+K183)*(1+'General Inputs'!$B$6) ->  | M212: =(L212+L183)*(1+'General Inputs'!$B$6) ->  | N212: =(M212+M183)*(1+'General Inputs'!$B$6) ->  | O212: =(N212+N183)*(1+'General Inputs'!$B$6) ->  | P212: =(O212+O183)*(1+'General Inputs'!$B$6) -> 
E214: Total WDV of 50% of capex | K214: =K206-K212+K210+(K210+((J210-(J210/'RAB Calculations'!$J$47*'RAB Calculations'!$I$47)))+K171) ->  | L214: =L206-L212+L210+(L210+((K210-(K210/'RAB Calculations'!$J$47*'RAB Calculations'!J$47)))+L171) ->  | M214: =M206-M212+M210+(M210+((L210-(L210/'RAB Calculations'!$J$47*'RAB Calculations'!K$47)))+M171) ->  | N214: =N206-N212+N210+(N210+((M210-(M210/'RAB Calculations'!$J$47*'RAB Calculations'!L$47)))+N171) ->  | O214: =O206-O212+O210+(O210+((N210-(N210/'RAB Calculations'!$J$47*'RAB Calculations'!M$47)))+O171) ->  | P214: =P206-P212+P210+(P210+((O210-(O210/'RAB Calculations'!$J$47*'RAB Calculations'!N$47)))+P171) -> 
D216: Total asset returns | K216: =(K206+K210-K212)*'General Inputs'!$B$7 ->  | L216: =(L206+L210-L212)*'General Inputs'!$B$7+((K210-($K210/'RAB Calculations'!$K$47*'RAB Calculations'!K$47)))*'General Inputs'!$B$7+L208*'General Inputs'!$B$7 ->  | M216: =(M206+M210-M212)*'General Inputs'!$B$7+((L210-($K210/'RAB Calculations'!$K$47*'RAB Calculations'!L$47)))*'General Inputs'!$B$7+M208*'General Inputs'!$B$7 ->  | N216: =(N206+N210-N212)*'General Inputs'!$B$7+((M210-($K210/'RAB Calculations'!$K$47*'RAB Calculations'!M$47)))*'General Inputs'!$B$7+N208*'General Inputs'!$B$7 ->  | O216: =(O206+O210-O212)*'General Inputs'!$B$7+((N210-($K210/'RAB Calculations'!$K$47*'RAB Calculations'!N$47)))*'General Inputs'!$B$7+O208*'General Inputs'!$B$7 ->  | P216: =(P206+P210-P212)*'General Inputs'!$B$7+((O210-($K210/'RAB Calculations'!$K$47*'RAB Calculations'!O$47)))*'General Inputs'!$B$7+P208*'General Inputs'!$B$7 -> 
C219: Proof of Calculations
D221: Initial assets
E222: Opening balance | L222: =K189-K183-K212 -> 
D224: First 50% of capex
E225: Spend | K225: =K171 -> 
E226: Carried forward balance | L226: =K195 -> 
E227: NPV at nominal WACC of | I227: =NompretaxWACC -> 0.1064 | L227: =L226+L225+NPV(I227,M225:P225) -> 
D229: Remainder of capex
E230: Spend | K230: =K172 -> 
E231: Carried forward balance | L231: =K193 -> 
E232: NPV at nominal WACC of | I232: =I227 -> 0.1064 | L232: =L231+NPV(I232,L230:P230) -> 
L233: =L235-L227-L232 -> 
D235: Total opening balance | L235: =L222+L227+L232 -> 
E236: Revenue stream
F237: depreciation | L237: =L183 ->  | M237: =M183 ->  | N237: =N183 ->  | O237: =O183 ->  | P237: =P183 -> 
F238: Return on assets | L238: =L216 ->  | M238: =M216 ->  | N238: =N216 ->  | O238: =O216 ->  | P238: =P216 -> 
F239: Residual value
F240: residual value of initial assets | P240: =(P206-P212-P237+P210)+P208+P230+(O210-(K210/'RAB Calculations'!K47*'RAB Calculations'!O47)) -> 
F241: residual value of remainder of capex
E242: Total | L242: =L237+L238+L240 ->  | M242: =M237+M238+M240 ->  | N242: =N237+N238+N240 ->  | O242: =O237+O238+O240 ->  | P242: =P237+P238+P240 -> 
E244: NPV at nominal WACC of | I244: =I232 -> 0.1064 | L244: =NPV(I244,L242:P242) ->  | M244: =L235-L244 -> 
F245: Check | L245: =IF(ROUND(L235-L244,5)=0,"ok","problem") -> 
D247: Closing written down value | K247: =K206-K212-K183+K201+K210 -> 
B261: RAB Calculations
C262: ="Asset Class 3 - "&E15 -> Asset Class 3 - Telemetry
C264: Real calculations
D266: Real asset value
E268: Opening balance | K268: =#REF! ->  | L268: =K276 ->  | M268: =L276 ->  | N268: =M276 ->  | O268: =N276 ->  | P268: =O276 -> 
E270: Capex
F271: First 50% | K271: =#REF!/2 ->  | L271: =#REF!/2 ->  | M271: =#REF!/2 ->  | N271: =#REF!/2 ->  | O271: =#REF!/2 ->  | P271: =#REF!/2 -> 
F272: Remainder | K272: =K271 -> 
E274: Depreciation | K274: =K278 -> 
E276: Closing balance | K276: =-K274+K272+K271+K268 -> 
E278: Depreciation | J278: ='General Inputs'!#REF! ->  | K278: ='General Inputs'!#REF! ->  | L278: ='General Inputs'!#REF! ->  | M278: ='General Inputs'!#REF! ->  | N278: ='General Inputs'!#REF! ->  | O278: ='General Inputs'!#REF! ->  | P278: ='General Inputs'!#REF! -> 
C281: Depreciation
D283: Total depreciation | J283: =J278 -> 
C286: Asset Returns
D288: Initial assets
E289: Regulatory value of initial assets | K289: =IF($K283=0,0,$K268*'RAB Calculations'!K$47*('RAB Calculations'!K283/'RAB Calculations'!$K283)) ->  | L289: =IF($K283=0,0,$K268*'RAB Calculations'!L$47*('RAB Calculations'!L283/'RAB Calculations'!$K283)) ->  | M289: =IF($K283=0,0,$K268*'RAB Calculations'!M$47*('RAB Calculations'!M283/'RAB Calculations'!$K283)) ->  | N289: =IF($K283=0,0,$K268*'RAB Calculations'!N$47*('RAB Calculations'!N283/'RAB Calculations'!$K283)) ->  | O289: =IF($K283=0,0,$K268*'RAB Calculations'!O$47*('RAB Calculations'!O283/'RAB Calculations'!$K283)) ->  | P289: =IF($K283=0,0,$K268*'RAB Calculations'!P$47*('RAB Calculations'!P283/'RAB Calculations'!$K283)) -> 
D292: Capex
E293: Regulatory value of remainder of year1 capex | K293: =$K271*'RAB Calculations'!K$47 ->  | L293: =$K271*'RAB Calculations'!L$47 ->  | M293: =$K271*'RAB Calculations'!M$47 ->  | N293: =$K271*'RAB Calculations'!N$47 ->  | O293: =$K271*'RAB Calculations'!O$47 ->  | P293: =$K271*'RAB Calculations'!P$47 -> 
E294: cost base of 50% of capex
F295: Year 1 capex | K295: =$K271*'RAB Calculations'!K$47 ->  | L295: =$K271*'RAB Calculations'!L$47 ->  | M295: =$K271*'RAB Calculations'!M$47 ->  | N295: =$K271*'RAB Calculations'!N$47 ->  | O295: =$K271*'RAB Calculations'!O$47 ->  | P295: =$K271*'RAB Calculations'!P$47 -> 
F296: Year 2 capex | L296: =$L271*'RAB Calculations'!L$48 ->  | M296: =$L271*'RAB Calculations'!M$48 ->  | N296: =$L271*'RAB Calculations'!N$48 ->  | O296: =$L271*'RAB Calculations'!O$48 ->  | P296: =$L271*'RAB Calculations'!P$48 -> 
F297: Year 3 capex | M297: =$M271*'RAB Calculations'!M$49 ->  | N297: =$M271*'RAB Calculations'!N$49 ->  | O297: =$M271*'RAB Calculations'!O$49 ->  | P297: =$M271*'RAB Calculations'!P$49 -> 
F298: Year 4 capex | N298: =$N271*'RAB Calculations'!N$50 ->  | O298: =$N271*'RAB Calculations'!O$50 ->  | P298: =$N271*'RAB Calculations'!P$50 -> 
F299: Year 5 capex | O299: =$O271*'RAB Calculations'!O$51 ->  | P299: =$O271*'RAB Calculations'!P$51 -> 
F300: Year 6 capex | P300: =$P271*'RAB Calculations'!P$52 -> 
D301: Total | K301: =SUM(K295:K300) -> 
D304: Asset returns
E305: Regulatory value of initial assets for return purposes
F306: cost base | K306: =$K268*'RAB Calculations'!K$47 ->  | L306: =$K268*'RAB Calculations'!L$47 ->  | M306: =$K268*'RAB Calculations'!M$47 ->  | N306: =$K268*'RAB Calculations'!N$47 ->  | O306: =$K268*'RAB Calculations'!O$47 ->  | P306: =$K268*'RAB Calculations'!P$47 -> 
E307: Value of Year 1 remainder assets for return purposes
F308: cost base | K308: =$K293/'RAB Calculations'!$K$48*'RAB Calculations'!K$48 ->  | L308: =$K293/'RAB Calculations'!$K$48*'RAB Calculations'!L$48 ->  | M308: =$K293/'RAB Calculations'!$K$48*'RAB Calculations'!M$48 ->  | N308: =$K293/'RAB Calculations'!$K$48*'RAB Calculations'!N$48 ->  | O308: =$K293/'RAB Calculations'!$K$48*'RAB Calculations'!O$48 ->  | P308: =$K293/'RAB Calculations'!$K$48*'RAB Calculations'!P$48 -> 
E309: WDV of 50% of capex
F310: cost base | K310: =K295 ->  | L310: =K310*(1+'General Inputs'!$B$6)+'RAB Calculations'!L296 ->  | M310: =L310*(1+'General Inputs'!$B$6)+'RAB Calculations'!M297 ->  | N310: =M310*(1+'General Inputs'!$B$6)+'RAB Calculations'!N298 ->  | O310: =N310*(1+'General Inputs'!$B$6)+'RAB Calculations'!O299 ->  | P310: =O310*(1+'General Inputs'!$B$6)+'RAB Calculations'!P300 -> 
F312: accumulated depreciation (to start of year) | K312: =J283*'RAB Calculations'!K$47 ->  | L312: =(K312+K283)*(1+'General Inputs'!$B$6) ->  | M312: =(L312+L283)*(1+'General Inputs'!$B$6) ->  | N312: =(M312+M283)*(1+'General Inputs'!$B$6) ->  | O312: =(N312+N283)*(1+'General Inputs'!$B$6) ->  | P312: =(O312+O283)*(1+'General Inputs'!$B$6) -> 
E314: Total WDV of 50% of capex | K314: =K306-K312+K310+(K310+((J310-(J310/'RAB Calculations'!$J$47*'RAB Calculations'!I$47)))+K271) ->  | L314: =L306-L312+L310+(L310+((K310-(K310/'RAB Calculations'!$J$47*'RAB Calculations'!J$47)))+L271) ->  | M314: =M306-M312+M310+(M310+((L310-(L310/'RAB Calculations'!$J$47*'RAB Calculations'!K$47)))+M271) ->  | N314: =N306-N312+N310+(N310+((M310-(M310/'RAB Calculations'!$J$47*'RAB Calculations'!L$47)))+N271) ->  | O314: =O306-O312+O310+(O310+((N310-(N310/'RAB Calculations'!$J$47*'RAB Calculations'!M$47)))+O271) ->  | P314: =P306-P312+P310+(P310+((O310-(O310/'RAB Calculations'!$J$47*'RAB Calculations'!N$47)))+P271) -> 
D316: Total asset returns | K316: =(K306+K310-K312)*'General Inputs'!$B$7 ->  | L316: =(L306+L310-L312)*'General Inputs'!$B$7+((K310-($K310/'RAB Calculations'!$K$47*'RAB Calculations'!K$47)))*'General Inputs'!$B$7+L308*'General Inputs'!$B$7 ->  | M316: =(M306+M310-M312)*'General Inputs'!$B$7+((L310-($K310/'RAB Calculations'!$K$47*'RAB Calculations'!L$47)))*'General Inputs'!$B$7+M308*'General Inputs'!$B$7 ->  | N316: =(N306+N310-N312)*'General Inputs'!$B$7+((M310-($K310/'RAB Calculations'!$K$47*'RAB Calculations'!M$47)))*'General Inputs'!$B$7+N308*'General Inputs'!$B$7 ->  | O316: =(O306+O310-O312)*'General Inputs'!$B$7+((N310-($K310/'RAB Calculations'!$K$47*'RAB Calculations'!N$47)))*'General Inputs'!$B$7+O308*'General Inputs'!$B$7 ->  | P316: =(P306+P310-P312)*'General Inputs'!$B$7+((O310-($K310/'RAB Calculations'!$K$47*'RAB Calculations'!O$47)))*'General Inputs'!$B$7+P308*'General Inputs'!$B$7 -> 
C319: Proof of Calculations
D321: Initial assets
E322: Opening balance | L322: =K289-K283-K312 -> 
D324: First 50% of capex
E325: Spend | K325: =K271 -> 
E326: Carried forward balance | L326: =K295 -> 
E327: NPV at nominal WACC of | I327: =NompretaxWACC -> 0.1064 | L327: =L326+L325+NPV(I327,M325:P325) -> 
D329: Remainder of capex
E330: Spend | K330: =K272 -> 
E331: Carried forward balance | L331: =K293 -> 
... 186 more rows

Sheet Tariff Inputs
A1: Tariff Inputs
A4: Tariff V: Brisbane & Riverview | B4: 2004/05 | C4: 2005/06 | D4: ='Volume Inputs'!A5 -> 2006/07 | E4: ='Volume Inputs'!A6 -> 2007/08 | F4: ='Volume Inputs'!A7 -> 2008/09 | G4: ='Volume Inputs'!A8 -> 2009/10 | H4: ='Volume Inputs'!A9 -> 2010/11 | I4: 2011/12 | J4: 2012/13 | K4: 2013/14 | L4: 2014/15 | M4: 2015/16
A5: ='General Inputs'!E20 -> Residential tariff - anytime use
A6: Fixed ($/day) | B6: 0 | C6: 0 | D6: 0 | E6: 0 | F6: 0 | G6: 0.215 | H6: ='[8]Alternative Tariff Schedule'!$B$5 -> 0.31 | I6: 0 | J6: 0 | K6: 0 | L6: 0 | M6: 0
A7: Band 1 ($/GJ) | B7: 0 | C7: 0 | D7: 0 | E7: 0 | F7: 0 | G7: 14.395 | H7: ='[8]Alternative Tariff Schedule'!$B$6 -> 21 | I7: 0 | J7: 0 | K7: 0 | L7: 0 | M7: 0
A8: Band 2 ($/GJ) | B8: 0 | C8: 0 | D8: 0 | E8: 0 | F8: 0 | G8: 13.835 | H8: ='[8]Alternative Tariff Schedule'!$B$7 -> 15 | I8: 0 | J8: 0 | K8: 0 | L8: 0 | M8: 0
A9: Band 3 ($/GJ) | B9: 0 | C9: 0 | D9: 0 | E9: 0 | F9: 0 | G9: 13.415 | H9: ='[8]Alternative Tariff Schedule'!$B$8 -> 7.13 | I9: 0 | J9: 0 | K9: 0 | L9: 0 | M9: 0
A10: Band 4 ($/GJ) | B10: 0 | C10: 0 | D10: 0 | E10: 0 | F10: 0 | G10: 12.705 | H10: 0 | I10: 0 | J10: 0 | K10: 0 | L10: 0 | M10: 0
A11: Band 5 ($/GJ) | B11: 0 | C11: 0 | D11: 0 | E11: 0 | F11: 0 | G11: 11.095 | H11: 0 | I11: 0 | J11: 0 | K11: 0 | L11: 0 | M11: 0
A12: Band 6 ($/GJ) | B12: 0 | C12: 0 | D12: 0 | E12: 0 | F12: 0 | G12: 8.265 | H12: 0 | I12: 0 | J12: 0 | K12: 0 | L12: 0 | M12: 0
A14: Tariff V: Northern | B14: =B4 -> 2004/05 | C14: =C4 -> 2005/06 | D14: 2006/07 | E14: 2007/08 | F14: 2008/09 | G14: 2009/10 | H14: 2010/11 | I14: =I4 -> 2011/12 | J14: =J4 -> 2012/13 | K14: =K4 -> 2013/14 | L14: =L4 -> 2014/15 | M14: =M4 -> 2015/16
A15: ='General Inputs'!E21 -> Residential tariff - anytime use
A16: =A6 -> Fixed ($/day) | B16: 0 | C16: 0 | D16: 0 | E16: 0 | F16: 0 | G16: 0.215 | H16: ='[8]Alternative Tariff Schedule'!$C$5 -> 0.31 | I16: 0 | J16: 0 | K16: 0 | L16: 0 | M16: 0
A17: =A7 -> Band 1 ($/GJ) | B17: 0 | C17: 0 | D17: 0 | E17: 0 | F17: 0 | G17: 15.825 | H17: ='[8]Alternative Tariff Schedule'!$C$6 -> 23.1 | I17: 0 | J17: 0 | K17: 0 | L17: 0 | M17: 0
A18: =A8 -> Band 2 ($/GJ) | B18: 0 | C18: 0 | D18: 0 | E18: 0 | F18: 0 | G18: 15.255 | H18: ='[8]Alternative Tariff Schedule'!$C$7 -> 16.5 | I18: 0 | J18: 0 | K18: 0 | L18: 0 | M18: 0
A19: =A9 -> Band 3 ($/GJ) | B19: 0 | C19: 0 | D19: 0 | E19: 0 | F19: 0 | G19: 14.765 | H19: ='[8]Alternative Tariff Schedule'!$C$8 -> 7.843 | I19: 0 | J19: 0 | K19: 0 | L19: 0 | M19: 0
A20: =A10 -> Band 4 ($/GJ) | B20: 0 | C20: 0 | D20: 0 | E20: 0 | F20: 0 | G20: 13.965 | H20: 0 | I20: 0 | J20: 0 | K20: 0 | L20: 0 | M20: 0
A21: Band 5 ($/GJ) | B21: 0 | C21: 0 | D21: 0 | E21: 0 | F21: 0 | G21: 12.205 | H21: 0 | I21: 0 | J21: 0 | K21: 0 | L21: 0 | M21: 0
A22: Band 6 ($/GJ) | B22: 0 | C22: 0 | D22: 0 | E22: 0 | F22: 0 | G22: 9.099 | H22: 0 | I22: 0 | J22: 0 | K22: 0 | L22: 0 | M22: 0
A24: Tariff C: Brisbane & Riverview | B24: 2004/05 | C24: 2005/06 | D24: =D14 -> 2006/07 | E24: =E14 -> 2007/08 | F24: =F14 -> 2008/09 | G24: =G14 -> 2009/10 | H24: =H14 -> 2010/11 | I24: 2011/12 | J24: 2012/13 | K24: 2013/14 | L24: 2014/15 | M24: 2015/16
A25: ='General Inputs'!E22 -> Commercial tariff - anytime use
A26: Fixed ($/day) | B26: 0 | C26: 0 | D26: 0 | E26: 0 | F26: 0 | G26: 0.215 | H26: ='[8]Alternative Tariff Schedule'!$B$11 -> 0.296 | I26: 0 | J26: 0 | K26: 0 | L26: 0 | M26: 0
A27: Band 1 ($/GJ) | B27: 0 | C27: 0 | D27: 0 | E27: 0 | F27: 0 | G27: 14.395 | H27: ='[8]Alternative Tariff Schedule'!$B$12 -> 15.415 | I27: 0 | J27: 0 | K27: 0 | L27: 0 | M27: 0
A28: Band 2 ($/GJ) | B28: 0 | C28: 0 | D28: 0 | E28: 0 | F28: 0 | G28: 13.835 | H28: ='[8]Alternative Tariff Schedule'!$B$13 -> 14.065 | I28: 0 | J28: 0 | K28: 0 | L28: 0 | M28: 0
A29: Band 3 ($/GJ) | B29: 0 | C29: 0 | D29: 0 | E29: 0 | F29: 0 | G29: 13.415 | H29: ='[8]Alternative Tariff Schedule'!$B$14 -> 13.645 | I29: 0 | J29: 0 | K29: 0 | L29: 0 | M29: 0
A30: =A20 -> Band 4 ($/GJ) | B30: 0 | C30: 0 | D30: 0 | E30: 0 | F30: 0 | G30: 12.705 | H30: ='[8]Alternative Tariff Schedule'!$B$15 -> 12.935 | I30: 0 | J30: 0 | K30: 0 | L30: 0 | M30: 0
A31: Band 5 ($/GJ) | B31: 0 | C31: 0 | D31: 0 | E31: 0 | F31: 0 | G31: 11.095 | H31: ='[8]Alternative Tariff Schedule'!$B$16 -> 11.325 | I31: 0 | J31: 0 | K31: 0 | L31: 0 | M31: 0
A32: Band 6 ($/GJ) | B32: 0 | C32: 0 | D32: 0 | E32: 0 | F32: 0 | G32: 8.265 | H32: ='[8]Alternative Tariff Schedule'!$B$17 -> 8.495 | I32: 0 | J32: 0 | K32: 0 | L32: 0 | M32: 0
A34: Tariff C: Northern | B34: =B24 -> 2004/05 | C34: =C24 -> 2005/06 | D34: 2006/07 | E34: 2007/08 | F34: 2008/09 | G34: 2009/10 | H34: 2010/11 | I34: =I24 -> 2011/12 | J34: =J24 -> 2012/13 | K34: =K24 -> 2013/14 | L34: =L24 -> 2014/15 | M34: =M24 -> 2015/16
A35: ='General Inputs'!E23 -> Commercial tariff - anytime use
A36: =A26 -> Fixed ($/day) | B36: 0 | C36: 0 | D36: 0 | E36: 0 | F36: 0 | G36: 0.215 | H36: ='[8]Alternative Tariff Schedule'!$C$11 -> 0.296 | I36: 0 | J36: 0 | K36: 0 | L36: 0 | M36: 0
A37: =A27 -> Band 1 ($/GJ) | B37: 0 | C37: 0 | D37: 0 | E37: 0 | F37: 0 | G37: 15.825 | H37: ='[8]Alternative Tariff Schedule'!$C$12 -> 16.923 | I37: 0 | J37: 0 | K37: 0 | L37: 0 | M37: 0
A38: =A28 -> Band 2 ($/GJ) | B38: 0 | C38: 0 | D38: 0 | E38: 0 | F38: 0 | G38: 15.255 | H38: ='[8]Alternative Tariff Schedule'!$C$13 -> 15.485 | I38: 0 | J38: 0 | K38: 0 | L38: 0 | M38: 0
A39: =A29 -> Band 3 ($/GJ) | B39: 0 | C39: 0 | D39: 0 | E39: 0 | F39: 0 | G39: 14.765 | H39: ='[8]Alternative Tariff Schedule'!$C$14 -> 14.995 | I39: 0 | J39: 0 | K39: 0 | L39: 0 | M39: 0
A40: =A30 -> Band 4 ($/GJ) | B40: 0 | C40: 0 | D40: 0 | E40: 0 | F40: 0 | G40: 13.965 | H40: ='[8]Alternative Tariff Schedule'!$C$15 -> 14.195 | I40: 0 | J40: 0 | K40: 0 | L40: 0 | M40: 0
A41: Band 5 ($/GJ) | B41: 0 | C41: 0 | D41: 0 | E41: 0 | F41: 0 | G41: 12.205 | H41: ='[8]Alternative Tariff Schedule'!$C$16 -> 12.435 | I41: 0 | J41: 0 | K41: 0 | L41: 0 | M41: 0
A42: Band 6 ($/GJ) | B42: 0 | C42: 0 | D42: 0 | E42: 0 | F42: 0 | G42: 9.099 | H42: ='[8]Alternative Tariff Schedule'!$C$17 -> 9.329 | I42: 0 | J42: 0 | K42: 0 | L42: 0 | M42: 0
A44: Tariff D: Brisbane | B44: =B14 -> 2004/05 | C44: =C14 -> 2005/06 | D44: 2006/07 | E44: 2007/08 | F44: 2008/09 | G44: 2009/10 | H44: 2010/11 | I44: 2011/12 | J44: 2012/13 | K44: 2013/14 | L44: 2014/15 | M44: 2015/16
A45: Demand customers in region 1
A46: Band 1 ($/GJ) | B46: 0 | C46: 0 | D46: 0 | E46: 0 | F46: 0 | G46: 6945.5 | H46: ='[8]Alternative Tariff Schedule'!B21 -> 7984.09 | I46: 0 | J46: 0 | K46: 0 | L46: 0 | M46: 0
A47: Band 2 ($/GJ) | B47: 0 | C47: 0 | D47: 0 | E47: 0 | F47: 0 | G47: 71.275 | H47: ='[8]Alternative Tariff Schedule'!B22 -> 75.195 | I47: 0 | J47: 0 | K47: 0 | L47: 0 | M47: 0
A48: Band 3 ($/GJ) | B48: 0 | C48: 0 | D48: 0 | E48: 0 | F48: 0 | G48: 40.745 | H48: ='[8]Alternative Tariff Schedule'!B23 -> 41.421 | I48: 0 | J48: 0 | K48: 0 | L48: 0 | M48: 0
A49: Band 4 ($/GJ) | B49: 0 | C49: 0 | D49: 0 | E49: 0 | F49: 0 | G49: 16.545 | H49: ='[8]Alternative Tariff Schedule'!B24 -> 16.545 | I49: 0 | J49: 0 | K49: 0 | L49: 0 | M49: 0
A50: Band 5 ($/GJ) | B50: 0 | C50: 0 | D50: 0 | E50: 0 | F50: 0 | G50: 7.544 | H50: ='[8]Alternative Tariff Schedule'!B25 -> 7.544 | I50: 0 | J50: 0 | K50: 0 | L50: 0 | M50: 0
A51: Band 6 ($/GJ) | B51: 0 | C51: 0 | D51: 0 | E51: 0 | F51: 0 | G51: 3.825 | H51: ='[8]Alternative Tariff Schedule'!B26 -> 3.825 | I51: 0 | J51: 0 | K51: 0 | L51: 0 | M51: 0
A52: Band 7 ($/GJ) | B52: 0 | C52: 0 | D52: 0 | E52: 0 | F52: 0 | G52: 3.825 | H52: ='[8]Alternative Tariff Schedule'!B27 -> 3.825 | I52: 0 | J52: 0 | K52: 0 | L52: 0 | M52: 0
A54: Tariff D: Northern | B54: =B44 -> 2004/05 | C54: =C44 -> 2005/06 | D54: 2006/07 | E54: 2007/08 | F54: 2008/09 | G54: 2009/10 | H54: 2010/11 | I54: =I44 -> 2011/12 | J54: =J44 -> 2012/13 | K54: =K44 -> 2013/14 | L54: =L44 -> 2014/15 | M54: =M44 -> 2015/16
A55: Demand customers in region 2
A56: =A46 -> Band 1 ($/GJ) | B56: 0 | C56: 0 | D56: 0 | E56: 0 | F56: 0 | G56: 7525.5 | H56: ='[8]Alternative Tariff Schedule'!D21 -> 8598.89 | I56: 0 | J56: 0 | K56: 0 | L56: 0 | M56: 0
A57: Band 2 ($/GJ) | B57: 0 | C57: 0 | D57: 0 | E57: 0 | F57: 0 | G57: 78.275 | H57: ='[8]Alternative Tariff Schedule'!D22 -> 82.58 | I57: 0 | J57: 0 | K57: 0 | L57: 0 | M57: 0
A58: Band 3 ($/GJ) | B58: 0 | C58: 0 | D58: 0 | E58: 0 | F58: 0 | G58: 44.465 | H58: ='[8]Alternative Tariff Schedule'!D23 -> 45.203 | I58: 0 | J58: 0 | K58: 0 | L58: 0 | M58: 0
A59: Band 4 ($/GJ) | B59: 0 | C59: 0 | D59: 0 | E59: 0 | F59: 0 | G59: 17.905 | H59: ='[8]Alternative Tariff Schedule'!D24 -> 17.905 | I59: 0 | J59: 0 | K59: 0 | L59: 0 | M59: 0
A60: Band 5 ($/GJ) | B60: 0 | C60: 0 | D60: 0 | E60: 0 | F60: 0 | G60: 8.055 | H60: ='[8]Alternative Tariff Schedule'!D25 -> 8.055 | I60: 0 | J60: 0 | K60: 0 | L60: 0 | M60: 0
A61: Band 6 ($/GJ) | B61: 0 | C61: 0 | D61: 0 | E61: 0 | F61: 0 | G61: 4.185 | H61: ='[8]Alternative Tariff Schedule'!D26 -> 4.185 | I61: 0 | J61: 0 | K61: 0 | L61: 0 | M61: 0
A62: Band 7 ($/GJ) | B62: 0 | C62: 0 | D62: 0 | E62: 0 | F62: 0 | G62: 4.185 | H62: ='[8]Alternative Tariff Schedule'!D27 -> 4.185 | I62: 0 | J62: 0 | K62: 0 | L62: 0 | M62: 0
A64: Tariff D: Riverview | B64: =B54 -> 2004/05 | C64: =C54 -> 2005/06 | D64: 2006/07 | E64: 2007/08 | F64: 2008/09 | G64: 2009/10 | H64: 2010/11 | I64: =I54 -> 2011/12 | J64: =J54 -> 2012/13 | K64: =K54 -> 2013/14 | L64: =L54 -> 2014/15 | M64: =M54 -> 2015/16
A65: Demand customers in region 3
A66: =A56 -> Band 1 ($/GJ) | B66: 0 | C66: 0 | D66: 0 | E66: 0 | F66: 0 | G66: 6509.5 | H66: ='[8]Alternative Tariff Schedule'!C21 -> 7521.99 | I66: 0 | J66: 0 | K66: 0 | L66: 0 | M66: 0
A67: Band 2 ($/GJ) | B67: 0 | C67: 0 | D67: 0 | E67: 0 | F67: 0 | G67: 7.505 | H67: ='[8]Alternative Tariff Schedule'!C22 -> 7.918 | I67: 0 | J67: 0 | K67: 0 | L67: 0 | M67: 0
A68: Band 3 ($/GJ) | B68: 0 | C68: 0 | D68: 0 | E68: 0 | F68: 0 | G68: 7.455 | H68: ='[8]Alternative Tariff Schedule'!C23 -> 7.579 | I68: 0 | J68: 0 | K68: 0 | L68: 0 | M68: 0
A69: Band 4 ($/GJ) | B69: 0 | C69: 0 | D69: 0 | E69: 0 | F69: 0 | G69: 6.965 | H69: ='[8]Alternative Tariff Schedule'!C24 -> 6.965 | I69: 0 | J69: 0 | K69: 0 | L69: 0 | M69: 0
A70: Band 5 ($/GJ) | B70: 0 | C70: 0 | D70: 0 | E70: 0 | F70: 0 | G70: 6.925 | H70: ='[8]Alternative Tariff Schedule'!C25 -> 6.925 | I70: 0 | J70: 0 | K70: 0 | L70: 0 | M70: 0
A71: Band 6 ($/GJ) | B71: 0 | C71: 0 | D71: 0 | E71: 0 | F71: 0 | G71: 6.895 | H71: ='[8]Alternative Tariff Schedule'!C26 -> 6.895 | I71: 0 | J71: 0 | K71: 0 | L71: 0 | M71: 0
A72: Band 7 ($/GJ) | B72: 0 | C72: 0 | D72: 0 | E72: 0 | F72: 0 | G72: 6.895 | H72: ='[8]Alternative Tariff Schedule'!C27 -> 6.895 | I72: 0 | J72: 0 | K72: 0 | L72: 0 | M72: 0

Sheet Cost allocators
A1: Cost Allocators
A4: Tariff D Zonal Allocator Selection
A5: ='FDC Calculations'!A4 -> Return on capital | B5: Assets
A6: ='FDC Calculations'!A5 -> Return of capital | B6: Assets
A7: ='FDC Calculations'!A6 -> O&M | B7: Volume and Customer No
A8: ='FDC Calculations'!A7 -> Carry-over amounts | B8: Volume and Customer No
A9: ='FDC Calculations'!A8 -> Benchmark Tax liability | B9: Assets
A11: Tariff V+C Allocator Selection | C11: ='General Inputs'!B20 -> Tariff V: Brisbane & Riverview | D11: ='General Inputs'!B21 -> Tariff V: Northern | E11: ='General Inputs'!B22 -> Tariff C: Brisbane & Riverview | F11: ='General Inputs'!B23 -> Tariff C: Northern
A12: =A5 -> Return on capital | B12: Volume and Customer No | C12: =IF(B12=$A$20,$C$20/SUM($C$20:$F$20),IF(B12=$A$21,$C$21/SUM($C$21:$F$21),$C$22/SUM($C$22:$F$22))) -> 0.9331869928 | D12: =IF(B12=$A$20,$D$20/SUM($C$20:$F$20),IF(B12=$A$21,$D$21/SUM($C$21:$F$21),$D$22/SUM($C$22:$F$22))) -> 0.03746502162 | E12: =IF(B12=$A$20,$E$20/SUM($C$20:$F$20),IF(B12=$A$21,$E$21/SUM($C$21:$F$21),$E$22/SUM($C$22:$F$22))) -> 0.02531846729 | F12: =IF(B12=$A$20,$F$20/SUM($C$20:$F$20),IF(B12=$A$21,$F$21/SUM($C$21:$F$21),$F$22/SUM($C$22:$F$22))) -> 0.004029518292
A13: =A6 -> Return of capital | B13: Volume and Customer No | C13: =IF(B13=$A$20,$C$20/SUM($C$20:$F$20),IF(B13=$A$21,$C$21/SUM($C$21:$F$21),$C$22/SUM($C$22:$F$22))) -> 0.9331869928 | D13: =IF(B13=$A$20,$D$20/SUM($C$20:$F$20),IF(B13=$A$21,$D$21/SUM($C$21:$F$21),$D$22/SUM($C$22:$F$22))) -> 0.03746502162 | E13: =IF(B13=$A$20,$E$20/SUM($C$20:$F$20),IF(B13=$A$21,$E$21/SUM($C$21:$F$21),$E$22/SUM($C$22:$F$22))) -> 0.02531846729 | F13: =IF(B13=$A$20,$F$20/SUM($C$20:$F$20),IF(B13=$A$21,$F$21/SUM($C$21:$F$21),$F$22/SUM($C$22:$F$22))) -> 0.004029518292
A14: =A7 -> O&M | B14: Volume and Customer No | C14: =IF(B14=$A$20,$C$20/SUM($C$20:$F$20),IF(B14=$A$21,$C$21/SUM($C$21:$F$21),$C$22/SUM($C$22:$F$22))) -> 0.9331869928 | D14: =IF(B14=$A$20,$D$20/SUM($C$20:$F$20),IF(B14=$A$21,$D$21/SUM($C$21:$F$21),$D$22/SUM($C$22:$F$22))) -> 0.03746502162 | E14: =IF(B14=$A$20,$E$20/SUM($C$20:$F$20),IF(B14=$A$21,$E$21/SUM($C$21:$F$21),$E$22/SUM($C$22:$F$22))) -> 0.02531846729 | F14: =IF(B14=$A$20,$F$20/SUM($C$20:$F$20),IF(B14=$A$21,$F$21/SUM($C$21:$F$21),$F$22/SUM($C$22:$F$22))) -> 0.004029518292
A15: =A8 -> Carry-over amounts | B15: Volume and Customer No | C15: =IF(B15=$A$20,$C$20/SUM($C$20:$F$20),IF(B15=$A$21,$C$21/SUM($C$21:$F$21),$C$22/SUM($C$22:$F$22))) -> 0.9331869928 | D15: =IF(B15=$A$20,$D$20/SUM($C$20:$F$20),IF(B15=$A$21,$D$21/SUM($C$21:$F$21),$D$22/SUM($C$22:$F$22))) -> 0.03746502162 | E15: =IF(B15=$A$20,$E$20/SUM($C$20:$F$20),IF(B15=$A$21,$E$21/SUM($C$21:$F$21),$E$22/SUM($C$22:$F$22))) -> 0.02531846729 | F15: =IF(B15=$A$20,$F$20/SUM($C$20:$F$20),IF(B15=$A$21,$F$21/SUM($C$21:$F$21),$F$22/SUM($C$22:$F$22))) -> 0.004029518292
A16: =A9 -> Benchmark Tax liability | B16: Volume and Customer No | C16: =IF(B16=$A$20,$C$20/SUM($C$20:$F$20),IF(B16=$A$21,$C$21/SUM($C$21:$F$21),$C$22/SUM($C$22:$F$22))) -> 0.9331869928 | D16: =IF(B16=$A$20,$D$20/SUM($C$20:$F$20),IF(B16=$A$21,$D$21/SUM($C$21:$F$21),$D$22/SUM($C$22:$F$22))) -> 0.03746502162 | E16: =IF(B16=$A$20,$E$20/SUM($C$20:$F$20),IF(B16=$A$21,$E$21/SUM($C$21:$F$21),$E$22/SUM($C$22:$F$22))) -> 0.02531846729 | F16: =IF(B16=$A$20,$F$20/SUM($C$20:$F$20),IF(B16=$A$21,$F$21/SUM($C$21:$F$21),$F$22/SUM($C$22:$F$22))) -> 0.004029518292
A18: Allocators (Percentages) | B18: Total | C18: =C11 -> Tariff V: Brisbane & Riverview | D18: =D11 -> Tariff V: Northern | E18: =E11 -> Tariff C: Brisbane & Riverview | F18: =F11 -> Tariff C: Northern | G18: ='General Inputs'!B24 -> Tariff D: Brisbane | H18: ='General Inputs'!B26 -> Tariff D: Riverview | I18: ='General Inputs'!B25 -> Tariff D: Northern
A19: Assets | B19: =SUM(C19:I19) -> 0.2416291798 | G19: ='DORC Calculations'!B12*1000000/'DORC Calculations'!J5 -> 0.2167387196 | H19: ='DORC Calculations'!B14*1000000/'DORC Calculations'!J5 -> 0 | I19: ='DORC Calculations'!B13*1000000/'DORC Calculations'!J5 -> 0.02489046023
A20: Customer Number | B20: =SUM(C20:I20) -> 1 | C20: =C28/SUM($C$28:$I$28) -> 0.9270131678 | D20: =D28/SUM($C$28:$I$28) -> 0.03817439182 | E20: =E28/SUM($C$28:$I$28) -> 0.0293506653 | F20: =F28/SUM($C$28:$I$28) -> 0.004671256019 | G20: =G28/SUM($C$28:$I$28) -> 0.0007041968137 | H20: =I28/SUM($C$28:$I$28) -> 2.466348701e-05 | I20: =H28/SUM($C$28:$I$28) -> 6.165871752e-05
A21: Volume | B21: =SUM(C21:I21) -> 1 | C21: =C29/SUM($C$29:$I$29) -> 0.154792408 | D21: =D29/SUM($C$29:$I$29) -> 0.005257277933 | E21: =E29/SUM($C$29:$I$29) -> 0 | F21: =F29/SUM($C$29:$I$29) -> 0 | G21: =G29/SUM($C$29:$I$29) -> 0.683470056 | H21: =I29/SUM($C$29:$I$29) -> 0.1376626126 | I21: =H29/SUM($C$29:$I$29) -> 0.0188176455
A22: Volume and Customer No | B22: =SUM(C22:P22) -> 1 | C22: =$B$23*C20+$B$24*C21 -> 0.5409027879 | D22: =$B$23*D20+$B$24*D21 -> 0.02171583488 | E22: 0.01467533265 | F22: 0.002335628009 | G22: 0.3420871264 | H22: 0.06884363802 | I22: 0.009439652109
A23: % Volume | B23: 0.5
A24: % Customer | B24: 0.5
A26: Allocators (Amounts) | C26: =C18 -> Tariff V: Brisbane & Riverview | D26: =D18 -> Tariff V: Northern | E26: =E18 -> Tariff C: Brisbane & Riverview | F26: =F18 -> Tariff C: Northern | G26: =G18 -> Tariff D: Brisbane | H26: =I18 -> Tariff D: Northern | I26: =H18 -> Tariff D: Riverview
A27: Assets | C27: 0 | D27: 0 | G27: ='DORC Calculations'!B12*1000000 -> 69996643.89 | H27: ='DORC Calculations'!B13*1000000 -> 8038474.55 | I27: ='DORC Calculations'!B14*1000000 -> 0
A28: Customer Number | C28: =IFERROR(AVERAGE('Connection Numbers Inputs'!$B5:$B9),0) -> 75172.92 | D28: =IFERROR(AVERAGE('Connection Numbers Inputs'!$C5:$C9),0) -> 3095.62 | E28: =IFERROR(AVERAGE('Connection Numbers Inputs'!$D5:$D9),0) -> 2380.090479 | F28: =IFERROR(AVERAGE('Connection Numbers Inputs'!$E5:$E9),0) -> 378.7993172 | G28: =IFERROR(AVERAGE('Connection Numbers Inputs'!$F89:$F93),0) -> 57.1044 | H28: =IFERROR(AVERAGE('Connection Numbers Inputs'!$G89:$G93),0) -> 5 | I28: =IFERROR(AVERAGE('Connection Numbers Inputs'!$H89:$H93),0) -> 2
A29: Volume | C29: =IFERROR(IF(C33="Demand",C56,AVERAGE('Volume Inputs'!B$89:B$93)),0) -> 687028.6675 | D29: =IFERROR(IF(D33="Demand",D56,AVERAGE('Volume Inputs'!C$89:C$93)),0) -> 23333.83594 | E29: =IFERROR(IF(E33="Demand",E56,AVERAGE('Volume Inputs'!D$89:D$93)),0) -> 0 | F29: =IFERROR(IF(F33="Demand",F56,AVERAGE('Volume Inputs'!E$89:E$93)),0) -> 0 | G29: =IFERROR(IF(G33="Demand",G56,AVERAGE('Volume Inputs'!F$89:F$93)),0) -> 3033504.86 | H29: =IFERROR(IF(H33="Demand",H56,AVERAGE('Volume Inputs'!G$89:G$93)),0) -> 83520 | I29: =IFERROR(IF(I33="Demand",I56,AVERAGE('Volume Inputs'!H$89:H$93)),0) -> 611000
A31: Calculation of Consumption (GJ)
A32: Total MDQ | C32: =C26 -> Tariff V: Brisbane & Riverview | D32: Tariff V: Northern | E32: Tariff C: Brisbane & Riverview | F32: Tariff C: Northern | G32: Tariff D: Brisbane | H32: Tariff D: Northern | I32: Tariff D: Riverview
A33: Demand Tariff | C33: ='General Inputs'!C20 -> Non-demand | D33: ='General Inputs'!C21 -> Non-demand | E33: ='General Inputs'!C22 -> Non-demand | F33: ='General Inputs'!C23 -> Non-demand | G33: ='General Inputs'!C24 -> Demand | H33: ='General Inputs'!C25 -> Demand | I33: ='General Inputs'!C26 -> Demand
A34: 2006/07 | C34: =IF($C33="Demand",'Volume Inputs'!B89,0) -> 0 | D34: =IF($D33="Demand",'Volume Inputs'!C89,0) -> 0 | E34: =IF($D33="Demand",'Volume Inputs'!D89,0) -> 0 | F34: =IF($D33="Demand",'Volume Inputs'!E89,0) -> 0 | G34: =IF($G33="Demand",'Volume Inputs'!F89,0) -> 15099 | H34: =IF($H33="Demand",'Volume Inputs'!G89,0) -> 406 | I34: =IF($I33="Demand",'Volume Inputs'!H89,0) -> 3710
A35: 2007/08 | C35: =IF($C33="Demand",'Volume Inputs'!B90,0) -> 0 | D35: =IF($D33="Demand",'Volume Inputs'!C90,0) -> 0 | E35: =IF($D33="Demand",'Volume Inputs'!D90,0) -> 0 | F35: =IF($D33="Demand",'Volume Inputs'!E90,0) -> 0 | G35: =IF($G33="Demand",'Volume Inputs'!F90,0) -> 15654 | H35: =IF($H33="Demand",'Volume Inputs'!G90,0) -> 406 | I35: =IF($I33="Demand",'Volume Inputs'!H90,0) -> 3710
A36: 2008/09 | C36: =IF($C33="Demand",'Volume Inputs'!B91,0) -> 0 | D36: =IF($D33="Demand",'Volume Inputs'!C91,0) -> 0 | E36: =IF($D33="Demand",'Volume Inputs'!D91,0) -> 0 | F36: =IF($D33="Demand",'Volume Inputs'!E91,0) -> 0 | G36: =IF($G33="Demand",'Volume Inputs'!F91,0) -> 15542 | H36: =IF($H33="Demand",'Volume Inputs'!G91,0) -> 406 | I36: =IF($I33="Demand",'Volume Inputs'!H91,0) -> 3710
A37: 2009/10 | C37: =IF($C33="Demand",'Volume Inputs'!B92,0) -> 0 | D37: =IF($D33="Demand",'Volume Inputs'!C92,0) -> 0 | E37: =IF($D33="Demand",'Volume Inputs'!D92,0) -> 0 | F37: =IF($D33="Demand",'Volume Inputs'!E92,0) -> 0 | G37: =IF($G33="Demand",'Volume Inputs'!F92,0) -> 16062.325 | H37: =IF($H33="Demand",'Volume Inputs'!G92,0) -> 409 | I37: =IF($I33="Demand",'Volume Inputs'!H92,0) -> 3710
A38: 2010/11 | C38: =IF($C33="Demand",'Volume Inputs'!B93,0) -> 0 | D38: =IF($D33="Demand",'Volume Inputs'!C93,0) -> 0 | E38: =IF($D33="Demand",'Volume Inputs'!D93,0) -> 0 | F38: =IF($D33="Demand",'Volume Inputs'!E93,0) -> 0 | G38: =IF($G33="Demand",'Volume Inputs'!F93,0) -> 16242.946 | H38: =IF($H33="Demand",'Volume Inputs'!G93,0) -> 414 | I38: =IF($I33="Demand",'Volume Inputs'!H93,0) -> 3710
A39: 2011/12 | C39: =IF($C33="Demand",'Volume Inputs'!B94,0) -> 0 | D39: =IF($D33="Demand",'Volume Inputs'!C94,0) -> 0 | E39: =IF($D33="Demand",'Volume Inputs'!D94,0) -> 0 | F39: =IF($D33="Demand",'Volume Inputs'!E94,0) -> 0 | G39: =IF($G33="Demand",'Volume Inputs'!F94,0) -> 14371.065 | H39: =IF($H33="Demand",'Volume Inputs'!G94,0) -> 422 | I39: =IF($I33="Demand",'Volume Inputs'!H94,0) -> 2400
A40: 2012/13 | C40: =IF($C33="Demand",'Volume Inputs'!B95,0) -> 0 | D40: =IF($D33="Demand",'Volume Inputs'!C95,0) -> 0 | E40: =IF($D33="Demand",'Volume Inputs'!D95,0) -> 0 | F40: =IF($D33="Demand",'Volume Inputs'!E95,0) -> 0 | G40: =IF($G33="Demand",'Volume Inputs'!F95,0) -> 14710.242 | H40: =IF($H33="Demand",'Volume Inputs'!G95,0) -> 427 | I40: =IF($I33="Demand",'Volume Inputs'!H95,0) -> 2400
A41: 2013/14 | C41: =IF($C33="Demand",'Volume Inputs'!B96,0) -> 0 | D41: =IF($D33="Demand",'Volume Inputs'!C96,0) -> 0 | E41: =IF($D33="Demand",'Volume Inputs'!D96,0) -> 0 | F41: =IF($D33="Demand",'Volume Inputs'!E96,0) -> 0 | G41: =IF($G33="Demand",'Volume Inputs'!F96,0) -> 14545.671 | H41: =IF($H33="Demand",'Volume Inputs'!G96,0) -> 427 | I41: =IF($I33="Demand",'Volume Inputs'!H96,0) -> 2400
A42: 2014/15 | C42: =IF($C33="Demand",'Volume Inputs'!B97,0) -> 0 | D42: =IF($D33="Demand",'Volume Inputs'!C97,0) -> 0 | E42: =IF($D33="Demand",'Volume Inputs'!D97,0) -> 0 | F42: =IF($D33="Demand",'Volume Inputs'!E97,0) -> 0 | G42: =IF($G33="Demand",'Volume Inputs'!F97,0) -> 14546.963 | H42: =IF($H33="Demand",'Volume Inputs'!G97,0) -> 428 | I42: =IF($I33="Demand",'Volume Inputs'!H97,0) -> 2400
A43: 2015/16 | C43: =IF($C33="Demand",'Volume Inputs'!B98,0) -> 0 | D43: =IF($D33="Demand",'Volume Inputs'!C98,0) -> 0 | E43: =IF($D33="Demand",'Volume Inputs'!D98,0) -> 0 | F43: =IF($D33="Demand",'Volume Inputs'!E98,0) -> 0 | G43: =IF($G33="Demand",'Volume Inputs'!F98,0) -> 14901.031 | H43: =IF($H33="Demand",'Volume Inputs'!G98,0) -> 431 | I43: =IF($I33="Demand",'Volume Inputs'!H98,0) -> 2400
A45: Calculated Consumption | C45: =C32 -> Tariff V: Brisbane & Riverview | D45: Tariff V: Northern | E45: Tariff C: Brisbane & Riverview | F45: Tariff C: Northern | G45: Tariff D: Brisbane | H45: Tariff D: Northern | I45: Tariff D: Riverview
A46: =A34 -> 2006/07 | C46: =C34/$B$59*$B$60 -> 0 | D46: 0 | E46: =E34/$B$59*$B$60 -> 0 | F46: 0 | G46: 3019800 | H46: 81200 | I46: 742000
A47: =A35 -> 2007/08 | C47: 0 | D47: 0 | E47: 0 | F47: 0 | G47: 3130800 | H47: 81200 | I47: 742000
A48: 2008/09 | C48: 0 | D48: 0 | E48: 0 | F48: 0 | G48: 3108400 | H48: 81200 | I48: 742000
A49: 2009/10 | C49: 0 | D49: 0 | E49: 0 | F49: 0 | G49: 3212465 | H49: 81800 | I49: 742000
A50: 2010/11 | C50: 0 | D50: 0 | E50: 0 | F50: 0 | G50: 3248589.2 | H50: 82800 | I50: 742000
A51: 2011/12 | C51: 0 | D51: 0 | E51: 0 | F51: 0 | G51: 2874213 | H51: 84400 | I51: 480000
A52: 2012/13 | C52: 0 | D52: 0 | E52: 0 | F52: 0 | G52: 2942048.4 | H52: 85400 | I52: 480000
A53: 2013/14 | C53: 0 | D53: 0 | E53: 0 | F53: 0 | G53: 2909134.2 | H53: 85400 | I53: 480000
A54: 2014/15 | C54: 0 | D54: 0 | E54: 0 | F54: 0 | G54: 2909392.6 | H54: 85600 | I54: 480000
A55: 2015/16 | C55: 0 | D55: 0 | E55: 0 | F55: 0 | G55: 2980206.2 | H55: 86200 | I55: 480000
A56: Average | C56: =AVERAGE(C46:C55) -> 0 | D56: 0 | E56: 0 | F56: 0 | G56: 3033504.86 | H56: 83520 | I56: 611000
A58: Other Calculation of Consumption Inputs
A59: Load factor | B59: 1.3
A60: Days | B60: 260

Sheet PTRM Inputs
A1: QLD PTRM Inputs
A2: s
A3: Building block components ($M NOMINAL) | B3: 2011-12 | C3: 2012-13 | D3: 2013-14 | E3: 2014-15 | F3: 2015-16 | G3: TOTAL
A5: Return on capital | B5: 33.05269615 | C5: 36.80851367 | D5: 41.0201016 | E5: 44.68530134 | F5: 48.34418196 | G5: =SUM(B5:F5) -> 203.9107947
A6: Return of capital | B6: 1.866380671 | C6: 2.445361868 | D6: 2.932640463 | E6: 3.46736407 | F6: 3.966894637 | G6: 14.67864171
A7: O&M | B7: 23.18389989 | C7: 24.32949493 | D7: 24.13896478 | E7: 24.52850255 | F7: 24.80603602 | G7: 120.9868982
A8: Carry-over amounts | B8: 0 | C8: 0 | D8: 0 | E8: 0 | F8: 0 | G8: 0
A9: Benchmark Tax liability | B9: 4.149658137 | C9: 4.295905785 | D9: 4.421074606 | E9: 4.563169938 | F9: 4.745035711 | G9: 22.17484418
A10: TOTAL REVENUE | B10: =SUM(B5:B9) -> 62.25263485 | C10: =SUM(C5:C9) -> 67.87927626 | D10: =SUM(D5:D9) -> 72.51278145 | E10: =SUM(E5:E9) -> 77.2443379 | F10: =SUM(F5:F9) -> 81.86214833 | G10: 361.7511788
A11: TOTAL REVENUE (SMOOTHED) | B11: 56.93210156 | C11: 66.44457951 | D11: 74.43552743 | E11: 79.02304463 | F11: 84.03237314 | G11: 360.8676263
A14: PTRM Opening RAB 2011-12
A15: Asset Class Name | B15: Opening Asset Value
A16: Mains | B16: 232.9164034
A17: Inlets | B17: 49.72618859
A18: Meters | B18: 27.65270457
A19: Telemetry | B19: 0.4866782136
A20: IT system | B20: 6.142800751
A21: Other distribution system equipment | B21: 4.184177327
A22: Other | B22: 1.845081473

Sheet DORC Calculations
A1: DORC Inputs and Calculations
A2: Tariff D DORC Calculations
A4: Tariff D Summary - 1 July 1999 DORC | B4: Total | C4: Mains | D4: Inlets | E4: Meters | F4: Telemetry | G4: Stations | H4: Regulators | J4: Total 2010-11 RAB | K4: Total 1 July 1999 RAB
A5: ='General Inputs'!D24 -> Tariff D - MDQ (GJ/d) Tariff D Zone - Brisbane | B5: =SUM(C5:H5) -> 34.692 | C5: 30.07 | D5: 0.173 | E5: 1.5 | F5: 0.332 | G5: 1.8 | H5: 0.817 | J5: =SUM('PTRM Inputs'!B16:B26)*1000000 -> 322954034.4 | K5: 160063693.6
A6: ='General Inputs'!D25 -> Tariff D - MDQ (GJ/d) Tariff D Zone - Northern | B6: =SUM(C6:H6) -> 3.984059 | C6: 3.281 | D6: 0.009561 | E6: 0.171018 | F6: 0.028 | G6: 0.36 | H6: 0.13448
A7: ='General Inputs'!D26 -> Tariff D - MDQ (GJ/d) Tariff D Zone - Riverview | B7: =SUM(C7:H7) -> 0
A8: Total | B8: =SUM(B5:B7) -> 38.676059
A11: Tariff D Summary - Closing 2010-11 RAB | B11: Total | C11: Mains | D11: Inlets | E11: Meters | F11: Telemetry | G11: Stations | H11: Regulators
A12: ='General Inputs'!D24 -> Tariff D - MDQ (GJ/d) Tariff D Zone - Brisbane | B12: =SUM(C12:H12) -> 69.99664389 | C12: =C5/$K$5*$J$5 -> 60.67102162 | D12: 0.3490550961 | E12: 3.026489273 | F12: 0.669862959 | G12: 3.631787127 | H12: 1.648427824
A13: ='General Inputs'!D25 -> Tariff D - MDQ (GJ/d) Tariff D Zone - Northern | B13: =SUM(C13:H13) -> 8.03847455 | C13: 6.619940869 | D13: 0.01929084262 | E13: 0.3450560949 | F13: 0.05649446642 | G13: 0.7263574254 | H13: 0.2713348516
A14: ='General Inputs'!D26 -> Tariff D - MDQ (GJ/d) Tariff D Zone - Riverview | B14: =SUM(C14:H14) -> 0 | C14: 0 | D14: 0 | E14: 0 | F14: 0 | G14: 0 | H14: 0
A15: Total | B15: =SUM(B12:B14) -> 78.03511844
A19: Dedicated Connection Asset Cost Calculations
A21: Tariff D - Summary by Region | B21: Meters and RDL by Region as a % of Total Tariff D RAB | C21: Meter Cost: Pro-Rata of 2011-12 Tariff D Revenue Requirement ($M) | D21: Meter Cost: Pro-Rata of 2011-12 Tariff V (Brisbane & Riverview) Revenue Requirement ($M) | F21: Meter Cost: Pro-Rata of 2011-12 Tariff V (Northern) Revenue Requirement ($M) | H21: Meter Cost: Pro-Rata of 2011-12 Tariff C (Brisbane & Riverview) Revenue Requirement ($M) | J21: Meter Cost: Pro-Rata of 2011-12 Tariff C (Northern) Revenue Requirement ($M)
A22: =A5 -> Tariff D - MDQ (GJ/d) Tariff D Zone - Brisbane | B22: =SUM(D12:E12)/$B$15 -> 0.04325673409 | C22: =B22*'FDC Calculations'!$B$57 -> 1.487742117 | D22: =B25*'FDC Calculations'!B25 -> 6.229039954 | F22: =B25*'FDC Calculations'!B33 -> 0.2500796929 | H22: =B25*'FDC Calculations'!F41 -> 0.2332480713 | J22: =B25*'FDC Calculations'!F49 -> 0.03712220645
A23: =A6 -> Tariff D - MDQ (GJ/d) Tariff D Zone - Northern | B23: =SUM(D13:E13)/$B$15 -> 0.004669012424 | C23: =B23*'FDC Calculations'!$B$57 -> 0.1605827757
A24: =A7 -> Tariff D - MDQ (GJ/d) Tariff D Zone - Riverview | B24: =SUM(D14:E14)/$B$15 -> 0 | C24: =B24*'FDC Calculations'!$B$57 -> 0
A25: All dedicated assets as a % of RAB (for tariffs V and D combined) | B25: =('PTRM Inputs'!B17+'PTRM Inputs'!B18)/SUM('PTRM Inputs'!B16:B26) -> 0.2395972334

Sheet FDC Calculations
A1: Fully Distributed Cost Calculations
A3: Building Block Components - Total ($M NOMINAL) | B3: 2011-12 | C3: 2012-13 | D3: 2013-14 | E3: 2014-15 | F3: 2015-16 | G3: TOTAL
A4: Return on capital | B4: ='PTRM Inputs'!B5 -> 33.05269615 | C4: ='PTRM Inputs'!C5 -> 36.80851367 | D4: ='PTRM Inputs'!D5 -> 41.0201016 | E4: ='PTRM Inputs'!E5 -> 44.68530134 | F4: ='PTRM Inputs'!F5 -> 48.34418196 | G4: =SUM(B4:F4) -> 203.9107947
A5: Return of capital | B5: ='PTRM Inputs'!B6 -> 1.866380671 | C5: ='PTRM Inputs'!C6 -> 2.445361868 | D5: ='PTRM Inputs'!D6 -> 2.932640463 | E5: ='PTRM Inputs'!E6 -> 3.46736407 | F5: ='PTRM Inputs'!F6 -> 3.966894637 | G5: 14.67864171
A6: O&M | B6: ='PTRM Inputs'!B7 -> 23.18389989 | C6: ='PTRM Inputs'!C7 -> 24.32949493 | D6: ='PTRM Inputs'!D7 -> 24.13896478 | E6: ='PTRM Inputs'!E7 -> 24.52850255 | F6: ='PTRM Inputs'!F7 -> 24.80603602 | G6: 120.9868982
A7: Carry-over amounts | B7: ='PTRM Inputs'!B8 -> 0 | C7: ='PTRM Inputs'!C8 -> 0 | D7: ='PTRM Inputs'!D8 -> 0 | E7: ='PTRM Inputs'!E8 -> 0 | F7: ='PTRM Inputs'!F8 -> 0 | G7: 0
A8: Benchmark Tax liability | B8: ='PTRM Inputs'!B9 -> 4.149658137 | C8: ='PTRM Inputs'!C9 -> 4.295905785 | D8: ='PTRM Inputs'!D9 -> 4.421074606 | E8: ='PTRM Inputs'!E9 -> 4.563169938 | F8: ='PTRM Inputs'!F9 -> 4.745035711 | G8: 22.17484418
A9: Total Revenue | B9: =SUM(B4:B8) -> 62.25263485 | C9: =SUM(C4:C8) -> 67.87927626 | D9: =SUM(D4:D8) -> 72.51278145 | E9: =SUM(E4:E8) -> 77.2443379 | F9: =SUM(F4:F8) -> 81.86214833 | G9: 361.7511788
A11: Building Block Components Tariff V (Total) ($M NOMINAL) | B11: 2011-12 | C11: 2012-13 | D11: 2013-14 | E11: 2014-15 | F11: 2015-16 | G11: TOTAL
A12: =A4 -> Return on capital | B12: =B4-B52 -> 18.72509806 | C12: 20.85285343 | D12: 23.23881301 | E12: 25.31523135 | F12: 27.38806976 | G12: =SUM(B12:F12) -> 115.5200656
A13: =A5 -> Return of capital | B13: 1.057346757 | C13: 1.385352668 | D13: 1.661406985 | E13: 1.964339972 | F13: 2.247335308 | G13: 8.315781691
A14: =A6 -> O&M | B14: 5.726008492 | C14: 6.008949972 | D14: 5.961892433 | E14: 6.058101294 | F14: 6.126647096 | G14: 29.88159929
A15: =A7 -> Carry-over amounts | B15: 0 | C15: 0 | D15: 0 | E15: 0 | F15: 0 | G15: 0
A16: =A8 -> Benchmark Tax liability | B16: 2.350874955 | C16: 2.433727546 | D16: 2.504638507 | E16: 2.585138718 | F16: 2.688169782 | G16: 12.56254951
A17: Total Revenue | B17: =SUM(B12:B16) -> 27.85932827 | C17: =SUM(C12:C16) -> 30.68088361 | D17: =SUM(D12:D16) -> 33.36675093 | E17: =SUM(E12:E16) -> 35.92281133 | F17: =SUM(F12:F16) -> 38.45022195 | G17: 166.2799961
A19: Building Block Components Tariff R: Brisbane & Riverview ($M NOMINAL) | B19: 2011-12 | C19: 2012-13 | D19: 2013-14 | E19: 2014-15 | F19: 2015-16 | G19: TOTAL
A20: =A12 -> Return on capital | B20: ='Cost allocators'!$C12*B12 -> 17.47401795 | C20: ='Cost allocators'!$C12*C12 -> 19.45961158 | D20: ='Cost allocators'!$C12*D12 -> 21.68615803 | E20: ='Cost allocators'!$C12*E12 -> 23.62384461 | F20: ='Cost allocators'!$C12*F12 -> 25.55819046 | G20: =SUM(B20:F20) -> 107.8018226
A21: =A13 -> Return of capital | B21: ='Cost allocators'!$C13*B13 -> 0.9867022409 | C21: ='Cost allocators'!$C13*C13 -> 1.29279309 | D21: ='Cost allocators'!$C13*D13 -> 1.550403388 | E21: ='Cost allocators'!$C13*E13 -> 1.833096512 | F21: ='Cost allocators'!$C13*F13 -> 2.097184078 | G21: 7.760179309
A22: =A14 -> O&M | B22: ='Cost allocators'!$C14*B14 -> 5.343436646 | C22: ='Cost allocators'!$C14*C14 -> 5.607473954 | D22: ='Cost allocators'!$C14*D14 -> 5.563560471 | E22: ='Cost allocators'!$C14*E14 -> 5.653341329 | F22: ='Cost allocators'!$C14*F14 -> 5.71730738 | G22: 27.88511978
A23: =A15 -> Carry-over amounts | B23: ='Cost allocators'!$C15*B15 -> 0 | C23: ='Cost allocators'!$C15*C15 -> 0 | D23: ='Cost allocators'!$C15*D15 -> 0 | E23: ='Cost allocators'!$C15*E15 -> 0 | F23: ='Cost allocators'!$C15*F15 -> 0 | G23: 0
A24: =A16 -> Benchmark Tax liability | B24: ='Cost allocators'!$C16*B16 -> 2.193805929 | C24: ='Cost allocators'!$C16*C16 -> 2.27112289 | D24: ='Cost allocators'!$C16*D16 -> 2.337296077 | E24: ='Cost allocators'!$C16*E16 -> 2.412417827 | F24: ='Cost allocators'!$C16*F16 -> 2.508565075 | G24: 11.7232078
A25: Total Revenue | B25: =SUM(B20:B24) -> 25.99796277 | C25: =SUM(C20:C24) -> 28.63100151 | D25: =SUM(D20:D24) -> 31.13741796 | E25: =SUM(E20:E24) -> 33.52270028 | F25: =SUM(F20:F24) -> 35.88124699 | G25: 155.1703295
A27: Building Block Components Tariff R: Northern ($M NOMINAL) | B27: 2011-12 | C27: 2012-13 | D27: 2013-14 | E27: 2014-15 | F27: 2015-16 | G27: TOTAL
A28: =A20 -> Return on capital | B28: ='Cost allocators'!$D12*B12 -> 0.7015362039 | C28: ='Cost allocators'!$D12*C12 -> 0.7812526045 | D28: ='Cost allocators'!$D12*D12 -> 0.8706426318 | E28: ='Cost allocators'!$D12*E12 -> 0.9484356899 | F28: ='Cost allocators'!$D12*F12 -> 1.026094626 | G28: =SUM(B28:F28) -> 4.327961756
A29: =A21 -> Return of capital | B29: ='Cost allocators'!$D13*B13 -> 0.03961351913 | C29: ='Cost allocators'!$D13*C13 -> 0.05190226766 | D29: ='Cost allocators'!$D13*D13 -> 0.06224464862 | E29: ='Cost allocators'!$D13*E13 -> 0.07359403955 | F29: ='Cost allocators'!$D13*F13 -> 0.08419646591 | G29: 0.3115509409
A30: =A22 -> O&M | B30: ='Cost allocators'!$D14*B14 -> 0.214525032 | C30: ='Cost allocators'!$D14*C14 -> 0.2251254407 | D30: ='Cost allocators'!$D14*D14 -> 0.2233624289 | E30: ='Cost allocators'!$D14*E14 -> 0.226966896 | F30: ='Cost allocators'!$D14*F14 -> 0.229534966 | G30: 1.119514764
A31: =A23 -> Carry-over amounts | B31: ='Cost allocators'!$D15*B15 -> 0 | C31: ='Cost allocators'!$D15*C15 -> 0 | D31: ='Cost allocators'!$D15*D15 -> 0 | E31: ='Cost allocators'!$D15*E15 -> 0 | F31: ='Cost allocators'!$D15*F15 -> 0 | G31: 0
A32: =A24 -> Benchmark Tax liability | B32: ='Cost allocators'!$D16*B16 -> 0.08807558101 | C32: ='Cost allocators'!$D16*C16 -> 0.09117965515 | D32: ='Cost allocators'!$D16*D16 -> 0.09383633583 | E32: ='Cost allocators'!$D16*E16 -> 0.09685227799 | F32: ='Cost allocators'!$D16*F16 -> 0.100712339 | G32: 0.470656189
A33: Total Revenue | B33: =SUM(B28:B32) -> 1.043750336 | C33: =SUM(C28:C32) -> 1.149459968 | D33: =SUM(D28:D32) -> 1.250086045 | E33: =SUM(E28:E32) -> 1.345848903 | F33: =SUM(F28:F32) -> 1.440538397 | G33: 6.229683649
A35: Building Block Components Tariff C: Brisbane & Riverview ($M NOMINAL) | B35: 2011-12 | C35: 2012-13 | D35: 2013-14 | E35: 2014-15 | F35: 2015-16 | G35: TOTAL
A36: =A28 -> Return on capital | B36: ='Cost allocators'!$E12*B12 -> 0.4740907828 | C36: ='Cost allocators'!$E12*C12 -> 0.5279622874 | D36: ='Cost allocators'!$E12*D12 -> 0.588371127 | E36: ='Cost allocators'!$E12*E12 -> 0.6409428569 | F36: ='Cost allocators'!$E12*F12 -> 0.6934239485 | G36: =SUM(B36:F36) -> 2.924791003
A37: =A29 -> Return of capital | B37: ='Cost allocators'!$E13*B13 -> 0.02677039929 | C37: ='Cost allocators'!$E13*C13 -> 0.03507500621 | D37: ='Cost allocators'!$E13*D13 -> 0.04206427841 | E37: ='Cost allocators'!$E13*E13 -> 0.04973407734 | F37: ='Cost allocators'!$E13*F13 -> 0.05689908549 | G37: 0.2105428467
A38: =A30 -> O&M | B38: ='Cost allocators'!$E14*B14 -> 0.1449737587 | C38: ='Cost allocators'!$E14*C14 -> 0.1521374033 | D38: ='Cost allocators'!$E14*D14 -> 0.1509459786 | E38: ='Cost allocators'!$E14*E14 -> 0.1533818395 | F38: ='Cost allocators'!$E14*F14 -> 0.1551173141 | G38: 0.7565562942
A39: =A31 -> Carry-over amounts | B39: ='Cost allocators'!$E15*B15 -> 0 | C39: ='Cost allocators'!$E15*C15 -> 0 | D39: ='Cost allocators'!$E15*D15 -> 0 | E39: ='Cost allocators'!$E15*E15 -> 0 | F39: ='Cost allocators'!$E15*F15 -> 0 | G39: 0
A40: =A32 -> Benchmark Tax liability | B40: ='Cost allocators'!$E16*B16 -> 0.05952055064 | C40: ='Cost allocators'!$E16*C16 -> 0.06161825127 | D40: ='Cost allocators'!$E16*D16 -> 0.06341360812 | E40: ='Cost allocators'!$E16*E16 -> 0.06545175009 | F40: ='Cost allocators'!$E16*F16 -> 0.0680603387 | G40: 0.3180644988
A41: Total Revenue | B41: =SUM(B36:B40) -> 0.7053554915 | C41: =SUM(C36:C40) -> 0.7767929482 | D41: =SUM(D36:D40) -> 0.8447949921 | E41: =SUM(E36:E40) -> 0.9095105238 | F41: =SUM(F36:F40) -> 0.9735006868 | G41: 4.209954642
A43: Building Block Components Tariff C: Northern ($M NOMINAL) | B43: 2011-12 | C43: 2012-13 | D43: 2013-14 | E43: 2014-15 | F43: 2015-16 | G43: TOTAL
A44: =A36 -> Return on capital | B44: ='Cost allocators'!$F12*B12 -> 0.07545312517 | C44: ='Cost allocators'!$F12*C12 -> 0.08402695433 | D44: ='Cost allocators'!$F12*D12 -> 0.0936412221 | E44: ='Cost allocators'!$F12*E12 -> 0.1020081878 | F44: ='Cost allocators'!$F12*F12 -> 0.1103607281 | G44: =SUM(B44:F44) -> 0.4654902175
A45: =A37 -> Return of capital | B45: ='Cost allocators'!$F13*B13 -> 0.0042605981 | C45: ='Cost allocators'!$F13*C13 -> 0.005582303916 | D45: ='Cost allocators'!$F13*D13 -> 0.006694669837 | E45: ='Cost allocators'!$F13*E13 -> 0.007915343851 | F45: ='Cost allocators'!$F13*F13 -> 0.009055678733 | G45: 0.03350859444
A46: =A38 -> O&M | B46: ='Cost allocators'!$F14*B14 -> 0.02307305596 | C46: ='Cost allocators'!$F14*C14 -> 0.02421317383 | D46: ='Cost allocators'!$F14*D14 -> 0.02402355462 | E46: ='Cost allocators'!$F14*E14 -> 0.02441122998 | F46: ='Cost allocators'!$F14*F14 -> 0.02468743655 | G46: 0.1204084509
A47: =A39 -> Carry-over amounts | B47: ='Cost allocators'!$F15*B15 -> 0 | C47: ='Cost allocators'!$F15*C15 -> 0 | D47: ='Cost allocators'!$F15*D15 -> 0 | E47: ='Cost allocators'!$F15*E15 -> 0 | F47: ='Cost allocators'!$F15*F15 -> 0 | G47: 0
A48: =A40 -> Benchmark Tax liability | B48: ='Cost allocators'!$F16*B16 -> 0.009472893632 | C48: ='Cost allocators'!$F16*C16 -> 0.009806749666 | D48: ='Cost allocators'!$F16*D16 -> 0.01009248668 | E48: ='Cost allocators'!$F16*E16 -> 0.01041686375 | F48: ='Cost allocators'!$F16*F16 -> 0.01083202931 | G48: 0.05062102304
A49: Total Revenue | B49: =SUM(B44:B48) -> 0.1122596729 | C49: =SUM(C44:C48) -> 0.1236291817 | D49: =SUM(D44:D48) -> 0.1344519332 | E49: =SUM(E44:E48) -> 0.1447516254 | F49: =SUM(F44:F48) -> 0.1549358727 | G49: 0.6700282859
A51: Building Block Components D ($M NOMINAL) | B51: 2011-12 | C51: 2012-13 | D51: 2013-14 | E51: 2014-15 | F51: 2015-16 | G51: TOTAL
A52: =A12 -> Return on capital | B52: =B63 -> 14.32759808 | C52: =B73 -> 15.95566025 | D52: =B83 -> 17.7812886 | E52: =B93 -> 19.37007 | F52: =B103 -> 20.95611219 | G52: =SUM(B52:F52) -> 88.39072912
A53: =A13 -> Return of capital | B53: =B64 -> 0.809033914 | C53: =B74 -> 1.060009201 | D53: =B84 -> 1.271233478 | E53: =B94 -> 1.503024098 | F53: =B104 -> 1.719559329 | G53: 6.362860019
A54: =A14 -> O&M | B54: =B65 -> 17.4578914 | C54: =B75 -> 18.32054496 | D54: =B85 -> 18.17707234 | E54: =B95 -> 18.47040126 | F54: =B105 -> 18.67938893 | G54: 91.10529889
A55: =A15 -> Carry-over amounts | B55: =B66 -> 0 | C55: =B76 -> 0 | D55: =B86 -> 0 | E55: =B96 -> 0 | F55: =B106 -> 0 | G55: 0
A56: =A16 -> Benchmark Tax liability | B56: =B67 -> 1.798783183 | C56: =B77 -> 1.862178239 | D56: =B87 -> 1.916436099 | E56: =B97 -> 1.978031219 | F56: =B107 -> 2.056865929 | G56: 9.612294668
A57: Total Revenue | B57: =SUM(B52:B56) -> 34.39330658 | C57: =SUM(C52:C56) -> 37.19839265 | D57: =SUM(D52:D56) -> 39.14603052 | E57: =SUM(E52:E56) -> 41.32152657 | F57: =SUM(F52:F56) -> 43.41192638 | G57: 195.4711827
A59: Checks | B59: =B9-SUM(B25,B33,B57) -> 0.8176151644 | C59: 0.9004221299 | D59: 0.9792469253 | E59: 1.054262149 | F59: 1.128436559 | G59: 4.879982928
A61: Building Blocks by Zone for Tariff D
A62: 2011-12 | B62: Total | C62: ='General Inputs'!B24 -> Tariff D: Brisbane | D62: ='General Inputs'!B26 -> Tariff D: Riverview | E62: ='General Inputs'!B25 -> Tariff D: Northern
A63: =A12 -> Return on capital | B63: =SUM(C63:E63) -> 14.32759808 | C63: =$B4*HLOOKUP(C$62,'Cost allocators'!$G$18:$I$22,(MATCH('Cost allocators'!$B$5,'Cost allocators'!$A$19:$A$22)+1)) -> 7.163799042 | D63: =$B4*HLOOKUP(D$62,'Cost allocators'!$G$18:$I$22,(MATCH('Cost allocators'!$B$5,'Cost allocators'!$A$19:$A$22)+1)) -> 0 | E63: =$B4*HLOOKUP(E$62,'Cost allocators'!$G$18:$I$22,(MATCH('Cost allocators'!$B$5,'Cost allocators'!$A$19:$A$22)+1)) -> 7.163799042
A64: =A13 -> Return of capital | B64: =SUM(C64:E64) -> 0.809033914 | C64: =$B5*HLOOKUP(C$62,'Cost allocators'!$G$18:$I$22,(MATCH('Cost allocators'!$B$6,'Cost allocators'!$A$19:$A$22)+1)) -> 0.404516957 | D64: =$B5*HLOOKUP(D$62,'Cost allocators'!$G$18:$I$22,(MATCH('Cost allocators'!$B$6,'Cost allocators'!$A$19:$A$22)+1)) -> 0 | E64: =$B5*HLOOKUP(E$62,'Cost allocators'!$G$18:$I$22,(MATCH('Cost allocators'!$B$6,'Cost allocators'!$A$19:$A$22)+1)) -> 0.404516957
A65: =A14 -> O&M | B65: =SUM(C65:E65) -> 17.4578914 | C65: =$B6*HLOOKUP(C$62,'Cost allocators'!$G$18:$I$22,(MATCH('Cost allocators'!$B$7,'Cost allocators'!$A$19:$A$22)+1)) -> 7.930913692 | D65: =$B6*HLOOKUP(D$62,'Cost allocators'!$G$18:$I$22,(MATCH('Cost allocators'!$B$7,'Cost allocators'!$A$19:$A$22)+1)) -> 1.596064012 | E65: =$B6*HLOOKUP(E$62,'Cost allocators'!$G$18:$I$22,(MATCH('Cost allocators'!$B$7,'Cost allocators'!$A$19:$A$22)+1)) -> 7.930913692
A66: =A15 -> Carry-over amounts | B66: =SUM(C66:E66) -> 0 | C66: =$B7*HLOOKUP(C$62,'Cost allocators'!$G$18:$I$22,(MATCH('Cost allocators'!$B$8,'Cost allocators'!$A$19:$A$22)+1)) -> 0 | D66: =$B7*HLOOKUP(D$62,'Cost allocators'!$G$18:$I$22,(MATCH('Cost allocators'!$B$8,'Cost allocators'!$A$19:$A$22)+1)) -> 0 | E66: =$B7*HLOOKUP(E$62,'Cost allocators'!$G$18:$I$22,(MATCH('Cost allocators'!$B$8,'Cost allocators'!$A$19:$A$22)+1)) -> 0
A67: =A16 -> Benchmark Tax liability | B67: =SUM(C67:E67) -> 1.798783183 | C67: =$B8*HLOOKUP(C$62,'Cost allocators'!$G$18:$I$22,(MATCH('Cost allocators'!$B$9,'Cost allocators'!$A$19:$A$22)+1)) -> 0.8993915915 | D67: =$B8*HLOOKUP(D$62,'Cost allocators'!$G$18:$I$22,(MATCH('Cost allocators'!$B$9,'Cost allocators'!$A$19:$A$22)+1)) -> 0 | E67: =$B8*HLOOKUP(E$62,'Cost allocators'!$G$18:$I$22,(MATCH('Cost allocators'!$B$9,'Cost allocators'!$A$19:$A$22)+1)) -> 0.8993915915
A68: Total Revenue | B68: =SUM(B63:B67) -> 34.39330658 | C68: =SUM(C63:C67) -> 16.39862128 | D68: =SUM(D63:D67) -> 1.596064012 | E68: =SUM(E63:E67) -> 16.39862128
A70: Checks | B70: =B68-B$57 -> 0
A72: 2012-13 | B72: Total | C72: =C62 -> Tariff D: Brisbane | D72: =D62 -> Tariff D: Riverview | E72: =E62 -> Tariff D: Northern
A73: =A63 -> Return on capital | B73: =SUM(C73:E73) -> 15.95566025 | C73: =$C4*HLOOKUP(C$62,'Cost allocators'!$G$18:$I$22,(MATCH('Cost allocators'!$B$5,'Cost allocators'!$A$19:$A$22)+1)) -> 7.977830123 | D73: =$C4*HLOOKUP(D$62,'Cost allocators'!$G$18:$I$22,(MATCH('Cost allocators'!$B$5,'Cost allocators'!$A$19:$A$22)+1)) -> 0 | E73: =$C4*HLOOKUP(E$62,'Cost allocators'!$G$18:$I$22,(MATCH('Cost allocators'!$B$5,'Cost allocators'!$A$19:$A$22)+1)) -> 7.977830123
A74: =A64 -> Return of capital | B74: =SUM(C74:E74) -> 1.060009201 | C74: =$C5*HLOOKUP(C$62,'Cost allocators'!$G$18:$I$22,(MATCH('Cost allocators'!$B$6,'Cost allocators'!$A$19:$A$22)+1)) -> 0.5300046003 | D74: =$C5*HLOOKUP(D$62,'Cost allocators'!$G$18:$I$22,(MATCH('Cost allocators'!$B$6,'Cost allocators'!$A$19:$A$22)+1)) -> 0 | E74: =$C5*HLOOKUP(E$62,'Cost allocators'!$G$18:$I$22,(MATCH('Cost allocators'!$B$6,'Cost allocators'!$A$19:$A$22)+1)) -> 0.5300046003
A75: =A65 -> O&M | B75: =SUM(C75:E75) -> 18.32054496 | C75: =$C6*HLOOKUP(C$62,'Cost allocators'!$G$18:$I$22,(MATCH('Cost allocators'!$B$7,'Cost allocators'!$A$19:$A$22)+1)) -> 8.322807008 | D75: =$C6*HLOOKUP(D$62,'Cost allocators'!$G$18:$I$22,(MATCH('Cost allocators'!$B$7,'Cost allocators'!$A$19:$A$22)+1)) -> 1.674930942 | E75: =$C6*HLOOKUP(E$62,'Cost allocators'!$G$18:$I$22,(MATCH('Cost allocators'!$B$7,'Cost allocators'!$A$19:$A$22)+1)) -> 8.322807008
A76: =A66 -> Carry-over amounts | B76: =SUM(C76:E76) -> 0 | C76: =$C7*HLOOKUP(C$62,'Cost allocators'!$G$18:$I$22,(MATCH('Cost allocators'!$B$8,'Cost allocators'!$A$19:$A$22)+1)) -> 0 | D76: =$C7*HLOOKUP(D$62,'Cost allocators'!$G$18:$I$22,(MATCH('Cost allocators'!$B$8,'Cost allocators'!$A$19:$A$22)+1)) -> 0 | E76: =$C7*HLOOKUP(E$62,'Cost allocators'!$G$18:$I$22,(MATCH('Cost allocators'!$B$8,'Cost allocators'!$A$19:$A$22)+1)) -> 0
A77: =A67 -> Benchmark Tax liability | B77: =SUM(C77:E77) -> 1.862178239 | C77: =$C8*HLOOKUP(C$62,'Cost allocators'!$G$18:$I$22,(MATCH('Cost allocators'!$B$9,'Cost allocators'!$A$19:$A$22)+1)) -> 0.9310891193 | D77: =$C8*HLOOKUP(D$62,'Cost allocators'!$G$18:$I$22,(MATCH('Cost allocators'!$B$9,'Cost allocators'!$A$19:$A$22)+1)) -> 0 | E77: =$C8*HLOOKUP(E$62,'Cost allocators'!$G$18:$I$22,(MATCH('Cost allocators'!$B$9,'Cost allocators'!$A$19:$A$22)+1)) -> 0.9310891193
A78: Total Revenue | B78: =SUM(B73:B77) -> 37.19839265 | C78: =SUM(C73:C77) -> 17.76173085 | D78: =SUM(D73:D77) -> 1.674930942 | E78: =SUM(E73:E77) -> 17.76173085
A80: Checks | B80: =B78-C$57 -> 0
A82: 2013-14 | B82: Total | C82: =C72 -> Tariff D: Brisbane | D82: =D72 -> Tariff D: Riverview | E82: =E72 -> Tariff D: Northern
A83: =A73 -> Return on capital | B83: =SUM(C83:E83) -> 17.7812886 | C83: =$D4*HLOOKUP(C$62,'Cost allocators'!$G$18:$I$22,(MATCH('Cost allocators'!$B$5,'Cost allocators'!$A$19:$A$22)+1)) -> 8.890644299 | D83: =$D4*HLOOKUP(D$62,'Cost allocators'!$G$18:$I$22,(MATCH('Cost allocators'!$B$5,'Cost allocators'!$A$19:$A$22)+1)) -> 0 | E83: =$D4*HLOOKUP(E$62,'Cost allocators'!$G$18:$I$22,(MATCH('Cost allocators'!$B$5,'Cost allocators'!$A$19:$A$22)+1)) -> 8.890644299
A84: =A74 -> Return of capital | B84: =SUM(C84:E84) -> 1.271233478 | C84: =$D5*HLOOKUP(C$62,'Cost allocators'!$G$18:$I$22,(MATCH('Cost allocators'!$B$6,'Cost allocators'!$A$19:$A$22)+1)) -> 0.635616739 | D84: =$D5*HLOOKUP(D$62,'Cost allocators'!$G$18:$I$22,(MATCH('Cost allocators'!$B$6,'Cost allocators'!$A$19:$A$22)+1)) -> 0 | E84: =$D5*HLOOKUP(E$62,'Cost allocators'!$G$18:$I$22,(MATCH('Cost allocators'!$B$6,'Cost allocators'!$A$19:$A$22)+1)) -> 0.635616739
A85: =A75 -> O&M | B85: =SUM(C85:E85) -> 18.17707234 | C85: =$D6*HLOOKUP(C$62,'Cost allocators'!$G$18:$I$22,(MATCH('Cost allocators'!$B$7,'Cost allocators'!$A$19:$A$22)+1)) -> 8.257629095 | D85: =$D6*HLOOKUP(D$62,'Cost allocators'!$G$18:$I$22,(MATCH('Cost allocators'!$B$7,'Cost allocators'!$A$19:$A$22)+1)) -> 1.661814153 | E85: =$D6*HLOOKUP(E$62,'Cost allocators'!$G$18:$I$22,(MATCH('Cost allocators'!$B$7,'Cost allocators'!$A$19:$A$22)+1)) -> 8.257629095
A86: =A76 -> Carry-over amounts | B86: =SUM(C86:E86) -> 0 | C86: =$D7*HLOOKUP(C$62,'Cost allocators'!$G$18:$I$22,(MATCH('Cost allocators'!$B$8,'Cost allocators'!$A$19:$A$22)+1)) -> 0 | D86: =$D7*HLOOKUP(D$62,'Cost allocators'!$G$18:$I$22,(MATCH('Cost allocators'!$B$8,'Cost allocators'!$A$19:$A$22)+1)) -> 0 | E86: =$D7*HLOOKUP(E$62,'Cost allocators'!$G$18:$I$22,(MATCH('Cost allocators'!$B$8,'Cost allocators'!$A$19:$A$22)+1)) -> 0
A87: =A77 -> Benchmark Tax liability | B87: =SUM(C87:E87) -> 1.916436099 | C87: =$D8*HLOOKUP(C$62,'Cost allocators'!$G$18:$I$22,(MATCH('Cost allocators'!$B$9,'Cost allocators'!$A$19:$A$22)+1)) -> 0.9582180493 | D87: =$D8*HLOOKUP(D$62,'Cost allocators'!$G$18:$I$22,(MATCH('Cost allocators'!$B$9,'Cost allocators'!$A$19:$A$22)+1)) -> 0 | E87: =$D8*HLOOKUP(E$62,'Cost allocators'!$G$18:$I$22,(MATCH('Cost allocators'!$B$9,'Cost allocators'!$A$19:$A$22)+1)) -> 0.9582180493
A88: Total Revenue | B88: =SUM(B83:B87) -> 39.14603052 | C88: =SUM(C83:C87) -> 18.74210818 | D88: =SUM(D83:D87) -> 1.661814153 | E88: =SUM(E83:E87) -> 18.74210818
A90: Checks | B90: =B88-D$57 -> 0
A92: 2014-15 | B92: Total | C92: =C82 -> Tariff D: Brisbane | D92: =D82 -> Tariff D: Riverview | E92: =E82 -> Tariff D: Northern
A93: =A83 -> Return on capital | B93: =SUM(C93:E93) -> 19.37007 | C93: =$E4*HLOOKUP(C$62,'Cost allocators'!$G$18:$I$22,(MATCH('Cost allocators'!$B$5,'Cost allocators'!$A$19:$A$22)+1)) -> 9.685034998 | D93: =$E4*HLOOKUP(D$62,'Cost allocators'!$G$18:$I$22,(MATCH('Cost allocators'!$B$5,'Cost allocators'!$A$19:$A$22)+1)) -> 0 | E93: =$E4*HLOOKUP(E$62,'Cost allocators'!$G$18:$I$22,(MATCH('Cost allocators'!$B$5,'Cost allocators'!$A$19:$A$22)+1)) -> 9.685034998
A94: =A84 -> Return of capital | B94: =SUM(C94:E94) -> 1.503024098 | C94: =$E5*HLOOKUP(C$62,'Cost allocators'!$G$18:$I$22,(MATCH('Cost allocators'!$B$6,'Cost allocators'!$A$19:$A$22)+1)) -> 0.751512049 | D94: =$E5*HLOOKUP(D$62,'Cost allocators'!$G$18:$I$22,(MATCH('Cost allocators'!$B$6,'Cost allocators'!$A$19:$A$22)+1)) -> 0 | E94: =$E5*HLOOKUP(E$62,'Cost allocators'!$G$18:$I$22,(MATCH('Cost allocators'!$B$6,'Cost allocators'!$A$19:$A$22)+1)) -> 0.751512049
A95: =A85 -> O&M | B95: =SUM(C95:E95) -> 18.47040126 | C95: =$E6*HLOOKUP(C$62,'Cost allocators'!$G$18:$I$22,(MATCH('Cost allocators'!$B$7,'Cost allocators'!$A$19:$A$22)+1)) -> 8.390884954 | D95: =$E6*HLOOKUP(D$62,'Cost allocators'!$G$18:$I$22,(MATCH('Cost allocators'!$B$7,'Cost allocators'!$A$19:$A$22)+1)) -> 1.688631351 | E95: =$E6*HLOOKUP(E$62,'Cost allocators'!$G$18:$I$22,(MATCH('Cost allocators'!$B$7,'Cost allocators'!$A$19:$A$22)+1)) -> 8.390884954
A96: =A86 -> Carry-over amounts | B96: =SUM(C96:E96) -> 0 | C96: =$E7*HLOOKUP(C$62,'Cost allocators'!$G$18:$I$22,(MATCH('Cost allocators'!$B$8,'Cost allocators'!$A$19:$A$22)+1)) -> 0 | D96: =$E7*HLOOKUP(D$62,'Cost allocators'!$G$18:$I$22,(MATCH('Cost allocators'!$B$8,'Cost allocators'!$A$19:$A$22)+1)) -> 0 | E96: =$E7*HLOOKUP(E$62,'Cost allocators'!$G$18:$I$22,(MATCH('Cost allocators'!$B$8,'Cost allocators'!$A$19:$A$22)+1)) -> 0
A97: =A87 -> Benchmark Tax liability | B97: =SUM(C97:E97) -> 1.978031219 | C97: =$E8*HLOOKUP(C$62,'Cost allocators'!$G$18:$I$22,(MATCH('Cost allocators'!$B$9,'Cost allocators'!$A$19:$A$22)+1)) -> 0.9890156095 | D97: =$E8*HLOOKUP(D$62,'Cost allocators'!$G$18:$I$22,(MATCH('Cost allocators'!$B$9,'Cost allocators'!$A$19:$A$22)+1)) -> 0 | E97: =$E8*HLOOKUP(E$62,'Cost allocators'!$G$18:$I$22,(MATCH('Cost allocators'!$B$9,'Cost allocators'!$A$19:$A$22)+1)) -> 0.9890156095
A98: Total Revenue | B98: =SUM(B93:B97) -> 41.32152657 | C98: =SUM(C93:C97) -> 19.81644761 | D98: =SUM(D93:D97) -> 1.688631351 | E98: =SUM(E93:E97) -> 19.81644761
A100: Checks | B100: =B98-E$57 -> 0
A102: 2015-16 | B102: Total | C102: =C92 -> Tariff D: Brisbane | D102: =D92 -> Tariff D: Riverview | E102: =E92 -> Tariff D: Northern
A103: =A93 -> Return on capital | B103: =SUM(C103:E103) -> 20.95611219 | C103: =$F4*HLOOKUP(C$62,'Cost allocators'!$G$18:$I$22,(MATCH('Cost allocators'!$B$5,'Cost allocators'!$A$19:$A$22)+1)) -> 10.4780561 | D103: =$F4*HLOOKUP(D$62,'Cost allocators'!$G$18:$I$22,(MATCH('Cost allocators'!$B$5,'Cost allocators'!$A$19:$A$22)+1)) -> 0 | E103: =$F4*HLOOKUP(E$62,'Cost allocators'!$G$18:$I$22,(MATCH('Cost allocators'!$B$5,'Cost allocators'!$A$19:$A$22)+1)) -> 10.4780561
A104: =A94 -> Return of capital | B104: =SUM(C104:E104) -> 1.719559329 | C104: =$F5*HLOOKUP(C$62,'Cost allocators'!$G$18:$I$22,(MATCH('Cost allocators'!$B$6,'Cost allocators'!$A$19:$A$22)+1)) -> 0.8597796643 | D104: =$F5*HLOOKUP(D$62,'Cost allocators'!$G$18:$I$22,(MATCH('Cost allocators'!$B$6,'Cost allocators'!$A$19:$A$22)+1)) -> 0 | E104: =$F5*HLOOKUP(E$62,'Cost allocators'!$G$18:$I$22,(MATCH('Cost allocators'!$B$6,'Cost allocators'!$A$19:$A$22)+1)) -> 0.8597796643
A105: =A95 -> O&M | B105: =SUM(C105:E105) -> 18.67938893 | C105: =$F6*HLOOKUP(C$62,'Cost allocators'!$G$18:$I$22,(MATCH('Cost allocators'!$B$7,'Cost allocators'!$A$19:$A$22)+1)) -> 8.485825581 | D105: =$F6*HLOOKUP(D$62,'Cost allocators'!$G$18:$I$22,(MATCH('Cost allocators'!$B$7,'Cost allocators'!$A$19:$A$22)+1)) -> 1.707737765 | E105: =$F6*HLOOKUP(E$62,'Cost allocators'!$G$18:$I$22,(MATCH('Cost allocators'!$B$7,'Cost allocators'!$A$19:$A$22)+1)) -> 8.485825581
A106: =A96 -> Carry-over amounts | B106: =SUM(C106:E106) -> 0 | C106: =$F7*HLOOKUP(C$62,'Cost allocators'!$G$18:$I$22,(MATCH('Cost allocators'!$B$8,'Cost allocators'!$A$19:$A$22)+1)) -> 0 | D106: =$F7*HLOOKUP(D$62,'Cost allocators'!$G$18:$I$22,(MATCH('Cost allocators'!$B$8,'Cost allocators'!$A$19:$A$22)+1)) -> 0 | E106: =$F7*HLOOKUP(E$62,'Cost allocators'!$G$18:$I$22,(MATCH('Cost allocators'!$B$8,'Cost allocators'!$A$19:$A$22)+1)) -> 0
A107: =A97 -> Benchmark Tax liability | B107: =SUM(C107:E107) -> 2.056865929 | C107: =$F8*HLOOKUP(C$62,'Cost allocators'!$G$18:$I$22,(MATCH('Cost allocators'!$B$9,'Cost allocators'!$A$19:$A$22)+1)) -> 1.028432964 | D107: =$F8*HLOOKUP(D$62,'Cost allocators'!$G$18:$I$22,(MATCH('Cost allocators'!$B$9,'Cost allocators'!$A$19:$A$22)+1)) -> 0 | E107: =$F8*HLOOKUP(E$62,'Cost allocators'!$G$18:$I$22,(MATCH('Cost allocators'!$B$9,'Cost allocators'!$A$19:$A$22)+1)) -> 1.028432964
A108: Total Revenue | B108: =SUM(B103:B107) -> 43.41192638 | C108: =SUM(C103:C107) -> 20.85209431 | D108: =SUM(D103:D107) -> 1.707737765 | E108: =SUM(E103:E107) -> 20.85209431
A110: Checks | B110: =B108-F$57 -> 0

Sheet StandAlone & Avoidable Tests
A1: Standalone and Avoidable Cost Tests
A3: Standalone and Avoidable Cost Tests
A4: Tariff | B4: FDC Cost | C4: Avoidable Cost | D4: Expected Revenue 2011-12 ($M) | E4: Standalone Cost | F4: All Tests Met? | G4: Avoidable Test Met? | H4: Standalone Test Met?
A5: ='General Inputs'!B20 -> Tariff V: Brisbane & Riverview | B5: ='FDC Calculations'!B25 -> 25.99796277 | C5: ='DORC Calculations'!D22 -> 6.229039954 | D5: ='[8]Tariff Impacts'!$D$36/1000000 -> 18.84338905 | E5: ='FDC Calculations'!$B$25+'FDC Calculations'!B57 -> 60.39126934 | F5: =IF(AND(D5>=C5,D5<=E5),"Test Met","Test Failed") -> Test Met | G5: =IF(D5>=C5,"Test Met","Test Failed") -> Test Met | H5: =IF(D5<=E5,"Test Met","Test Failed") -> Test Met
A6: ='General Inputs'!B21 -> Tariff V: Northern | B6: ='FDC Calculations'!B33 -> 1.043750336 | C6: ='DORC Calculations'!F22 -> 0.2500796929 | D6: ='[8]Tariff Impacts'!$D$47/1000000 -> 0.7429273654 | E6: ='FDC Calculations'!B33+'FDC Calculations'!B57 -> 35.43705691 | F6: Test Met | G6: Test Met | H6: Test Met
A7: ='General Inputs'!B22 -> Tariff C: Brisbane & Riverview | B7: ='FDC Calculations'!B41 -> 0.7053554915 | C7: ='DORC Calculations'!H22 -> 0.2332480713 | D7: ='[8]Tariff Impacts'!$D$58/1000000 -> 13.96152519 | E7: ='FDC Calculations'!B41+'FDC Calculations'!B57 -> 35.09866207 | F7: Test Met | G7: Test Met | H7: Test Met
A8: ='General Inputs'!B23 -> Tariff C: Northern | B8: ='FDC Calculations'!B49 -> 0.1122596729 | C8: ='DORC Calculations'!J22 -> 0.03712220645 | D8: ='[8]Tariff Impacts'!$D$69/1000000 -> 2.096745736 | E8: ='FDC Calculations'!B49+'FDC Calculations'!B57 -> 34.50556625 | F8: Test Met | G8: Test Met | H8: Test Met
A9: ='General Inputs'!B24 -> Tariff D: Brisbane | B9: ='FDC Calculations'!C68 -> 16.39862128 | C9: ='DORC Calculations'!C22 -> 1.487742117 | D9: ='[8]Tariff Impacts'!$D$79/1000000 -> 11.2621001 | E9: ='FDC Calculations'!B57 -> 34.39330658 | F9: Test Met | G9: Test Met | H9: Test Met
A10: ='General Inputs'!B25 -> Tariff D: Northern | B10: ='FDC Calculations'!E68 -> 16.39862128 | C10: ='DORC Calculations'!C23 -> 0.1605827757 | D10: ='[8]Tariff Impacts'!$D$80/1000000 -> 0.5853054113 | E10: ='FDC Calculations'!B57 -> 34.39330658 | F10: Test Met | G10: Test Met | H10: Test Met
A11: ='General Inputs'!B26 -> Tariff D: Riverview | B11: ='FDC Calculations'!D68 -> 1.596064012 | C11: ='DORC Calculations'!C24 -> 0 | D11: ='[8]Tariff Impacts'!$D$81/1000000 -> 0.5233975701 | E11: ='FDC Calculations'!B57 -> 34.39330658 | F11: Test Met | G11: Test Met | H11: Test Met

Sheet Tariff & Rebalancing Tests
A1: Tariff Control and Rebalancing Tests - Does not apply for 2011-12
E3: Input Selection
E4: CPI t | F4: ='General Inputs'!L16 -> 0.02888086643
E5: X t | F5: -0.152
E6: Y t | F6: 0.01
E7: t | F7: 2010-11
E8: t – 1 | F8: 2009-10
E9: t – 2 | F9: 2008-09
A11: Tariff Control | F11: Rebalancing Control
B12: CPIt(Mar)(1 – Xt) | C12: -1 | E12: Constraint met? | F12: Tariff class | G12: CPIt(1 + Yt) | J12: -1 | K12: Constraint met?
B17: =F4*(1-F5) -> 0.03327075812 | C17: =(SUM(H17:H23)/SUM(I17:I23))-1 -> 0.1139059125 | E17: =IF(B17>=C17,"Yes","No") -> No | F17: ='Tariff & Rebalancing Tests'!C99 -> Tariff V: Brisbane & Riverview | G17: =F4*(1-F5)*(1+F6) -> 0.0336034657 | H17: =SUM(C100:C107) -> 18430390.82 | I17: =SUM(C90:C97) -> 16001017.12 | J17: =IFERROR((H17/I17)-1,"") -> 0.1518262049 | K17: =IF(J17="","",IF(G17>=J17,"Yes","No")) -> No
F18: ='Tariff & Rebalancing Tests'!D99 -> Tariff V: Northern | G18: =G17 -> 0.0336034657 | H18: =SUM(D100:D107) -> 761057.5798 | I18: =SUM(D90:D97) -> 633538.9997 | J18: 0.2012797636 | K18: No
F19: ='Tariff & Rebalancing Tests'!E99 -> Tariff C: Brisbane & Riverview | G19: 0.0336034657 | H19: =SUM(E100:E107) -> 15211276.02 | I19: =SUM(E90:E97) -> 14696617.43 | J19: 0.03501884662 | K19: No
F20: ='Tariff & Rebalancing Tests'!F99 -> Tariff C: Northern | G20: 0.0336034657 | H20: =SUM(F100:F107) -> 3227521.624 | I20: =SUM(F90:F97) -> 3127592.627 | J20: 0.03195077156 | K20: Yes
F21: ='Tariff & Rebalancing Tests'!G99 -> Tariff D: Brisbane | G21: 0.0336034657 | H21: =SUM(G100:G107) -> 22571414.08 | I21: =SUM(G90:G97) -> 19680962.46 | J21: 0.1468653593 | K21: No
F22: ='Tariff & Rebalancing Tests'!H99 -> Tariff D: Northern | G22: 0.0336034657 | H22: =SUM(H100:H107) -> 2162455.472 | I22: =SUM(H90:H97) -> 1893450.66 | J22: 0.1420712024 | K22: No
F23: ='Tariff & Rebalancing Tests'!I99 -> Tariff D: Riverview | G23: 0.0336034657 | H23: =SUM(I100:I107) -> 1529424.55 | I23: =SUM(I90:I97) -> 1326728.25 | J23: 0.1527790638 | K23: No
A48: Calculations
A49: 2008/09 | B49: Existing Quantities | C49: ='General Inputs'!B20 -> Tariff V: Brisbane & Riverview | D49: ='General Inputs'!B21 -> Tariff V: Northern | E49: ='General Inputs'!B22 -> Tariff C: Brisbane & Riverview | F49: ='General Inputs'!B23 -> Tariff C: Northern | G49: ='General Inputs'!B24 -> Tariff D: Brisbane | H49: ='General Inputs'!B25 -> Tariff D: Northern | I49: ='General Inputs'!B26 -> Tariff D: Riverview
B50: Volumes Band 1 | C50: =VLOOKUP($A$49,'Volume Inputs'!$A$5:$H$9,2) -> 655467.3696 | D50: =VLOOKUP($A$49,'Volume Inputs'!$A$5:$H$9,3) -> 23876.1055 | E50: =IF('[8]Tariff Impacts'!$G$4="Yes",VLOOKUP($A$49,'Volume Inputs'!$A$5:$H$9,4),0) -> 216378.2476 | F50: =IF('[8]Tariff Impacts'!$G$4="Yes",VLOOKUP($A$49,'Volume Inputs'!$A$5:$H$9,5),0) -> 40309.69394 | G50: =VLOOKUP($A$49,'Volume Inputs'!$A$5:$H$9,6) -> 2769 | H50: =VLOOKUP($A$49,'Volume Inputs'!$A$5:$H$9,7) -> 250 | I50: =VLOOKUP($A$49,'Volume Inputs'!$A$5:$H$9,8) -> 200
B51: Volumes Band 2 | C51: =VLOOKUP($A$49,'Volume Inputs'!$A$17:$H$21,2) -> 18157.62905 | D51: =VLOOKUP($A$49,'Volume Inputs'!$A$17:$H$21,3) -> 328.725 | E51: =IF('[8]Tariff Impacts'!$G$4="Yes",VLOOKUP($A$49,'Volume Inputs'!$A$17:$H$21,4),0) -> 167208.252 | F51: =IF('[8]Tariff Impacts'!$G$4="Yes",VLOOKUP($A$49,'Volume Inputs'!$A$17:$H$21,5),0) -> 32461.85106 | G51: =VLOOKUP($A$49,'Volume Inputs'!$A$17:$H$21,6) -> 3054 | H51: =VLOOKUP($A$49,'Volume Inputs'!$A$17:$H$21,7) -> 152 | I51: =VLOOKUP($A$49,'Volume Inputs'!$A$17:$H$21,8) -> 300
B52: Volumes Band 3 | C52: =VLOOKUP($A$49,'Volume Inputs'!$A$29:$H$33,2) -> 12538.89208 | D52: =VLOOKUP($A$49,'Volume Inputs'!$A$29:$H$33,3) -> 145.0346411 | E52: =IF('[8]Tariff Impacts'!$G$4="Yes",VLOOKUP($A$49,'Volume Inputs'!$A$29:$H$33,4),0) -> 170272.3709 | F52: =IF('[8]Tariff Impacts'!$G$4="Yes",VLOOKUP($A$49,'Volume Inputs'!$A$29:$H$33,5),0) -> 35443.00735 | G52: =VLOOKUP($A$49,'Volume Inputs'!$A$29:$H$33,6) -> 3882 | H52: =VLOOKUP($A$49,'Volume Inputs'!$A$29:$H$33,7) -> 4 | I52: =VLOOKUP($A$49,'Volume Inputs'!$A$29:$H$33,8) -> 600
B53: Volumes Band 4 | C53: =VLOOKUP($A$49,'Volume Inputs'!$A$41:$H$45,2) -> 9251.698592 | D53: =VLOOKUP($A$49,'Volume Inputs'!$A$41:$H$45,3) -> 0 | E53: =IF('[8]Tariff Impacts'!$G$4="Yes",VLOOKUP($A$49,'Volume Inputs'!$A$41:$H$45,4),0) -> 184180.7901 | F53: =IF('[8]Tariff Impacts'!$G$4="Yes",VLOOKUP($A$49,'Volume Inputs'!$A$41:$H$45,5),0) -> 35364.81281 | G53: =VLOOKUP($A$49,'Volume Inputs'!$A$41:$H$45,6) -> 3533 | H53: =VLOOKUP($A$49,'Volume Inputs'!$A$41:$H$45,7) -> 0 | I53: =VLOOKUP($A$49,'Volume Inputs'!$A$41:$H$45,8) -> 1000
B54: Volumes Band 5 | C54: =VLOOKUP($A$49,'Volume Inputs'!$A$53:$H$57,2) -> 8703.142067 | D54: =VLOOKUP($A$49,'Volume Inputs'!$A$53:$H$57,3) -> 0 | E54: =IF('[8]Tariff Impacts'!$G$4="Yes",VLOOKUP($A$49,'Volume Inputs'!$A$53:$H$57,4),0) -> 262928.1732 | F54: =IF('[8]Tariff Impacts'!$G$4="Yes",VLOOKUP($A$49,'Volume Inputs'!$A$53:$H$57,5),0) -> 43814.26035 | G54: =VLOOKUP($A$49,'Volume Inputs'!$A$53:$H$57,6) -> 1549 | H54: =VLOOKUP($A$49,'Volume Inputs'!$A$53:$H$57,7) -> 0 | I54: =VLOOKUP($A$49,'Volume Inputs'!$A$53:$H$57,8) -> 1260
B55: Volumes Band 6 | C55: =VLOOKUP($A$49,'Volume Inputs'!$A$65:$H$69,2) -> 4196.979553 | D55: =VLOOKUP($A$49,'Volume Inputs'!$A$65:$H$69,3) -> 0 | E55: =IF('[8]Tariff Impacts'!$G$4="Yes",VLOOKUP($A$49,'Volume Inputs'!$A$65:$H$69,4),0) -> 186277.1481 | F55: =IF('[8]Tariff Impacts'!$G$4="Yes",VLOOKUP($A$49,'Volume Inputs'!$A$65:$H$69,5),0) -> 45305.74315 | G55: =VLOOKUP($A$49,'Volume Inputs'!$A$65:$H$69,6) -> 755 | H55: =VLOOKUP($A$49,'Volume Inputs'!$A$65:$H$69,7) -> 0 | I55: =VLOOKUP($A$49,'Volume Inputs'!$A$65:$H$69,8) -> 350
B56: Volumes Band 7 | C56: =VLOOKUP($A$49,'Volume Inputs'!$A$77:$H$81,2) -> 0 | D56: =VLOOKUP($A$49,'Volume Inputs'!$A$77:$H$81,3) -> 0 | E56: =IF('[8]Tariff Impacts'!$G$4="Yes",VLOOKUP($A$49,'Volume Inputs'!$A$77:$H$81,4),0) -> 0 | F56: =IF('[8]Tariff Impacts'!$G$4="Yes",VLOOKUP($A$49,'Volume Inputs'!$A$77:$H$81,5),0) -> 0 | G56: =VLOOKUP($A$49,'Volume Inputs'!$A$77:$H$81,6) -> 0 | H56: =VLOOKUP($A$49,'Volume Inputs'!$A$77:$H$81,7) -> 0 | I56: =VLOOKUP($A$49,'Volume Inputs'!$A$77:$H$81,8) -> 0
B57: Customer Numbers | C57: =VLOOKUP($A$49,'Connection Numbers Inputs'!$A$89:$H$93,2) -> 75098 | D57: =VLOOKUP($A$49,'Connection Numbers Inputs'!$A$89:$H$93,3) -> 3165 | E57: =IF('[8]Tariff Impacts'!$G$4="Yes",'[9]2008-09 North Consumption Bands'!$C$76,0) -> 2388.130236 | F57: =IF('[8]Tariff Impacts'!$G$4="Yes",'[9]2008-09 North Consumption Bands'!$C$77,0) -> 385.9804599 | G57: =VLOOKUP($A$49,'Connection Numbers Inputs'!$A$89:$H$93,6) -> 56 | H57: =VLOOKUP($A$49,'Connection Numbers Inputs'!$A$89:$H$93,7) -> 5 | I57: =VLOOKUP($A$49,'Connection Numbers Inputs'!$A$89:$H$93,8) -> 2
A59: 2008/09 | B59: Alternative Quantities | C59: =C49 -> Tariff V: Brisbane & Riverview | D59: =D49 -> Tariff V: Northern | E59: Tariff C: Brisbane & Riverview | F59: Tariff C: Northern | G59: Tariff D: Brisbane | H59: Tariff D: Northern | I59: Tariff D: Riverview
B60: Volumes Band 1 | C60: =IF('[8]Tariff Impacts'!$G$4="Yes",'[9]2008-09 Bne Consumption Bands'!$K$67,'[9]2008-09 North Consumption Bands'!$E$71) -> 188551.7479 | D60: =IF('[8]Tariff Impacts'!$G$4="Yes",'[9]2008-09 North Consumption Bands'!$K$67,'[9]2008-09 North Consumption Bands'!$E$72) -> 7939.517409 | E60: =IF('[8]Tariff Impacts'!$G$4="Yes",E50,0) -> 216378.2476 | F60: =IF('[8]Tariff Impacts'!$G$4="Yes",F50,0) -> 40309.69394 | G60: =VLOOKUP($A$49,'Volume Inputs'!$A$5:$H$9,6) -> 2769 | H60: =VLOOKUP($A$49,'Volume Inputs'!$A$5:$H$9,7) -> 250 | I60: =VLOOKUP($A$49,'Volume Inputs'!$A$5:$H$9,8) -> 200
B61: Volumes Band 2 | C61: =IF('[8]Tariff Impacts'!$G$4="Yes",'[9]2008-09 Bne Consumption Bands'!$L$67,'[9]2008-09 North Consumption Bands'!$F$71) -> 287386.0562 | D61: =IF('[8]Tariff Impacts'!$G$4="Yes",'[9]2008-09 North Consumption Bands'!$L$67,'[9]2008-09 North Consumption Bands'!$F$72) -> 10463.59395 | E61: =IF('[8]Tariff Impacts'!$G$4="Yes",E51,0) -> 167208.252 | F61: =IF('[8]Tariff Impacts'!$G$4="Yes",F51,0) -> 32461.85106 | G61: =VLOOKUP($A$49,'Volume Inputs'!$A$17:$H$21,6) -> 3054 | H61: =VLOOKUP($A$49,'Volume Inputs'!$A$17:$H$21,7) -> 152 | I61: =VLOOKUP($A$49,'Volume Inputs'!$A$17:$H$21,8) -> 300
B62: Volumes Band 3 | C62: =IF('[8]Tariff Impacts'!$G$4="Yes",'[9]2008-09 Bne Consumption Bands'!$M$67,'[9]2008-09 North Consumption Bands'!$G$71) -> 232377.9069 | D62: =IF('[8]Tariff Impacts'!$G$4="Yes",'[9]2008-09 North Consumption Bands'!$M$67,'[9]2008-09 North Consumption Bands'!$G$72) -> 5946.753783 | E62: =IF('[8]Tariff Impacts'!$G$4="Yes",E52,0) -> 170272.3709 | F62: =IF('[8]Tariff Impacts'!$G$4="Yes",F52,0) -> 35443.00735 | G62: =VLOOKUP($A$49,'Volume Inputs'!$A$29:$H$33,6) -> 3882 | H62: =VLOOKUP($A$49,'Volume Inputs'!$A$29:$H$33,7) -> 4 | I62: =VLOOKUP($A$49,'Volume Inputs'!$A$29:$H$33,8) -> 600
B63: Volumes Band 4 | C63: 0 | D63: 0 | E63: =IF('[8]Tariff Impacts'!$G$4="Yes",E53,0) -> 184180.7901 | F63: =IF('[8]Tariff Impacts'!$G$4="Yes",F53,0) -> 35364.81281 | G63: =VLOOKUP($A$49,'Volume Inputs'!$A$41:$H$45,6) -> 3533 | H63: =VLOOKUP($A$49,'Volume Inputs'!$A$41:$H$45,7) -> 0 | I63: =VLOOKUP($A$49,'Volume Inputs'!$A$41:$H$45,8) -> 1000
B64: Volumes Band 5 | C64: 0 | D64: 0 | E64: =IF('[8]Tariff Impacts'!$G$4="Yes",E54,0) -> 262928.1732 | F64: =IF('[8]Tariff Impacts'!$G$4="Yes",F54,0) -> 43814.26035 | G64: =VLOOKUP($A$49,'Volume Inputs'!$A$53:$H$57,6) -> 1549 | H64: =VLOOKUP($A$49,'Volume Inputs'!$A$53:$H$57,7) -> 0 | I64: =VLOOKUP($A$49,'Volume Inputs'!$A$53:$H$57,8) -> 1260
B65: Volumes Band 6 | C65: 0 | D65: 0 | E65: =IF('[8]Tariff Impacts'!$G$4="Yes",E55,0) -> 186277.1481 | F65: =IF('[8]Tariff Impacts'!$G$4="Yes",F55,0) -> 45305.74315 | G65: =VLOOKUP($A$49,'Volume Inputs'!$A$65:$H$69,6) -> 755 | H65: =VLOOKUP($A$49,'Volume Inputs'!$A$65:$H$69,7) -> 0 | I65: =VLOOKUP($A$49,'Volume Inputs'!$A$65:$H$69,8) -> 350
B66: Volumes Band 7 | C66: 0 | D66: 0 | E66: =IF('[8]Tariff Impacts'!$G$4="Yes",E56,0) -> 0 | F66: =IF('[8]Tariff Impacts'!$G$4="Yes",F56,0) -> 0 | G66: =VLOOKUP($A$49,'Volume Inputs'!$A$77:$H$81,6) -> 0 | H66: =VLOOKUP($A$49,'Volume Inputs'!$A$77:$H$81,7) -> 0 | I66: =VLOOKUP($A$49,'Volume Inputs'!$A$77:$H$81,8) -> 0
B67: Customer Numbers | C67: =VLOOKUP($A$49,'Connection Numbers Inputs'!$A$89:$H$93,2) -> 75098 | D67: =VLOOKUP($A$49,'Connection Numbers Inputs'!$A$89:$H$93,3) -> 3165 | E67: =IF('[8]Tariff Impacts'!$G$4="Yes",'[9]2008-09 North Consumption Bands'!$C$76,0) -> 2388.130236 | F67: =IF('[8]Tariff Impacts'!$G$4="Yes",'[9]2008-09 North Consumption Bands'!$C$77,0) -> 385.9804599 | G67: =VLOOKUP($A$49,'Connection Numbers Inputs'!$A$89:$H$93,6) -> 56 | H67: =VLOOKUP($A$49,'Connection Numbers Inputs'!$A$89:$H$93,7) -> 5 | I67: =VLOOKUP($A$49,'Connection Numbers Inputs'!$A$89:$H$93,8) -> 2
A69: 2009/10 | B69: Prices | C69: =C49 -> Tariff V: Brisbane & Riverview | D69: Tariff V: Northern | E69: Tariff C: Brisbane & Riverview | F69: Tariff C: Northern | G69: Tariff D: Brisbane | H69: Tariff D: Northern | I69: Tariff D: Riverview
B70: Volumes Band 1 ($/GJ) | C70: =HLOOKUP($A$69,'Tariff Inputs'!$B$4:$H$12,4) -> 14.395 | D70: =HLOOKUP($A$69,'Tariff Inputs'!$B$14:$H$22,4) -> 15.825 | E70: =HLOOKUP($A$69,'Tariff Inputs'!$B$24:$H$32,4) -> 14.395 | F70: =HLOOKUP($A$69,'Tariff Inputs'!$B$34:$H$42,4) -> 15.825 | G70: =HLOOKUP($A$69,'Tariff Inputs'!$B$44:$H$52,3) -> 6945.5 | H70: =HLOOKUP($A$69,'Tariff Inputs'!$B$54:$H$62,3) -> 7525.5 | I70: =HLOOKUP($A$69,'Tariff Inputs'!$B$64:$H$72,3) -> 6509.5
B71: Volumes Band 2 ($/GJ) | C71: =HLOOKUP($A$69,'Tariff Inputs'!$B$4:$H$12,5) -> 13.835 | D71: =HLOOKUP($A$69,'Tariff Inputs'!$B$14:$H$22,5) -> 15.255 | E71: =HLOOKUP($A$69,'Tariff Inputs'!$B$24:$H$32,5) -> 13.835 | F71: =HLOOKUP($A$69,'Tariff Inputs'!$B$34:$H$42,5) -> 15.255 | G71: =HLOOKUP($A$69,'Tariff Inputs'!$B$44:$H$52,4) -> 71.275 | H71: =HLOOKUP($A$69,'Tariff Inputs'!$B$54:$H$62,4) -> 78.275 | I71: =HLOOKUP($A$69,'Tariff Inputs'!$B$64:$H$72,4) -> 7.505
B72: Volumes Band 3 ($/GJ) | C72: =HLOOKUP($A$69,'Tariff Inputs'!$B$4:$H$12,6) -> 13.415 | D72: =HLOOKUP($A$69,'Tariff Inputs'!$B$14:$H$22,6) -> 14.765 | E72: =HLOOKUP($A$69,'Tariff Inputs'!$B$24:$H$32,6) -> 13.415 | F72: =HLOOKUP($A$69,'Tariff Inputs'!$B$34:$H$42,6) -> 14.765 | G72: =HLOOKUP($A$69,'Tariff Inputs'!$B$44:$H$52,5) -> 40.745 | H72: =HLOOKUP($A$69,'Tariff Inputs'!$B$54:$H$62,5) -> 44.465 | I72: =HLOOKUP($A$69,'Tariff Inputs'!$B$64:$H$72,5) -> 7.455
B73: Volumes Band 4 ($/GJ) | C73: =HLOOKUP($A$69,'Tariff Inputs'!$B$4:$H$12,7) -> 12.705 | D73: =HLOOKUP($A$69,'Tariff Inputs'!$B$14:$H$22,7) -> 13.965 | E73: =HLOOKUP($A$69,'Tariff Inputs'!$B$24:$H$32,7) -> 12.705 | F73: =HLOOKUP($A$69,'Tariff Inputs'!$B$34:$H$42,7) -> 13.965 | G73: =HLOOKUP($A$69,'Tariff Inputs'!$B$44:$H$52,6) -> 16.545 | H73: =HLOOKUP($A$69,'Tariff Inputs'!$B$54:$H$62,6) -> 17.905 | I73: =HLOOKUP($A$69,'Tariff Inputs'!$B$64:$H$72,6) -> 6.965
B74: Volumes Band 5 ($/GJ) | C74: =HLOOKUP($A$69,'Tariff Inputs'!$B$4:$H$12,8) -> 11.095 | D74: =HLOOKUP($A$69,'Tariff Inputs'!$B$14:$H$22,8) -> 12.205 | E74: =HLOOKUP($A$69,'Tariff Inputs'!$B$24:$H$32,8) -> 11.095 | F74: =HLOOKUP($A$69,'Tariff Inputs'!$B$34:$H$42,8) -> 12.205 | G74: =HLOOKUP($A$69,'Tariff Inputs'!$B$44:$H$52,7) -> 7.544 | H74: =HLOOKUP($A$69,'Tariff Inputs'!$B$54:$H$62,7) -> 8.055 | I74: =HLOOKUP($A$69,'Tariff Inputs'!$B$64:$H$72,7) -> 6.925
B75: Volumes Band 6 ($/GJ) | C75: =HLOOKUP($A$69,'Tariff Inputs'!$B$4:$H$12,9) -> 8.265 | D75: =HLOOKUP($A$69,'Tariff Inputs'!$B$14:$H$22,9) -> 9.099 | E75: =HLOOKUP($A$69,'Tariff Inputs'!$B$24:$H$32,9) -> 8.265 | F75: =HLOOKUP($A$69,'Tariff Inputs'!$B$34:$H$42,9) -> 9.099 | G75: =HLOOKUP($A$69,'Tariff Inputs'!$B$44:$H$52,8) -> 3.825 | H75: =HLOOKUP($A$69,'Tariff Inputs'!$B$54:$H$62,8) -> 4.185 | I75: =HLOOKUP($A$69,'Tariff Inputs'!$B$64:$H$72,8) -> 6.895
B76: Volumes Band 7 ($/GJ) | C76: 0 | D76: 0 | E76: 0 | F76: 0 | G76: =HLOOKUP($A$69,'Tariff Inputs'!$B$44:$H$52,9) -> 3.825 | H76: =HLOOKUP($A$69,'Tariff Inputs'!$B$54:$H$62,9) -> 4.185 | I76: =HLOOKUP($A$69,'Tariff Inputs'!$B$64:$H$72,9) -> 6.895
B77: Daily or Monthly Charge | C77: =HLOOKUP($A$69,'Tariff Inputs'!$B$4:$H$11,3) -> 0.215 | D77: =HLOOKUP($A$69,'Tariff Inputs'!$B$14:$H$21,3) -> 0.215 | E77: =HLOOKUP($A$69,'Tariff Inputs'!$B$24:$H$30,3) -> 0.215 | F77: =HLOOKUP($A$69,'Tariff Inputs'!$B$34:$H$40,3) -> 0.215 | G77: 0 | H77: 0 | I77: 0
A79: 2010/11 | B79: Prices | C79: =C69 -> Tariff V: Brisbane & Riverview | D79: Tariff V: Northern | E79: Tariff C: Brisbane & Riverview | F79: Tariff C: Northern | G79: Tariff D: Brisbane | H79: Tariff D: Northern | I79: Tariff D: Riverview
B80: Volumes Band 1 ($/GJ) | C80: =HLOOKUP($A$79,'Tariff Inputs'!$B$4:$H$12,4) -> 21 | D80: =HLOOKUP($A$79,'Tariff Inputs'!$B$14:$H$22,4) -> 23.1 | E80: =HLOOKUP($A$79,'Tariff Inputs'!$B$24:$H$32,4) -> 15.415 | F80: =HLOOKUP($A$79,'Tariff Inputs'!$B$34:$H$42,4) -> 16.923 | G80: =HLOOKUP($A$79,'Tariff Inputs'!$B$44:$H$52,3) -> 7984.09 | H80: =HLOOKUP($A$79,'Tariff Inputs'!$B$54:$H$62,3) -> 8598.89 | I80: =HLOOKUP($A$79,'Tariff Inputs'!$B$64:$H$72,3) -> 7521.99
B81: Volumes Band 2 ($/GJ) | C81: =HLOOKUP($A$79,'Tariff Inputs'!$B$4:$H$12,5) -> 15 | D81: =HLOOKUP($A$79,'Tariff Inputs'!$B$14:$H$22,5) -> 16.5 | E81: =HLOOKUP($A$79,'Tariff Inputs'!$B$24:$H$32,5) -> 14.065 | F81: =HLOOKUP($A$79,'Tariff Inputs'!$B$34:$H$42,5) -> 15.485 | G81: =HLOOKUP($A$79,'Tariff Inputs'!$B$44:$H$52,4) -> 75.195 | H81: =HLOOKUP($A$79,'Tariff Inputs'!$B$54:$H$62,4) -> 82.58 | I81: =HLOOKUP($A$79,'Tariff Inputs'!$B$64:$H$72,4) -> 7.918
B82: Volumes Band 3 ($/GJ) | C82: =HLOOKUP($A$79,'Tariff Inputs'!$B$4:$H$12,6) -> 7.13 | D82: =HLOOKUP($A$79,'Tariff Inputs'!$B$14:$H$22,6) -> 7.843 | E82: =HLOOKUP($A$79,'Tariff Inputs'!$B$24:$H$32,6) -> 13.645 | F82: =HLOOKUP($A$79,'Tariff Inputs'!$B$34:$H$42,6) -> 14.995 | G82: =HLOOKUP($A$79,'Tariff Inputs'!$B$44:$H$52,5) -> 41.421 | H82: =HLOOKUP($A$79,'Tariff Inputs'!$B$54:$H$62,5) -> 45.203 | I82: =HLOOKUP($A$79,'Tariff Inputs'!$B$64:$H$72,5) -> 7.579
B83: Volumes Band 4 ($/GJ) | C83: =HLOOKUP($A$79,'Tariff Inputs'!$B$4:$H$12,7) -> 0 | D83: =HLOOKUP($A$79,'Tariff Inputs'!$B$14:$H$22,7) -> 0 | E83: =HLOOKUP($A$79,'Tariff Inputs'!$B$24:$H$32,7) -> 12.935 | F83: =HLOOKUP($A$79,'Tariff Inputs'!$B$34:$H$42,7) -> 14.195 | G83: =HLOOKUP($A$79,'Tariff Inputs'!$B$44:$H$52,6) -> 16.545 | H83: =HLOOKUP($A$79,'Tariff Inputs'!$B$54:$H$62,6) -> 17.905 | I83: =HLOOKUP($A$79,'Tariff Inputs'!$B$64:$H$72,6) -> 6.965
B84: Volumes Band 5 ($/GJ) | C84: =HLOOKUP($A$79,'Tariff Inputs'!$B$4:$H$12,8) -> 0 | D84: =HLOOKUP($A$79,'Tariff Inputs'!$B$14:$H$22,8) -> 0 | E84: =HLOOKUP($A$79,'Tariff Inputs'!$B$24:$H$32,8) -> 11.325 | F84: =HLOOKUP($A$79,'Tariff Inputs'!$B$34:$H$42,8) -> 12.435 | G84: =HLOOKUP($A$79,'Tariff Inputs'!$B$44:$H$52,7) -> 7.544 | H84: =HLOOKUP($A$79,'Tariff Inputs'!$B$54:$H$62,7) -> 8.055 | I84: =HLOOKUP($A$79,'Tariff Inputs'!$B$64:$H$72,7) -> 6.925
B85: Volumes Band 6 ($/GJ) | C85: =HLOOKUP($A$79,'Tariff Inputs'!$B$4:$H$12,9) -> 0 | D85: =HLOOKUP($A$79,'Tariff Inputs'!$B$14:$H$22,9) -> 0 | E85: =HLOOKUP($A$79,'Tariff Inputs'!$B$24:$H$32,9) -> 8.495 | F85: =HLOOKUP($A$79,'Tariff Inputs'!$B$34:$H$42,9) -> 9.329 | G85: =HLOOKUP($A$79,'Tariff Inputs'!$B$44:$H$52,8) -> 3.825 | H85: =HLOOKUP($A$79,'Tariff Inputs'!$B$54:$H$62,8) -> 4.185 | I85: =HLOOKUP($A$79,'Tariff Inputs'!$B$64:$H$72,8) -> 6.895
B86: Volumes Band 7 ($/GJ) | C86: 0 | D86: 0 | E86: 0 | F86: 0 | G86: =HLOOKUP($A$79,'Tariff Inputs'!$B$44:$H$52,9) -> 3.825 | H86: =HLOOKUP($A$79,'Tariff Inputs'!$B$54:$H$62,9) -> 4.185 | I86: =HLOOKUP($A$79,'Tariff Inputs'!$B$64:$H$72,9) -> 6.895
B87: Daily or Monthly Charge | C87: =HLOOKUP($A$79,'Tariff Inputs'!$B$4:$H$11,3) -> 0.31 | D87: =HLOOKUP($A$79,'Tariff Inputs'!$B$14:$H$21,3) -> 0.31 | E87: =HLOOKUP($A$79,'Tariff Inputs'!$B$24:$H$32,3) -> 0.296 | F87: =HLOOKUP($A$79,'Tariff Inputs'!$B$34:$H$40,3) -> 0.296 | G87: 0 | H87: 0 | I87: 0
A89: 2009/10 p*q | C89: =C79 -> Tariff V: Brisbane & Riverview | D89: Tariff V: Northern | E89: Tariff C: Brisbane & Riverview | F89: Tariff C: Northern | G89: Tariff D: Brisbane | H89: Tariff D: Northern | I89: Tariff D: Riverview
B90: Volumes Band 1 | C90: =C70*C50 -> 9435452.786 | D90: =D70*D50 -> 377839.3696 | E90: 3114764.874 | F90: 637900.9067 | G90: 19232089.5 | H90: 1881375 | I90: 1301900
B91: Volumes Band 2 | C91: 251210.7978 | D91: =D71*D51 -> 5014.699875 | E91: 2313326.166 | F91: 495205.5379 | G91: 217673.85 | H91: 11897.8 | I91: 2251.5
B92: Volumes Band 3 | C92: 168209.2373 | D92: =D72*D52 -> 2141.436476 | E92: 2284203.856 | F92: 523316.0035 | G92: 158172.09 | H92: 177.86 | I92: 4473
B93: Volumes Band 4 | C93: 117542.8306 | D93: =D73*D53 -> 0 | E93: 2340016.938 | F93: 493869.6109 | G93: 58453.485 | H93: 0 | I93: 6965
B94: Volumes Band 5 | C94: 96561.36124 | D94: =D74*D54 -> 0 | E94: 2917188.082 | F94: 534753.0476 | G94: 11685.656 | H94: 0 | I94: 8725.5
B95: Volumes Band 6 | C95: 34688.036 | D95: =D75*D55 -> 0 | E95: 1539580.629 | F95: 412236.9569 | G95: 2887.875 | H95: 0 | I95: 2413.25
B96: Volumes Band 7 | C96: 0 | D96: =D76*D56 -> 0 | E96: 0 | F96: 0 | G96: 0 | H96: 0 | I96: 0
B97: Daily Charge | C97: =C77*C57*365.25 -> 5897352.067 | D97: =D77*D57*365.25 -> 248543.4937 | E97: 187536.8823 | F97: 30310.56304 | G97: 0 | H97: 0 | I97: 0
A99: 2010/11 p*q | C99: =C89 -> Tariff V: Brisbane & Riverview | D99: Tariff V: Northern | E99: Tariff C: Brisbane & Riverview | F99: Tariff C: Northern | G99: Tariff D: Brisbane | H99: Tariff D: Northern | I99: Tariff D: Riverview
B100: Volumes Band 1 | C100: =C80*C60 -> 3959586.706 | D100: =D80*D60 -> 183402.8522 | E100: =E80*E60 -> 3335470.687 | F100: 682160.9506 | G100: 22107945.21 | H100: 2149722.5 | I100: 1504398
B101: Volumes Band 2 | C101: 4310790.843 | D101: =D81*D61 -> 172649.3002 | E101: 2351784.064 | F101: 502671.7636 | G101: 229645.53 | H101: 12552.16 | I101: 2375.4
B102: Volumes Band 3 | C102: 1656854.476 | D102: =D82*D62 -> 46640.38992 | E102: 2323366.502 | F102: 531467.8952 | G102: 160796.322 | H102: 180.812 | I102: 4547.4
B103: Volumes Band 4 | C103: 0 | D103: =D83*D63 -> 0 | E103: 2382378.519 | F103: 502003.5179 | G103: 58453.485 | H103: 0 | I103: 6965
B104: Volumes Band 5 | C104: 0 | D104: =D84*D64 -> 0 | E104: 2977661.562 | F104: 544830.3275 | G104: 11685.656 | H104: 0 | I104: 8725.5
B105: Volumes Band 6 | C105: 0 | D105: =D85*D65 -> 0 | E105: 1582424.373 | F105: 422657.2778 | G105: 2887.875 | H105: 0 | I105: 2413.25
B106: Volumes Band 7 | C106: 0 | D106: =D86*D66 -> 0 | E106: 0 | F106: 0 | G106: 0 | H106: 0 | I106: 0
B107: Daily Charge | C107: =C87*365.25*C67 -> 8503158.795 | D107: =D87*365.25*D67 -> 358365.0375 | E107: 258190.3124 | F107: 41729.89144 | G107: 0 | H107: 0 | I107: 0
